Workbook

Sheet General Inputs
A1: General Inputs
A4: WACC calculation
A5: Inflation from 1/1/06 to 30/6/06 | B5: =B6 -> 0.0257
A6: Inflation rate (forecast) | B6: 0.0257
A7: Real pre-tax WACC (average) | B7: 0.0917
A8: Nominal pre-tax WACC (average) | B8: 0.1064
A10: Inflation index
B11: 1999/00 | C11: 2000/01 | D11: 2001/02 | E11: 2002/03 | F11: 2003/04 | G11: 2004/05 | H11: 2005/06 | I11: 2006/07 | J11: 2007/08 | K11: 2008/09 | L11: 2009/10 | M11: 2010/11 | N11: 2011/12 | O11: 2012/13 | P11: 2013/14 | Q11: 2014/15 | R11: 2015/16
A12: March | B12: 125.2 | C12: 132.7 | D12: 136.6 | E12: 141.3 | F12: 144.1 | G12: 147.5 | H12: 151.9 | I12: 155.6 | J12: 162.2 | K12: 166.2 | L12: 171 | M12: =L15*1.025^0.25 -> 175.275
A13: June | B13: 126.2 | C13: 133.8 | D13: 137.6 | E13: 141.3 | F13: 144.8 | G13: 148.4 | H13: 154.3 | I13: 157.5 | J13: 164.6 | K13: 167 | L13: =L12*1.025^0.25 -> 172.0588741 | M13: 176.360346
A14: September | B14: 130.9 | C14: 134.2 | D14: 138.5 | E14: 142.1 | F14: 145.4 | G14: 149.8 | H14: 155.7 | I14: 158.6 | J14: 166.5 | K14: 168.6 | L14: 173.1243051 | M14: 177.4524127
A15: December | B15: 131.3 | C15: 135.4 | D15: 139.5 | E15: 142.8 | F15: 146.5 | G15: 150.6 | H15: 155.5 | I15: 160.1 | J15: 166 | K15: 169.5 | L15: 174.1963334 | M15: 178.5512417
A16: Annual CPI | C16: =C12/B12-1 -> 0.05990415335 | D16: 0.0293896006 | E16: 0.03440702782 | F16: 0.01981599434 | G16: 0.02359472588 | H16: 0.02983050847 | I16: 0.02435813035 | J16: 0.04241645244 | K16: 0.02466091245 | L16: 0.02888086643 | M16: 0.025 | N16: -1
A18: Cost Pools
A19: Tariff class | B19: Short Name | C19: Tariff type | D19: Description of cost centre | E19: Description of tariff
A20: 1 | B20: Residential 1 | C20: Non-demand | D20: Tariff V - Domestic | E20: Residential tariff - anytime use
A21: 2 | B21: Residential 2 | C21: Non-demand | D21: Tariff V - Domestic | E21: Residential tariff - HW booster only
A22: 3 | B22: Residential 3 | C22: Non-demand | D22: Tariff V - Domestic | E22: Residential Tariff - off peak only
A23: 4 | B23: Commercial 1 | C23: Non-demand | D23: Tariff V - I&C | E23: Commercial customers - anytime use
A24: 5 | B24: Commercial 2 | C24: Non-demand | D24: Tariff V - I&C | E24: Commercial customers - Off peak only
A25: 6 | B25: Demand-AdNr | C25: Demand | D25: Tariff D - MDQ (GJ/d) Tariff D Zone - Northern | E25: Demand customers in region 1
A26: 7 | B26: Demand-AdC | C26: Demand | D26: Tariff D - MDQ (GJ/d) Tariff D Zone - Central | E26: Demand customers in region 2
A27: 8 | B27: Demand-AdS | C27: Demand | D27: Tariff D - MDQ (GJ/d) Tariff D Zone - Southern | E27: Demand customers in region 3
A28: 9 | B28: Demand-PP | C28: Demand | D28: Tariff D - MDQ (GJ/d) Tariff D Zone - Port Pirie | E28: Demand customers in region 4
A29: 10 | B29: Demand-Peter | C29: Demand | D29: Tariff D - MDQ (GJ/d) Tariff D Zone - Peterborough | E29: Demand customers in region 5
A30: 11 | B30: Demand-River | C30: Demand | D30: Tariff D - MDQ (GJ/d) Tariff D Zone - Riverland | E30: Demand customers in region 6
A31: 12 | B31: Demand-SE | C31: Demand | D31: Tariff D - MDQ (GJ/d) Tariff D Zone - South East | E31: Demand customers in region 7
A32: 13 | B32: Demand-Whyal | C32: Demand | D32: Tariff D - MDQ (GJ/d) Tariff D Zone - Whyalla | E32: Demand customers in region 8
A33: 14 | B33: Demand-Town | C33: Demand | D33: Tariff D - MDQ (GJ/d) Tariff D Zone - Major Towns

Sheet Inflation - Input (hidden)
B1: ="ENVESTRA - Cost allocation model for "&'General Inputs'!#REF!&" ("&'General Inputs'!#REF!&")" -> 
B2: Inflation - inputs
B3: Back to table of contents
B4: This sheet provide inputs for inflation values based on Envestra financial model
B5: Updating the 2000 to 2004 Depreciation Allowance
B7: Period Ending 30 June | J7: 2005 | K7: =J7+1 -> 2006 | L7: 2007 | M7: 2008 | N7: 2009 | O7: 2010 | P7: 2011
B9: SAIPAR Inflation
B10: Quarterly inflation values up until December 2002 are the assumed values of SAIPAR.
B11: Quartley CPI values at and before September 2002 are baqck calculated from SAIPAR's inflation values.
B13: Quarterly CPI
B15: March | J15: 147.5 | K15: 151.9 | L15: 155.6 | M15: 162.2 | N15: 166.2 | O15: 170.355 | P15: 174.613875
B16: June | J16: 148.4 | K16: 154.3 | L16: 157.5 | M16: 164.6 | N16: 167.2291513 | O16: 171.4098801 | P16: 175.6951271
B17: September | J17: 149.8 | K17: 155.7 | L17: 158.6 | M17: 166.5 | N17: 168.2646754 | O17: 172.4712923 | P17: 176.7830746
B18: December | J18: 150.6 | K18: 155.5 | L18: 160.1 | M18: 166 | N18: 169.3066118 | O18: 173.539277 | P18: 177.877759
B20: Quarterly Inflation
J21: 2005 | K21: 2006 | L21: 2007 | M21: 2008 | N21: 2009 | O21: 2010 | P21: 2011
B22: March | J22: 0.006825938567 | K22: 0.008632138114 | L22: 0.0006430868167 | M22: 0.013116802 | N22: 0.001204819277 | O22: 0.006192246326 | P22: 0.006192246326
B23: June | J23: 0.006101694915 | K23: 0.01579986833 | L23: 0.01221079692 | M23: 0.01479654747 | N23: 0.006192246326 | O23: 0.006192246326 | P23: 0.006192246326
B24: September | J24: 0.009433962264 | K24: 0.00907323396 | L24: 0.006984126984 | M24: 0.01154313487 | N24: 0.006192246326 | O24: 0.006192246326 | P24: 0.006192246326
B25: December | J25: 0.005340453939 | K25: -0.001284521516 | L25: 0.009457755359 | M25: -0.003003003003 | N25: 0.006192246326 | O25: 0.006192246326 | P25: 0.006192246326
B27: Six Month Inflation
J28: 2005 | K28: 2006 | L28: 2007 | M28: 2008 | N28: 2009 | O28: 2010 | P28: 2011
B29: March | J29: 0.01444291609 | K29: 0.01401869159 | L29: -0.0006422607579 | M29: 0.02269861286 | N29: -0.001801801802 | O29: 0.01242283657 | P29: 0.01242283657
B30: June | J30: 0.01296928328 | K30: 0.02456839309 | L30: 0.01286173633 | M30: 0.02810743285 | N30: 0.00740452614 | O30: 0.01242283657 | P30: 0.01242283657
B31: September | J31: 0.01559322034 | K31: 0.0250164582 | L31: 0.01928020566 | M31: 0.02651048089 | N31: 0.01242283657 | O31: 0.01242283657 | P31: 0.01242283657
B32: December | J32: 0.01482479784 | K32: 0.00777705768 | L32: 0.01650793651 | M32: 0.008505467801 | N32: 0.01242283657 | O32: 0.01242283657 | P32: 0.01242283657
B34: Annual Inflation
J35: 2005 | K35: 2006 | L35: 2007 | M35: 2008 | N35: 2009 | O35: 2010 | P35: 2011
B36: March | J36: 0.02359472588 | K36: 0.02983050847 | L36: 0.02435813035 | M36: 0.04241645244 | N36: 0.02466091245 | O36: 0.025 | P36: 0.025
B37: June | J37: 0.02486187845 | K37: 0.0397574124 | L37: 0.02073882048 | M37: 0.04507936508 | N37: 0.0159729729 | O37: 0.025 | P37: 0.025
B38: September | J38: 0.03026134801 | K38: 0.0393858478 | L38: 0.01862556198 | M38: 0.04981084489 | N38: 0.01059865127 | O38: 0.025 | P38: 0.025
B39: December | J39: 0.02798634812 | K39: 0.03253652058 | L39: 0.02958199357 | M39: 0.03685196752 | N39: 0.01991934792 | O39: 0.025 | P39: 0.025
B41: Inflation factor to 31 December 2005
J42: 2005 | K42: 2006 | L42: 2007 | M42: 2008 | N42: 2009 | O42: 2010 | P42: 2011
B43: March | J43: 1 | K43: 1.029830508 | L43: 1.054915254 | M43: 1.099661017 | N43: 1.126779661 | O43: 1.154949153 | P43: 1.183822881
B44: June | J44: 1.006101695 | K44: 1.046101695 | L44: 1.06779661 | M44: 1.115932203 | N44: 1.133756958 | O44: 1.162100882 | P44: 1.191153404
B45: September | J45: 1.01559322 | K45: 1.05559322 | L45: 1.075254237 | M45: 1.128813559 | N45: 1.140777461 | O45: 1.169296897 | P45: 1.19852932
B46: December | J46: 1.021016949 | K46: 1.054237288 | L46: 1.085423729 | M46: 1.125423729 | N46: 1.147841436 | O46: 1.176537472 | P46: 1.205950908
B48: Actual Inlfation
B50: Quarterly CPI
J51: 2005 | K51: 2006 | L51: 2007 | M51: 2008 | N51: 2009 | O51: 2010 | P51: 2011
B52: March | J52: 147.5 | K52: 151.6609409 | L52: 155.4524644 | M52: 159.3387761 | N52: 163.3222455 | O52: 167.4053016 | P52: 171.5904341
B53: June | J53: 148.4 | K53: 152.6000628 | L53: 156.4150644 | M53: 160.325441 | N53: 164.333577 | O53: 168.4419165 | P53: 172.6529644
B54: September | J54: 149.8 | K54: 153.545 | L54: 157.383625 | M54: 161.3182156 | N54: 165.351171 | O54: 169.4849503 | P54: 173.722074
B55: December | J55: 150.7275985 | K55: 154.4957885 | L55: 158.3581832 | M55: 162.3171378 | N55: 166.3750662 | O55: 170.5344429 | P55: 174.7978039
B57: Quarterly Inflation
J58: 2005 | K58: 2006 | L58: 2007 | M58: 2008 | N58: 2009 | O58: 2010 | P58: 2011
B59: March | J59: 0.006825938567 | K59: 0.006192246326 | L59: 0.006192246326 | M59: 0.006192246326 | N59: 0.006192246326 | O59: 0.006192246326 | P59: 0.006192246326
B60: June | J60: 0.006101694915 | K60: 0.006192246326 | L60: 0.006192246326 | M60: 0.006192246326 | N60: 0.006192246326 | O60: 0.006192246326 | P60: 0.006192246326
B61: September | J61: 0.009433962264 | K61: 0.006192246326 | L61: 0.006192246326 | M61: 0.006192246326 | N61: 0.006192246326 | O61: 0.006192246326 | P61: 0.006192246326
B62: December | J62: 0.006192246326 | K62: 0.006192246326 | L62: 0.006192246326 | M62: 0.006192246326 | N62: 0.006192246326 | O62: 0.006192246326 | P62: 0.006192246326
B64: Six Month Inflation
J65: 2005 | K65: 2006 | L65: 2007 | M65: 2008 | N65: 2009 | O65: 2010 | P65: 2011
B66: March | J66: 0.01444291609 | K66: 0.01242283657 | L66: 0.01242283657 | M66: 0.01242283657 | N66: 0.01242283657 | O66: 0.01242283657 | P66: 0.01242283657
B67: June | J67: 0.01296928328 | K67: 0.01242283657 | L67: 0.01242283657 | M67: 0.01242283657 | N67: 0.01242283657 | O67: 0.01242283657 | P67: 0.01242283657
B68: September | J68: 0.01559322034 | K68: 0.01242283657 | L68: 0.01242283657 | M68: 0.01242283657 | N68: 0.01242283657 | O68: 0.01242283657 | P68: 0.01242283657
B69: December | J69: 0.01568462601 | K69: 0.01242283657 | L69: 0.01242283657 | M69: 0.01242283657 | N69: 0.01242283657 | O69: 0.01242283657 | P69: 0.01242283657
B71: Annual Inflation
J72: 2005 | K72: 2006 | L72: 2007 | M72: 2008 | N72: 2009 | O72: 2010 | P72: 2011
B73: March | J73: 0.02359472588 | K73: 0.02820976893 | L73: 0.025 | M73: 0.025 | N73: 0.025 | O73: 0.025 | P73: 0.025
B74: June | J74: 0.02486187845 | K74: 0.02830231012 | L74: 0.025 | M74: 0.025 | N74: 0.025 | O74: 0.025 | P74: 0.025
B75: September | J75: 0.03026134801 | K75: 0.025 | L75: 0.025 | M75: 0.025 | N75: 0.025 | O75: 0.025 | P75: 0.025
B76: December | J76: 0.02885732764 | K76: 0.025 | L76: 0.025 | M76: 0.025 | N76: 0.025 | O76: 0.025 | P76: 0.025
B78: Inflation factor to 31 December 2005
J79: 2005 | K79: 2006 | L79: 2007 | M79: 2008 | N79: 2009 | O79: 2010 | P79: 2011
B80: March | J80: 1 | K80: 1.028209769 | L80: 1.053915013 | M80: 1.080262888 | N80: 1.107269461 | O80: 1.134951197 | P80: 1.163324977
B81: June | J81: 1.006101695 | K81: 1.034576697 | L81: 1.060441115 | M81: 1.086952142 | N81: 1.114125946 | O81: 1.141979095 | P81: 1.170528572
B82: September | J82: 1.01559322 | K82: 1.040983051 | L82: 1.067007627 | M82: 1.093682818 | N82: 1.121024888 | O82: 1.14905051 | P82: 1.177776773
B83: December | J83: 1.021882024 | K83: 1.047429074 | L83: 1.073614801 | M83: 1.100455171 | N83: 1.12796655 | O83: 1.156165714 | P83: 1.185069857
B85: Model Inflation
B87: Quarterly CPI
J88: 2005 | K88: 2006 | L88: 2007 | M88: 2008 | N88: 2009 | O88: 2010 | P88: 2011
B89: March | J89: 147.5 | K89: 151.9 | L89: 155.6 | M89: 162.2 | N89: 166.2 | O89: 170.355 | P89: 174.613875
B90: June | J90: 148.4 | K90: 154.3 | L90: 157.5 | M90: 164.6 | N90: 167.2291513 | O90: 171.4098801 | P90: 175.6951271
B91: September | J91: 149.8 | K91: 155.7 | L91: 158.6 | M91: 166.5 | N91: 168.2646754 | O91: 172.4712923 | P91: 176.7830746
B92: December | J92: 150.6 | K92: 155.5 | L92: 160.1 | M92: 166 | N92: 169.3066118 | O92: 173.539277 | P92: 177.877759
B94: Quarterly Inflation
J95: 2005 | K95: 2006 | L95: 2007 | M95: 2008 | N95: 2009 | O95: 2010 | P95: 2011
B96: March | J96: 0.006825938567 | K96: 0.008632138114 | L96: 0.0006430868167 | M96: 0.013116802 | N96: 0.001204819277 | O96: 0.006192246326 | P96: 0.006192246326
B97: June | J97: 0.006101694915 | K97: 0.01579986833 | L97: 0.01221079692 | M97: 0.01479654747 | N97: 0.006192246326 | O97: 0.006192246326 | P97: 0.006192246326
B98: September | J98: 0.009433962264 | K98: 0.00907323396 | L98: 0.006984126984 | M98: 0.01154313487 | N98: 0.006192246326 | O98: 0.006192246326 | P98: 0.006192246326
B99: December | J99: 0.005340453939 | K99: -0.001284521516 | L99: 0.009457755359 | M99: -0.003003003003 | N99: 0.006192246326 | O99: 0.006192246326 | P99: 0.006192246326
B101: Six Month Inflation
J102: 2005 | K102: 2006 | L102: 2007 | M102: 2008 | N102: 2009 | O102: 2010 | P102: 2011
B103: March | J103: 0.01444291609 | K103: 0.01401869159 | L103: -0.0006422607579 | M103: 0.02269861286 | N103: -0.001801801802 | O103: 0.01242283657 | P103: 0.01242283657
B104: June | J104: 0.01296928328 | K104: 0.02456839309 | L104: 0.01286173633 | M104: 0.02810743285 | N104: 0.00740452614 | O104: 0.01242283657 | P104: 0.01242283657
B105: September | J105: 0.01559322034 | K105: 0.0250164582 | L105: 0.01928020566 | M105: 0.02651048089 | N105: 0.01242283657 | O105: 0.01242283657 | P105: 0.01242283657
B106: December | J106: 0.01482479784 | K106: 0.00777705768 | L106: 0.01650793651 | M106: 0.008505467801 | N106: 0.01242283657 | O106: 0.01242283657 | P106: 0.01242283657
B108: Annual Inflation | J108: 2005 | K108: 2006 | L108: 2007 | M108: 2008 | N108: 2009 | O108: 2010 | P108: 2011
B110: March | J110: 0.02359472588 | K110: 0.02983050847 | L110: 0.02435813035 | M110: 0.04241645244 | N110: 0.02466091245 | O110: 0.025 | P110: 0.025
B111: June | J111: 0.02486187845 | K111: 0.0397574124 | L111: 0.02073882048 | M111: 0.04507936508 | N111: 0.0159729729 | O111: 0.025 | P111: 0.025
B112: September | J112: 0.03026134801 | K112: 0.0393858478 | L112: 0.01862556198 | M112: 0.04981084489 | N112: 0.01059865127 | O112: 0.025 | P112: 0.025
B113: December | J113: 0.02798634812 | K113: 0.03253652058 | L113: 0.02958199357 | M113: 0.03685196752 | N113: 0.01991934792 | O113: 0.025 | P113: 0.025
B115: Inflation factor to 31 December 2005
J116: 2005 | K116: 2006 | L116: 2007 | M116: 2008 | N116: 2009 | O116: 2010 | P116: 2011
B117: March | J117: 1 | K117: 1.029830508 | L117: 1.054915254 | M117: 1.099661017 | N117: 1.126779661 | O117: 1.154949153 | P117: 1.183822881
B118: June | J118: 1.006101695 | K118: 1.046101695 | L118: 1.06779661 | M118: 1.115932203 | N118: 1.133756958 | O118: 1.162100882 | P118: 1.191153404
B119: September | J119: 1.01559322 | K119: 1.05559322 | L119: 1.075254237 | M119: 1.128813559 | N119: 1.140777461 | O119: 1.169296897 | P119: 1.19852932
B120: December | J120: 1.021016949 | K120: 1.054237288 | L120: 1.085423729 | M120: 1.125423729 | N120: 1.147841436 | O120: 1.176537472 | P120: 1.205950908

Sheet Connection Numbers Inputs
A1: Connection Numbers Inputs
A4: Fixed Band | B4: Residential 1 | C4: Residential 2 | D4: Residential 3 | E4: Commercial 1 | F4: Commercial 2 | G4: Demand-AdC | H4: Demand-AdNr | I4: Demand-AdS | J4: Demand-Peter | K4: Demand-PP | L4: Demand-River | M4: Demand-SE | N4: Demand-Tanunda | O4: Demand-Whyal
A5: 2006/07 | B5: 366251 | C5: 0 | D5: 0 | E5: 9251 | F5: 0 | G5: 43 | H5: 74 | I5: 20 | J5: 1 | K5: 2 | L5: 2 | M5: 5 | N5: 0 | O5: 1
A6: 2007/08 | B6: 374118 | C6: 0 | D6: 0 | E6: 9387 | F6: 0 | G6: 43 | H6: 74 | I6: 21 | J6: 1 | K6: 2 | L6: 2 | M6: 5 | N6: 0 | O6: 1
A7: 2008/09 | B7: 381428 | C7: 0 | D7: 0 | E7: 9506 | F7: 0 | G7: 43 | H7: 74 | I7: 22 | J7: 1 | K7: 2 | L7: 2 | M7: 5 | N7: 3 | O7: 1
A8: 2009/10 | B8: 382348.3147 | C8: 0 | D8: 0 | E8: 9090.737637 | F8: 0 | G8: 43 | H8: 75 | I8: 23 | J8: 1 | K8: 2 | L8: 2 | M8: 5 | N8: 4 | O8: 1
A9: 2010/11 | B9: 393154.9 | C9: 0 | D9: 0 | E9: 9929.6 | F9: 0 | G9: 43 | H9: 75 | I9: 24 | J9: 1 | K9: 2 | L9: 3 | M9: 5 | N9: 5 | O9: 1
A10: 2011/12 | B10: 401564.3 | C10: 0 | D10: 0 | E10: 10063.6 | F10: 0 | G10: 42.238 | H10: 73.96584615 | I10: 16.395 | J10: 1.0248 | K10: 0.9875 | L10: 2.1489 | M10: 4.8821 | N10: 0 | O10: 0.9689
A11: 2012/13 | B11: 408478.4 | C11: 0 | D11: 0 | E11: 10228.8 | F11: 0 | G11: 42.003 | H11: 73.78307692 | I11: 17.207 | J11: 1.0289 | K11: 0.9864 | L11: 2.1723 | M11: 4.8562 | N11: 1 | O11: 0.9549
A12: 2013/14 | B12: 415705.3 | C12: 0 | D12: 0 | E12: 10187.2 | F12: 0 | G12: 41.188 | H12: 72.25661538 | I12: 17.801 | J12: 1.0273 | K12: 0.9724 | L12: 2.1797 | M12: 4.7745 | N12: 1 | O12: 0.9318
A13: 2014/15 | B13: 423285.8 | C13: 0 | D13: 0 | E13: 10217.6 | F13: 0 | G13: 41.091 | H13: 71.16707692 | I13: 18.594 | J13: 1.0287 | K13: 0.9671 | L13: 2.216 | M13: 4.7568 | N13: 1 | O13: 0.9106
A14: 2015/16 | B14: 431480.3 | C14: 0 | D14: 0 | E14: 10314 | F14: 0 | G14: 41.253 | H14: 72.26861538 | I14: 19.485 | J14: 1.0327 | K14: 0.9674 | L14: 2.2633 | M14: 4.7689 | N14: 1 | O14: 0.8947
A16: Price Band 1 | B16: Residential 1 | C16: Residential 2 | D16: Residential 3 | E16: Commercial 1 | F16: Commercial 2 | G16: Demand-AdC | H16: Demand-AdNr | I16: Demand-AdS | J16: Demand-Peter | K16: Demand-PP | L16: Demand-River | M16: Demand-SE | N16: Demand-Tanunda | O16: Demand-Whyal
A17: =A5 -> 2006/07 | B17: 0 | C17: 0 | D17: 0 | E17: 0 | F17: 0 | G17: 0.9772727273 | H17: 4.111111111 | I17: 1.904761905 | J17: 0 | K17: 0 | L17: 0 | M17: 0 | N17: 0 | O17: 0
A18: 2007/08 | B18: 0 | C18: 0 | D18: 0 | E18: 0 | F18: 0 | G18: 0.9772727273 | H18: 4.111111111 | I18: 2 | J18: 0 | K18: 0 | L18: 0 | M18: 0 | N18: 0 | O18: 0
A19: 2008/09 | B19: 0 | C19: 0 | D19: 0 | E19: 0 | F19: 0 | G19: 0.9772727273 | H19: 4.111111111 | I19: 2.095238095 | J19: 0 | K19: 0 | L19: 0 | M19: 0 | N19: 0 | O19: 0
A20: 2009/10 | B20: 0 | C20: 0 | D20: 0 | E20: 0 | F20: 0 | G20: 0.9772727273 | H20: 4.166666667 | I20: 2.19047619 | J20: 0 | K20: 0 | L20: 0 | M20: 0 | N20: 0 | O20: 0
A21: 2010/11 | B21: 0 | C21: 0 | D21: 0 | E21: 0 | F21: 0 | G21: 0.9772727273 | H21: 4.166666667 | I21: 2.285714286 | J21: 0 | K21: 0 | L21: 0 | M21: 0 | N21: 0 | O21: 0
A22: 2011/12 | B22: 0 | C22: 0 | D22: 0 | E22: 0 | F22: 0 | G22: 1.96455814 | H22: 0.9985769231 | I22: 1.725789474 | J22: 0 | K22: 0 | L22: 0 | M22: 0 | N22: 0 | O22: 0.9689
A23: 2012/13 | B23: 0 | C23: 0 | D23: 0 | E23: 0 | F23: 0 | G23: 1.953627907 | H23: 0.9909615385 | I23: 1.706 | J23: 0 | K23: 0 | L23: 0 | M23: 0 | N23: 0 | O23: 0.9549
A24: 2013/14 | B24: 0 | C24: 0 | D24: 0 | E24: 0 | F24: 0 | G24: 1.91572093 | H24: 0.969025641 | I24: 1.663263158 | J24: 0 | K24: 0 | L24: 0 | M24: 0 | N24: 0 | O24: 0.9318
A25: 2014/15 | B25: 0 | C25: 0 | D25: 0 | E25: 0 | F25: 0 | G25: 1.911209302 | H25: 0.9652948718 | I25: 1.641473684 | J25: 0 | K25: 0 | L25: 0 | M25: 0 | N25: 0 | O25: 0.9106
A26: 2015/16 | B26: 0 | C26: 0 | D26: 0 | E26: 0 | F26: 0 | G26: 1.918744186 | H26: 0.969525641 | I26: 1.63 | J26: 0 | K26: 0 | L26: 0 | M26: 0 | N26: 0 | O26: 0.8947
A28: Price Band 2 | B28: Residential 1 | C28: Residential 2 | D28: Residential 3 | E28: Commercial 1 | F28: Commercial 2 | G28: Demand-AdC | H28: Demand-AdNr | I28: Demand-AdS | J28: Demand-Peter | K28: Demand-PP | L28: Demand-River | M28: Demand-SE | N28: Demand-Tanunda | O28: Demand-Whyal
A29: =A5 -> 2006/07 | B29: 0 | C29: 0 | D29: 0 | E29: 0 | F29: 0 | G29: 16.61363636 | H29: 22.61111111 | I29: 7.619047619 | J29: 1 | K29: 0 | L29: 1 | M29: 3 | N29: 0 | O29: 1
A30: =A6 -> 2007/08 | B30: 0 | C30: 0 | D30: 0 | E30: 0 | F30: 0 | G30: 16.61363636 | H30: 22.61111111 | I30: 8 | J30: 1 | K30: 0 | L30: 1 | M30: 3 | N30: 0 | O30: 1
A31: =A7 -> 2008/09 | B31: 0 | C31: 0 | D31: 0 | E31: 0 | F31: 0 | G31: 16.61363636 | H31: 22.61111111 | I31: 8.380952381 | J31: 1 | K31: 0 | L31: 1 | M31: 3 | N31: 3 | O31: 1
A32: =A8 -> 2009/10 | B32: 0 | C32: 0 | D32: 0 | E32: 0 | F32: 0 | G32: 16.61363636 | H32: 22.91666667 | I32: 8.761904762 | J32: 1 | K32: 0 | L32: 1 | M32: 3 | N32: 4 | O32: 1
A33: =A9 -> 2010/11 | B33: 0 | C33: 0 | D33: 0 | E33: 0 | F33: 0 | G33: 16.61363636 | H33: 22.91666667 | I33: 9.142857143 | J33: 1 | K33: 0 | L33: 1.5 | M33: 3 | N33: 5 | O33: 1
A34: =A22 -> 2011/12 | B34: 0 | C34: 0 | D34: 0 | E34: 0 | F34: 0 | G34: 12.76962791 | H34: 22.96726923 | I34: 5.177368421 | J34: 0 | K34: 0 | L34: 0 | M34: 0 | N34: 0 | O34: 0
A35: =A23 -> 2012/13 | B35: 0 | C35: 0 | D35: 0 | E35: 0 | F35: 0 | G35: 12.6985814 | H35: 22.79211538 | I35: 6.118 | J35: 0 | K35: 0 | L35: 0 | M35: 0 | N35: 0 | O35: 0
A36: =A24 -> 2013/14 | B36: 0 | C36: 0 | D36: 0 | E36: 0 | F36: 0 | G36: 12.45218605 | H36: 22.28758974 | I36: 6.989789474 | J36: 0 | K36: 0 | L36: 0 | M36: 0 | N36: 0 | O36: 0
A37: =A25 -> 2014/15 | B37: 0 | C37: 0 | D37: 0 | E37: 0 | F37: 0 | G37: 12.42286047 | H37: 22.20178205 | I37: 7.924421053 | J37: 0 | K37: 0 | L37: 0 | M37: 0 | N37: 0 | O37: 0
A38: =A26 -> 2015/16 | B38: 0 | C38: 0 | D38: 0 | E38: 0 | F38: 0 | G38: 12.47183721 | H38: 22.29908974 | I38: 8.89 | J38: 0 | K38: 0 | L38: 0 | M38: 0 | N38: 0 | O38: 0
A40: Price Band 3 | B40: Residential 1 | C40: Residential 2 | D40: Residential 3 | E40: Commercial 1 | F40: Commercial 2 | G40: Demand-AdC | H40: Demand-AdNr | I40: Demand-AdS | J40: Demand-Peter | K40: Demand-PP | L40: Demand-River | M40: Demand-SE | N40: Demand-Tanunda | O40: Demand-Whyal
A41: =A5 -> 2006/07 | B41: 0 | C41: 0 | D41: 0 | E41: 0 | F41: 0 | G41: 24.43181818 | H41: 41.11111111 | I41: 10.47619048 | J41: 0 | K41: 1 | L41: 1 | M41: 2 | N41: 0 | O41: 0
A42: =A6 -> 2007/08 | B42: 0 | C42: 0 | D42: 0 | E42: 0 | F42: 0 | G42: 24.43181818 | H42: 41.11111111 | I42: 11 | J42: 0 | K42: 1 | L42: 1 | M42: 2 | N42: 0 | O42: 0
A43: =A7 -> 2008/09 | B43: 0 | C43: 0 | D43: 0 | E43: 0 | F43: 0 | G43: 24.43181818 | H43: 41.11111111 | I43: 11.52380952 | J43: 0 | K43: 1 | L43: 1 | M43: 2 | N43: 0 | O43: 0
A44: =A8 -> 2009/10 | B44: 0 | C44: 0 | D44: 0 | E44: 0 | F44: 0 | G44: 24.43181818 | H44: 41.66666667 | I44: 12.04761905 | J44: 0 | K44: 1 | L44: 1 | M44: 2 | N44: 0 | O44: 0
A45: =A9 -> 2010/11 | B45: 0 | C45: 0 | D45: 0 | E45: 0 | F45: 0 | G45: 24.43181818 | H45: 41.66666667 | I45: 12.57142857 | J45: 0 | K45: 1 | L45: 1.5 | M45: 2 | N45: 0 | O45: 0
A46: =A34 -> 2011/12 | B46: 0 | C46: 0 | D46: 0 | E46: 0 | F46: 0 | G46: 26.52153488 | H46: 45 | I46: 9.491842105 | J46: 1.0248 | K46: 0 | L46: 2.1489 | M46: 4.8821 | N46: 0 | O46: 0
A47: =A35 -> 2012/13 | B47: 0 | C47: 0 | D47: 0 | E47: 0 | F47: 0 | G47: 26.37397674 | H47: 45 | I47: 9.383 | J47: 1.0289 | K47: 0 | L47: 2.1723 | M47: 4.8562 | N47: 1 | O47: 0
A48: =A36 -> 2013/14 | B48: 0 | C48: 0 | D48: 0 | E48: 0 | F48: 0 | G48: 25.86223256 | H48: 44 | I48: 9.147947368 | J48: 1.0273 | K48: 0 | L48: 2.1797 | M48: 4.7745 | N48: 1 | O48: 0
A49: =A37 -> 2014/15 | B49: 0 | C49: 0 | D49: 0 | E49: 0 | F49: 0 | G49: 25.80132558 | H49: 43 | I49: 9.028105263 | J49: 1.0287 | K49: 0 | L49: 2.216 | M49: 4.7568 | N49: 1 | O49: 0
A50: =A38 -> 2015/16 | B50: 0 | C50: 0 | D50: 0 | E50: 0 | F50: 0 | G50: 25.90304651 | H50: 44 | I50: 8.965 | J50: 1.0327 | K50: 0 | L50: 2.2633 | M50: 4.7689 | N50: 1 | O50: 0
A52: Price Band 4 | B52: Residential 1 | C52: Residential 2 | D52: Residential 3 | E52: Commercial 1 | F52: Commercial 2 | G52: Demand-AdC | H52: Demand-AdNr | I52: Demand-AdS | J52: Demand-Peter | K52: Demand-PP | L52: Demand-River | M52: Demand-SE | N52: Demand-Tanunda | O52: Demand-Whyal
A53: =A5 -> 2006/07 | B53: 0 | C53: 0 | D53: 0 | E53: 0 | F53: 0 | G53: 0.9772727273 | H53: 6.166666667 | I53: 0 | J53: 0 | K53: 1 | L53: 0 | M53: 0 | N53: 0 | O53: 0
A54: =A6 -> 2007/08 | B54: 0 | C54: 0 | D54: 0 | E54: 0 | F54: 0 | G54: 0.9772727273 | H54: 6.166666667 | I54: 0 | J54: 0 | K54: 1 | L54: 0 | M54: 0 | N54: 0 | O54: 0
A55: =A7 -> 2008/09 | B55: 0 | C55: 0 | D55: 0 | E55: 0 | F55: 0 | G55: 0.9772727273 | H55: 6.166666667 | I55: 0 | J55: 0 | K55: 1 | L55: 0 | M55: 0 | N55: 0 | O55: 0
A56: =A8 -> 2009/10 | B56: 0 | C56: 0 | D56: 0 | E56: 0 | F56: 0 | G56: 0.9772727273 | H56: 6.25 | I56: 0 | J56: 0 | K56: 1 | L56: 0 | M56: 0 | N56: 0 | O56: 0
A57: =A9 -> 2010/11 | B57: 0 | C57: 0 | D57: 0 | E57: 0 | F57: 0 | G57: 0.9772727273 | H57: 6.25 | I57: 0 | J57: 0 | K57: 1 | L57: 0 | M57: 0 | N57: 0 | O57: 0
A58: =A46 -> 2011/12 | B58: 0 | C58: 0 | D58: 0 | E58: 0 | F58: 0 | G58: 0.9822790698 | H58: 5 | I58: 0 | J58: 0 | K58: 0 | L58: 0 | M58: 0 | N58: 0 | O58: 0
A59: =A47 -> 2012/13 | B59: 0 | C59: 0 | D59: 0 | E59: 0 | F59: 0 | G59: 0.9768139535 | H59: 5 | I59: 0 | J59: 0 | K59: 0 | L59: 0 | M59: 0 | N59: 0 | O59: 0
A60: =A48 -> 2013/14 | B60: 0 | C60: 0 | D60: 0 | E60: 0 | F60: 0 | G60: 0.9578604651 | H60: 5 | I60: 0 | J60: 0 | K60: 0 | L60: 0 | M60: 0 | N60: 0 | O60: 0
A61: =A49 -> 2014/15 | B61: 0 | C61: 0 | D61: 0 | E61: 0 | F61: 0 | G61: 0.9556046512 | H61: 5 | I61: 0 | J61: 0 | K61: 0 | L61: 0 | M61: 0 | N61: 0 | O61: 0
A62: =A50 -> 2015/16 | B62: 0 | C62: 0 | D62: 0 | E62: 0 | F62: 0 | G62: 0.959372093 | H62: 5 | I62: 0 | J62: 0 | K62: 0 | L62: 0 | M62: 0 | N62: 0 | O62: 0
A64: Price Band 5 | B64: Residential 1 | C64: Residential 2 | D64: Residential 3 | E64: Commercial 1 | F64: Commercial 2 | G64: Demand-AdC | H64: Demand-AdNr | I64: Demand-AdS | J64: Demand-Peter | K64: Demand-PP | L64: Demand-River | M64: Demand-SE | N64: Demand-Tanunda | O64: Demand-Whyal
A65: =A5 -> 2006/07 | B65: 0 | C65: 0 | D65: 0 | E65: 0 | F65: 0 | G65: 0 | H65: 0 | I65: 0 | J65: 0 | K65: 0 | L65: 0 | M65: 0 | N65: 0 | O65: 0
A66: =A6 -> 2007/08 | B66: 0 | C66: 0 | D66: 0 | E66: 0 | F66: 0 | G66: 0 | H66: 0 | I66: 0 | J66: 0 | K66: 0 | L66: 0 | M66: 0 | N66: 0 | O66: 0
A67: =A7 -> 2008/09 | B67: 0 | C67: 0 | D67: 0 | E67: 0 | F67: 0 | G67: 0 | H67: 0 | I67: 0 | J67: 0 | K67: 0 | L67: 0 | M67: 0 | N67: 0 | O67: 0
A68: =A8 -> 2009/10 | B68: 0 | C68: 0 | D68: 0 | E68: 0 | F68: 0 | G68: 0 | H68: 0 | I68: 0 | J68: 0 | K68: 0 | L68: 0 | M68: 0 | N68: 0 | O68: 0
A69: =A9 -> 2010/11 | B69: 0 | C69: 0 | D69: 0 | E69: 0 | F69: 0 | G69: 0 | H69: 0 | I69: 0 | J69: 0 | K69: 0 | L69: 0 | M69: 0 | N69: 0 | O69: 0
A70: =A58 -> 2011/12 | B70: 0 | C70: 0 | D70: 0 | E70: 0 | F70: 0 | G70: 0 | H70: 0 | I70: 0 | J70: 0 | K70: 0.9875 | L70: 0 | M70: 0 | N70: 0 | O70: 0
A71: =A59 -> 2012/13 | B71: 0 | C71: 0 | D71: 0 | E71: 0 | F71: 0 | G71: 0 | H71: 0 | I71: 0 | J71: 0 | K71: 0.9864 | L71: 0 | M71: 0 | N71: 0 | O71: 0
A72: =A60 -> 2013/14 | B72: 0 | C72: 0 | D72: 0 | E72: 0 | F72: 0 | G72: 0 | H72: 0 | I72: 0 | J72: 0 | K72: 0.9724 | L72: 0 | M72: 0 | N72: 0 | O72: 0
A73: =A61 -> 2014/15 | B73: 0 | C73: 0 | D73: 0 | E73: 0 | F73: 0 | G73: 0 | H73: 0 | I73: 0 | J73: 0 | K73: 0.9671 | L73: 0 | M73: 0 | N73: 0 | O73: 0
A74: =A62 -> 2015/16 | B74: 0 | C74: 0 | D74: 0 | E74: 0 | F74: 0 | G74: 0 | H74: 0 | I74: 0 | J74: 0 | K74: 0.9674 | L74: 0 | M74: 0 | N74: 0 | O74: 0
A76: Summary | B76: Residential 1 | C76: Residential 2 | D76: Residential 3 | E76: Commercial 1 | F76: Commercial 2 | G76: Demand-AdC | H76: Demand-AdNr | I76: Demand-AdS | J76: Demand-Peter | K76: Demand-PP | L76: Demand-River | M76: Demand-SE | N76: Demand-Tanunda | O76: Demand-Whyal
A77: =A65 -> 2006/07 | B77: =B5+B17+B29+B41+B53+B65 -> 366251 | C77: 0 | D77: 0 | E77: 9251 | F77: 0 | G77: =G17+G29+G41+G53+G65 -> 43 | H77: =H17+H29+H41+H53+H65 -> 74 | I77: 20 | J77: 1 | K77: 2 | L77: 2 | M77: 5 | N77: 0 | O77: 1
A78: 2007/08 | B78: 374118 | C78: 0 | D78: 0 | E78: 9387 | F78: 0 | G78: 43 | H78: =H18+H30+H42+H54+H66 -> 74 | I78: 21 | J78: 1 | K78: 2 | L78: 2 | M78: 5 | N78: 0 | O78: 1
A79: 2008/09 | B79: 381428 | C79: 0 | D79: 0 | E79: 9506 | F79: 0 | G79: 43 | H79: =H19+H31+H43+H55+H67 -> 74 | I79: 22 | J79: 1 | K79: 2 | L79: 2 | M79: 5 | N79: 3 | O79: 1
A80: 2009/10 | B80: 382348.3147 | C80: 0 | D80: 0 | E80: 9090.737637 | F80: 0 | G80: 43 | H80: =H20+H32+H44+H56+H68 -> 75 | I80: 23 | J80: 1 | K80: 2 | L80: 2 | M80: 5 | N80: 4 | O80: 1
A81: 2010/11 | B81: 393154.9 | C81: 0 | D81: 0 | E81: 9929.6 | F81: 0 | G81: 43 | H81: =H21+H33+H45+H57+H69 -> 75 | I81: 24 | J81: 1 | K81: 2 | L81: 3 | M81: 5 | N81: 5 | O81: 1
A82: 2011/12 | B82: 401564.3 | C82: 0 | D82: 0 | E82: 10063.6 | F82: 0 | G82: 42.238 | H82: =H22+H34+H46+H58+H70 -> 73.96584615 | I82: =I22+I34+I46+I58+I70 -> 16.395 | J82: 1.0248 | K82: 0.9875 | L82: 2.1489 | M82: 4.8821 | N82: 0 | O82: 0.9689
A83: 2012/13 | B83: 408478.4 | C83: 0 | D83: 0 | E83: 10228.8 | F83: 0 | G83: 42.003 | H83: =H23+H35+H47+H59+H71 -> 73.78307692 | I83: =I23+I35+I47+I59+I71 -> 17.207 | J83: 1.0289 | K83: 0.9864 | L83: 2.1723 | M83: 4.8562 | N83: 1 | O83: 0.9549
A84: 2013/14 | B84: 415705.3 | C84: 0 | D84: 0 | E84: 10187.2 | F84: 0 | G84: 41.188 | H84: =H24+H36+H48+H60+H72 -> 72.25661538 | I84: =I24+I36+I48+I60+I72 -> 17.801 | J84: 1.0273 | K84: 0.9724 | L84: 2.1797 | M84: 4.7745 | N84: 1 | O84: 0.9318
A85: 2014/15 | B85: 423285.8 | C85: 0 | D85: 0 | E85: 10217.6 | F85: 0 | G85: 41.091 | H85: =H25+H37+H49+H61+H73 -> 71.16707692 | I85: =I25+I37+I49+I61+I73 -> 18.594 | J85: 1.0287 | K85: 0.9671 | L85: 2.216 | M85: 4.7568 | N85: 1 | O85: 0.9106
A86: 2015/16 | B86: 431480.3 | C86: 0 | D86: 0 | E86: 10314 | F86: 0 | G86: 41.253 | H86: =H26+H38+H50+H62+H74 -> 72.26861538 | I86: =I26+I38+I50+I62+I74 -> 19.485 | J86: 1.0327 | K86: 0.9674 | L86: 2.2633 | M86: 4.7689 | N86: 1 | O86: 0.8947

Sheet No of Connections Summ (hidden)
B1: ="ENVESTRA - Tariff model for "&'General Inputs'!#REF!&" ("&'General Inputs'!#REF!&")" -> 
B2: Number of connections - Summary
B3: Back to table of contents
B4: This page summarises the total number of connections input for each cost pools
B7: Period Ending 30 June | J7: 2005 | K7: =J7+1 -> 2006 | L7: 2007 | M7: 2008 | N7: 2009 | O7: 2010 | P7: 2011
B11: Connections data
C13: Number of connections
C16: Total number of connections
C17: in connections units
F18: Short name | G18: Price bands
C20: ='General Inputs'!#REF! ->  | F20: ='General Inputs'!B20 -> Residential 1 | G20: Total | L20: =MAX('Connection Numbers Inputs'!B5,SUM('Connection Numbers Inputs'!B17,'Connection Numbers Inputs'!B29,'Connection Numbers Inputs'!B41,'Connection Numbers Inputs'!B53,'Connection Numbers Inputs'!B65)) -> 366251 | M20: =MAX('Connection Numbers Inputs'!B6,SUM('Connection Numbers Inputs'!B18,'Connection Numbers Inputs'!B30,'Connection Numbers Inputs'!B42,'Connection Numbers Inputs'!B54,'Connection Numbers Inputs'!B66)) -> 374118 | N20: =MAX('Connection Numbers Inputs'!B7,SUM('Connection Numbers Inputs'!B19,'Connection Numbers Inputs'!B31,'Connection Numbers Inputs'!B43,'Connection Numbers Inputs'!B55,'Connection Numbers Inputs'!B67)) -> 381428 | O20: =MAX('Connection Numbers Inputs'!B8,SUM('Connection Numbers Inputs'!B20,'Connection Numbers Inputs'!B32,'Connection Numbers Inputs'!B44,'Connection Numbers Inputs'!B56,'Connection Numbers Inputs'!B68)) -> 382348.3147 | P20: =MAX('Connection Numbers Inputs'!B9,SUM('Connection Numbers Inputs'!B21,'Connection Numbers Inputs'!B33,'Connection Numbers Inputs'!B45,'Connection Numbers Inputs'!B57,'Connection Numbers Inputs'!B69)) -> 393154.9
C21: ='General Inputs'!#REF! ->  | F21: ='General Inputs'!B21 -> Residential 2 | G21: Total | L21: =MAX('Connection Numbers Inputs'!C5,SUM('Connection Numbers Inputs'!C17,'Connection Numbers Inputs'!C29,'Connection Numbers Inputs'!C41,'Connection Numbers Inputs'!C53,'Connection Numbers Inputs'!C65)) -> 0 | M21: =MAX('Connection Numbers Inputs'!C6,SUM('Connection Numbers Inputs'!C18,'Connection Numbers Inputs'!C30,'Connection Numbers Inputs'!C42,'Connection Numbers Inputs'!C54,'Connection Numbers Inputs'!C66)) -> 0 | N21: =MAX('Connection Numbers Inputs'!C7,SUM('Connection Numbers Inputs'!C19,'Connection Numbers Inputs'!C31,'Connection Numbers Inputs'!C43,'Connection Numbers Inputs'!C55,'Connection Numbers Inputs'!C67)) -> 0 | O21: =MAX('Connection Numbers Inputs'!C8,SUM('Connection Numbers Inputs'!C20,'Connection Numbers Inputs'!C32,'Connection Numbers Inputs'!C44,'Connection Numbers Inputs'!C56,'Connection Numbers Inputs'!C68)) -> 0 | P21: =MAX('Connection Numbers Inputs'!C9,SUM('Connection Numbers Inputs'!C21,'Connection Numbers Inputs'!C33,'Connection Numbers Inputs'!C45,'Connection Numbers Inputs'!C57,'Connection Numbers Inputs'!C69)) -> 0
C22: ='General Inputs'!#REF! ->  | F22: ='General Inputs'!B22 -> Residential 3 | G22: Total | L22: =MAX('Connection Numbers Inputs'!D5,SUM('Connection Numbers Inputs'!D17,'Connection Numbers Inputs'!D29,'Connection Numbers Inputs'!D41,'Connection Numbers Inputs'!D53,'Connection Numbers Inputs'!D65)) -> 0 | M22: =MAX('Connection Numbers Inputs'!D6,SUM('Connection Numbers Inputs'!D18,'Connection Numbers Inputs'!D30,'Connection Numbers Inputs'!D42,'Connection Numbers Inputs'!D54,'Connection Numbers Inputs'!D66)) -> 0 | N22: =MAX('Connection Numbers Inputs'!D7,SUM('Connection Numbers Inputs'!D19,'Connection Numbers Inputs'!D31,'Connection Numbers Inputs'!D43,'Connection Numbers Inputs'!D55,'Connection Numbers Inputs'!D67)) -> 0 | O22: =MAX('Connection Numbers Inputs'!D8,SUM('Connection Numbers Inputs'!D20,'Connection Numbers Inputs'!D32,'Connection Numbers Inputs'!D44,'Connection Numbers Inputs'!D56,'Connection Numbers Inputs'!D68)) -> 0 | P22: =MAX('Connection Numbers Inputs'!D9,SUM('Connection Numbers Inputs'!D21,'Connection Numbers Inputs'!D33,'Connection Numbers Inputs'!D45,'Connection Numbers Inputs'!D57,'Connection Numbers Inputs'!D69)) -> 0
C23: ='General Inputs'!#REF! ->  | F23: ='General Inputs'!B23 -> Commercial 1 | G23: Total | L23: =MAX('Connection Numbers Inputs'!E5,SUM('Connection Numbers Inputs'!E17,'Connection Numbers Inputs'!E29,'Connection Numbers Inputs'!E41,'Connection Numbers Inputs'!E53,'Connection Numbers Inputs'!E65)) -> 9251 | M23: =MAX('Connection Numbers Inputs'!E6,SUM('Connection Numbers Inputs'!E18,'Connection Numbers Inputs'!E30,'Connection Numbers Inputs'!E42,'Connection Numbers Inputs'!E54,'Connection Numbers Inputs'!E66)) -> 9387 | N23: =MAX('Connection Numbers Inputs'!E7,SUM('Connection Numbers Inputs'!E19,'Connection Numbers Inputs'!E31,'Connection Numbers Inputs'!E43,'Connection Numbers Inputs'!E55,'Connection Numbers Inputs'!E67)) -> 9506 | O23: =MAX('Connection Numbers Inputs'!E8,SUM('Connection Numbers Inputs'!E20,'Connection Numbers Inputs'!E32,'Connection Numbers Inputs'!E44,'Connection Numbers Inputs'!E56,'Connection Numbers Inputs'!E68)) -> 9090.737637 | P23: =MAX('Connection Numbers Inputs'!E9,SUM('Connection Numbers Inputs'!E21,'Connection Numbers Inputs'!E33,'Connection Numbers Inputs'!E45,'Connection Numbers Inputs'!E57,'Connection Numbers Inputs'!E69)) -> 9929.6
C24: ='General Inputs'!#REF! ->  | F24: ='General Inputs'!B24 -> Commercial 2 | G24: Total | L24: =MAX('Connection Numbers Inputs'!F5,SUM('Connection Numbers Inputs'!F17,'Connection Numbers Inputs'!F29,'Connection Numbers Inputs'!F41,'Connection Numbers Inputs'!F53,'Connection Numbers Inputs'!F65)) -> 0 | M24: =MAX('Connection Numbers Inputs'!F6,SUM('Connection Numbers Inputs'!F18,'Connection Numbers Inputs'!F30,'Connection Numbers Inputs'!F42,'Connection Numbers Inputs'!F54,'Connection Numbers Inputs'!F66)) -> 0 | N24: =MAX('Connection Numbers Inputs'!F7,SUM('Connection Numbers Inputs'!F19,'Connection Numbers Inputs'!F31,'Connection Numbers Inputs'!F43,'Connection Numbers Inputs'!F55,'Connection Numbers Inputs'!F67)) -> 0 | O24: =MAX('Connection Numbers Inputs'!F8,SUM('Connection Numbers Inputs'!F20,'Connection Numbers Inputs'!F32,'Connection Numbers Inputs'!F44,'Connection Numbers Inputs'!F56,'Connection Numbers Inputs'!F68)) -> 0 | P24: =MAX('Connection Numbers Inputs'!F9,SUM('Connection Numbers Inputs'!F21,'Connection Numbers Inputs'!F33,'Connection Numbers Inputs'!F45,'Connection Numbers Inputs'!F57,'Connection Numbers Inputs'!F69)) -> 0
C25: ='General Inputs'!#REF! ->  | F25: ='General Inputs'!B25 -> Demand-AdNr | G25: Total | L25: =MAX('Connection Numbers Inputs'!H5,SUM('Connection Numbers Inputs'!H17,'Connection Numbers Inputs'!H29,'Connection Numbers Inputs'!H41,'Connection Numbers Inputs'!H53,'Connection Numbers Inputs'!H65)) -> 74 | M25: =MAX('Connection Numbers Inputs'!H6,SUM('Connection Numbers Inputs'!H18,'Connection Numbers Inputs'!H30,'Connection Numbers Inputs'!H42,'Connection Numbers Inputs'!H54,'Connection Numbers Inputs'!H66)) -> 74 | N25: =MAX('Connection Numbers Inputs'!H7,SUM('Connection Numbers Inputs'!H19,'Connection Numbers Inputs'!H31,'Connection Numbers Inputs'!H43,'Connection Numbers Inputs'!H55,'Connection Numbers Inputs'!H67)) -> 74 | O25: =MAX('Connection Numbers Inputs'!H8,SUM('Connection Numbers Inputs'!H20,'Connection Numbers Inputs'!H32,'Connection Numbers Inputs'!H44,'Connection Numbers Inputs'!H56,'Connection Numbers Inputs'!H68)) -> 75 | P25: =MAX('Connection Numbers Inputs'!H9,SUM('Connection Numbers Inputs'!H21,'Connection Numbers Inputs'!H33,'Connection Numbers Inputs'!H45,'Connection Numbers Inputs'!H57,'Connection Numbers Inputs'!H69)) -> 75
C26: ='General Inputs'!#REF! ->  | F26: ='General Inputs'!B26 -> Demand-AdC | G26: Total | L26: =MAX('Connection Numbers Inputs'!G5,SUM('Connection Numbers Inputs'!G17,'Connection Numbers Inputs'!G29,'Connection Numbers Inputs'!G41,'Connection Numbers Inputs'!G53,'Connection Numbers Inputs'!G65)) -> 43 | M26: =MAX('Connection Numbers Inputs'!G6,SUM('Connection Numbers Inputs'!G18,'Connection Numbers Inputs'!G30,'Connection Numbers Inputs'!G42,'Connection Numbers Inputs'!G54,'Connection Numbers Inputs'!G66)) -> 43 | N26: =MAX('Connection Numbers Inputs'!G7,SUM('Connection Numbers Inputs'!G19,'Connection Numbers Inputs'!G31,'Connection Numbers Inputs'!G43,'Connection Numbers Inputs'!G55,'Connection Numbers Inputs'!G67)) -> 43 | O26: =MAX('Connection Numbers Inputs'!G8,SUM('Connection Numbers Inputs'!G20,'Connection Numbers Inputs'!G32,'Connection Numbers Inputs'!G44,'Connection Numbers Inputs'!G56,'Connection Numbers Inputs'!G68)) -> 43 | P26: =MAX('Connection Numbers Inputs'!G9,SUM('Connection Numbers Inputs'!G21,'Connection Numbers Inputs'!G33,'Connection Numbers Inputs'!G45,'Connection Numbers Inputs'!G57,'Connection Numbers Inputs'!G69)) -> 43
C27: ='General Inputs'!#REF! ->  | F27: ='General Inputs'!B27 -> Demand-AdS | G27: Total | L27: =MAX('Connection Numbers Inputs'!I5,SUM('Connection Numbers Inputs'!I17,'Connection Numbers Inputs'!I29,'Connection Numbers Inputs'!I41,'Connection Numbers Inputs'!I53,'Connection Numbers Inputs'!I65)) -> 20 | M27: =MAX('Connection Numbers Inputs'!I6,SUM('Connection Numbers Inputs'!I18,'Connection Numbers Inputs'!I30,'Connection Numbers Inputs'!I42,'Connection Numbers Inputs'!I54,'Connection Numbers Inputs'!I66)) -> 21 | N27: =MAX('Connection Numbers Inputs'!I7,SUM('Connection Numbers Inputs'!I19,'Connection Numbers Inputs'!I31,'Connection Numbers Inputs'!I43,'Connection Numbers Inputs'!I55,'Connection Numbers Inputs'!I67)) -> 22 | O27: =MAX('Connection Numbers Inputs'!I8,SUM('Connection Numbers Inputs'!I20,'Connection Numbers Inputs'!I32,'Connection Numbers Inputs'!I44,'Connection Numbers Inputs'!I56,'Connection Numbers Inputs'!I68)) -> 23 | P27: =MAX('Connection Numbers Inputs'!I9,SUM('Connection Numbers Inputs'!I21,'Connection Numbers Inputs'!I33,'Connection Numbers Inputs'!I45,'Connection Numbers Inputs'!I57,'Connection Numbers Inputs'!I69)) -> 24
C28: ='General Inputs'!#REF! ->  | F28: ='General Inputs'!B28 -> Demand-PP | G28: Total | L28: =MAX('Connection Numbers Inputs'!K5,SUM('Connection Numbers Inputs'!K17,'Connection Numbers Inputs'!K29,'Connection Numbers Inputs'!K41,'Connection Numbers Inputs'!K53,'Connection Numbers Inputs'!K65)) -> 2 | M28: =MAX('Connection Numbers Inputs'!K6,SUM('Connection Numbers Inputs'!K18,'Connection Numbers Inputs'!K30,'Connection Numbers Inputs'!K42,'Connection Numbers Inputs'!K54,'Connection Numbers Inputs'!K66)) -> 2 | N28: =MAX('Connection Numbers Inputs'!K7,SUM('Connection Numbers Inputs'!K19,'Connection Numbers Inputs'!K31,'Connection Numbers Inputs'!K43,'Connection Numbers Inputs'!K55,'Connection Numbers Inputs'!K67)) -> 2 | O28: =MAX('Connection Numbers Inputs'!K8,SUM('Connection Numbers Inputs'!K20,'Connection Numbers Inputs'!K32,'Connection Numbers Inputs'!K44,'Connection Numbers Inputs'!K56,'Connection Numbers Inputs'!K68)) -> 2 | P28: =MAX('Connection Numbers Inputs'!K9,SUM('Connection Numbers Inputs'!K21,'Connection Numbers Inputs'!K33,'Connection Numbers Inputs'!K45,'Connection Numbers Inputs'!K57,'Connection Numbers Inputs'!K69)) -> 2
C29: ='General Inputs'!#REF! ->  | F29: ='General Inputs'!B29 -> Demand-Peter | G29: Total | L29: =MAX('Connection Numbers Inputs'!J5,SUM('Connection Numbers Inputs'!J17,'Connection Numbers Inputs'!J29,'Connection Numbers Inputs'!J41,'Connection Numbers Inputs'!J53,'Connection Numbers Inputs'!J65)) -> 1 | M29: =MAX('Connection Numbers Inputs'!J6,SUM('Connection Numbers Inputs'!J18,'Connection Numbers Inputs'!J30,'Connection Numbers Inputs'!J42,'Connection Numbers Inputs'!J54,'Connection Numbers Inputs'!J66)) -> 1 | N29: =MAX('Connection Numbers Inputs'!J7,SUM('Connection Numbers Inputs'!J19,'Connection Numbers Inputs'!J31,'Connection Numbers Inputs'!J43,'Connection Numbers Inputs'!J55,'Connection Numbers Inputs'!J67)) -> 1 | O29: =MAX('Connection Numbers Inputs'!J8,SUM('Connection Numbers Inputs'!J20,'Connection Numbers Inputs'!J32,'Connection Numbers Inputs'!J44,'Connection Numbers Inputs'!J56,'Connection Numbers Inputs'!J68)) -> 1 | P29: =MAX('Connection Numbers Inputs'!J9,SUM('Connection Numbers Inputs'!J21,'Connection Numbers Inputs'!J33,'Connection Numbers Inputs'!J45,'Connection Numbers Inputs'!J57,'Connection Numbers Inputs'!J69)) -> 1
C30: ='General Inputs'!#REF! ->  | F30: ='General Inputs'!B30 -> Demand-River | G30: Total | L30: =MAX('Connection Numbers Inputs'!L5,SUM('Connection Numbers Inputs'!L17,'Connection Numbers Inputs'!L29,'Connection Numbers Inputs'!L41,'Connection Numbers Inputs'!L53,'Connection Numbers Inputs'!L65)) -> 2 | M30: =MAX('Connection Numbers Inputs'!L6,SUM('Connection Numbers Inputs'!L18,'Connection Numbers Inputs'!L30,'Connection Numbers Inputs'!L42,'Connection Numbers Inputs'!L54,'Connection Numbers Inputs'!L66)) -> 2 | N30: =MAX('Connection Numbers Inputs'!L7,SUM('Connection Numbers Inputs'!L19,'Connection Numbers Inputs'!L31,'Connection Numbers Inputs'!L43,'Connection Numbers Inputs'!L55,'Connection Numbers Inputs'!L67)) -> 2 | O30: =MAX('Connection Numbers Inputs'!L8,SUM('Connection Numbers Inputs'!L20,'Connection Numbers Inputs'!L32,'Connection Numbers Inputs'!L44,'Connection Numbers Inputs'!L56,'Connection Numbers Inputs'!L68)) -> 2 | P30: =MAX('Connection Numbers Inputs'!L9,SUM('Connection Numbers Inputs'!L21,'Connection Numbers Inputs'!L33,'Connection Numbers Inputs'!L45,'Connection Numbers Inputs'!L57,'Connection Numbers Inputs'!L69)) -> 3
C31: ='General Inputs'!#REF! ->  | F31: ='General Inputs'!B31 -> Demand-SE | G31: Total | L31: =MAX('Connection Numbers Inputs'!M5,SUM('Connection Numbers Inputs'!M17,'Connection Numbers Inputs'!M29,'Connection Numbers Inputs'!M41,'Connection Numbers Inputs'!M53,'Connection Numbers Inputs'!M65)) -> 5 | M31: =MAX('Connection Numbers Inputs'!M6,SUM('Connection Numbers Inputs'!M18,'Connection Numbers Inputs'!M30,'Connection Numbers Inputs'!M42,'Connection Numbers Inputs'!M54,'Connection Numbers Inputs'!M66)) -> 5 | N31: =MAX('Connection Numbers Inputs'!M7,SUM('Connection Numbers Inputs'!M19,'Connection Numbers Inputs'!M31,'Connection Numbers Inputs'!M43,'Connection Numbers Inputs'!M55,'Connection Numbers Inputs'!M67)) -> 5 | O31: =MAX('Connection Numbers Inputs'!M8,SUM('Connection Numbers Inputs'!M20,'Connection Numbers Inputs'!M32,'Connection Numbers Inputs'!M44,'Connection Numbers Inputs'!M56,'Connection Numbers Inputs'!M68)) -> 5 | P31: =MAX('Connection Numbers Inputs'!M9,SUM('Connection Numbers Inputs'!M21,'Connection Numbers Inputs'!M33,'Connection Numbers Inputs'!M45,'Connection Numbers Inputs'!M57,'Connection Numbers Inputs'!M69)) -> 5
C32: ='General Inputs'!#REF! ->  | F32: ='General Inputs'!B32 -> Demand-Whyal | G32: Total | L32: =MAX('Connection Numbers Inputs'!O5,SUM('Connection Numbers Inputs'!O17,'Connection Numbers Inputs'!O29,'Connection Numbers Inputs'!O41,'Connection Numbers Inputs'!O53,'Connection Numbers Inputs'!O65)) -> 1 | M32: =MAX('Connection Numbers Inputs'!O6,SUM('Connection Numbers Inputs'!O18,'Connection Numbers Inputs'!O30,'Connection Numbers Inputs'!O42,'Connection Numbers Inputs'!O54,'Connection Numbers Inputs'!O66)) -> 1 | N32: =MAX('Connection Numbers Inputs'!O7,SUM('Connection Numbers Inputs'!O19,'Connection Numbers Inputs'!O31,'Connection Numbers Inputs'!O43,'Connection Numbers Inputs'!O55,'Connection Numbers Inputs'!O67)) -> 1 | O32: =MAX('Connection Numbers Inputs'!O8,SUM('Connection Numbers Inputs'!O20,'Connection Numbers Inputs'!O32,'Connection Numbers Inputs'!O44,'Connection Numbers Inputs'!O56,'Connection Numbers Inputs'!O68)) -> 1 | P32: =MAX('Connection Numbers Inputs'!O9,SUM('Connection Numbers Inputs'!O21,'Connection Numbers Inputs'!O33,'Connection Numbers Inputs'!O45,'Connection Numbers Inputs'!O57,'Connection Numbers Inputs'!O69)) -> 1
C33: ='General Inputs'!#REF! ->  | F33: ='General Inputs'!B33 -> Demand-Town | G33: Total | L33: =MAX('Connection Numbers Inputs'!N5,SUM('Connection Numbers Inputs'!N17,'Connection Numbers Inputs'!N29,'Connection Numbers Inputs'!N41,'Connection Numbers Inputs'!N53,'Connection Numbers Inputs'!N65)) -> 0 | M33: =MAX('Connection Numbers Inputs'!N6,SUM('Connection Numbers Inputs'!N18,'Connection Numbers Inputs'!N30,'Connection Numbers Inputs'!N42,'Connection Numbers Inputs'!N54,'Connection Numbers Inputs'!N66)) -> 0 | N33: =MAX('Connection Numbers Inputs'!N7,SUM('Connection Numbers Inputs'!N19,'Connection Numbers Inputs'!N31,'Connection Numbers Inputs'!N43,'Connection Numbers Inputs'!N55,'Connection Numbers Inputs'!N67)) -> 3 | O33: =MAX('Connection Numbers Inputs'!N8,SUM('Connection Numbers Inputs'!N20,'Connection Numbers Inputs'!N32,'Connection Numbers Inputs'!N44,'Connection Numbers Inputs'!N56,'Connection Numbers Inputs'!N68)) -> 4 | P33: =MAX('Connection Numbers Inputs'!N9,SUM('Connection Numbers Inputs'!N21,'Connection Numbers Inputs'!N33,'Connection Numbers Inputs'!N45,'Connection Numbers Inputs'!N57,'Connection Numbers Inputs'!N69)) -> 5
C34: ='General Inputs'!#REF! ->  | F34: ='General Inputs'!#REF! ->  | G34: Total | L34: =MAX('Connection Numbers Inputs'!#REF!,SUM('Connection Numbers Inputs'!#REF!,'Connection Numbers Inputs'!#REF!,'Connection Numbers Inputs'!#REF!,'Connection Numbers Inputs'!#REF!,'Connection Numbers Inputs'!#REF!)) ->  | M34: =MAX('Connection Numbers Inputs'!#REF!,SUM('Connection Numbers Inputs'!#REF!,'Connection Numbers Inputs'!#REF!,'Connection Numbers Inputs'!#REF!,'Connection Numbers Inputs'!#REF!,'Connection Numbers Inputs'!#REF!)) ->  | N34: =MAX('Connection Numbers Inputs'!#REF!,SUM('Connection Numbers Inputs'!#REF!,'Connection Numbers Inputs'!#REF!,'Connection Numbers Inputs'!#REF!,'Connection Numbers Inputs'!#REF!,'Connection Numbers Inputs'!#REF!)) ->  | O34: =MAX('Connection Numbers Inputs'!#REF!,SUM('Connection Numbers Inputs'!#REF!,'Connection Numbers Inputs'!#REF!,'Connection Numbers Inputs'!#REF!,'Connection Numbers Inputs'!#REF!,'Connection Numbers Inputs'!#REF!)) ->  | P34: =MAX('Connection Numbers Inputs'!#REF!,SUM('Connection Numbers Inputs'!#REF!,'Connection Numbers Inputs'!#REF!,'Connection Numbers Inputs'!#REF!,'Connection Numbers Inputs'!#REF!,'Connection Numbers Inputs'!#REF!)) -> 
C35: ='General Inputs'!#REF! ->  | F35: ='General Inputs'!#REF! ->  | G35: Total | L35: =MAX('Connection Numbers Inputs'!#REF!,SUM('Connection Numbers Inputs'!#REF!,'Connection Numbers Inputs'!#REF!,'Connection Numbers Inputs'!#REF!,'Connection Numbers Inputs'!#REF!,'Connection Numbers Inputs'!#REF!)) ->  | M35: =MAX('Connection Numbers Inputs'!#REF!,SUM('Connection Numbers Inputs'!#REF!,'Connection Numbers Inputs'!#REF!,'Connection Numbers Inputs'!#REF!,'Connection Numbers Inputs'!#REF!,'Connection Numbers Inputs'!#REF!)) ->  | N35: =MAX('Connection Numbers Inputs'!#REF!,SUM('Connection Numbers Inputs'!#REF!,'Connection Numbers Inputs'!#REF!,'Connection Numbers Inputs'!#REF!,'Connection Numbers Inputs'!#REF!,'Connection Numbers Inputs'!#REF!)) ->  | O35: =MAX('Connection Numbers Inputs'!#REF!,SUM('Connection Numbers Inputs'!#REF!,'Connection Numbers Inputs'!#REF!,'Connection Numbers Inputs'!#REF!,'Connection Numbers Inputs'!#REF!,'Connection Numbers Inputs'!#REF!)) ->  | P35: =MAX('Connection Numbers Inputs'!#REF!,SUM('Connection Numbers Inputs'!#REF!,'Connection Numbers Inputs'!#REF!,'Connection Numbers Inputs'!#REF!,'Connection Numbers Inputs'!#REF!,'Connection Numbers Inputs'!#REF!)) -> 
C36: ='General Inputs'!#REF! ->  | F36: ='General Inputs'!#REF! ->  | G36: Total | L36: =MAX('Connection Numbers Inputs'!#REF!,SUM('Connection Numbers Inputs'!#REF!,'Connection Numbers Inputs'!#REF!,'Connection Numbers Inputs'!#REF!,'Connection Numbers Inputs'!#REF!,'Connection Numbers Inputs'!#REF!)) ->  | M36: =MAX('Connection Numbers Inputs'!#REF!,SUM('Connection Numbers Inputs'!#REF!,'Connection Numbers Inputs'!#REF!,'Connection Numbers Inputs'!#REF!,'Connection Numbers Inputs'!#REF!,'Connection Numbers Inputs'!#REF!)) ->  | N36: =MAX('Connection Numbers Inputs'!#REF!,SUM('Connection Numbers Inputs'!#REF!,'Connection Numbers Inputs'!#REF!,'Connection Numbers Inputs'!#REF!,'Connection Numbers Inputs'!#REF!,'Connection Numbers Inputs'!#REF!)) ->  | O36: =MAX('Connection Numbers Inputs'!#REF!,SUM('Connection Numbers Inputs'!#REF!,'Connection Numbers Inputs'!#REF!,'Connection Numbers Inputs'!#REF!,'Connection Numbers Inputs'!#REF!,'Connection Numbers Inputs'!#REF!)) ->  | P36: =MAX('Connection Numbers Inputs'!#REF!,SUM('Connection Numbers Inputs'!#REF!,'Connection Numbers Inputs'!#REF!,'Connection Numbers Inputs'!#REF!,'Connection Numbers Inputs'!#REF!,'Connection Numbers Inputs'!#REF!)) -> 
C37: ='General Inputs'!#REF! ->  | F37: ='General Inputs'!#REF! ->  | G37: Total | L37: =MAX('Connection Numbers Inputs'!#REF!,SUM('Connection Numbers Inputs'!#REF!,'Connection Numbers Inputs'!#REF!,'Connection Numbers Inputs'!#REF!,'Connection Numbers Inputs'!#REF!,'Connection Numbers Inputs'!#REF!)) ->  | M37: =MAX('Connection Numbers Inputs'!#REF!,SUM('Connection Numbers Inputs'!#REF!,'Connection Numbers Inputs'!#REF!,'Connection Numbers Inputs'!#REF!,'Connection Numbers Inputs'!#REF!,'Connection Numbers Inputs'!#REF!)) ->  | N37: =MAX('Connection Numbers Inputs'!#REF!,SUM('Connection Numbers Inputs'!#REF!,'Connection Numbers Inputs'!#REF!,'Connection Numbers Inputs'!#REF!,'Connection Numbers Inputs'!#REF!,'Connection Numbers Inputs'!#REF!)) ->  | O37: =MAX('Connection Numbers Inputs'!#REF!,SUM('Connection Numbers Inputs'!#REF!,'Connection Numbers Inputs'!#REF!,'Connection Numbers Inputs'!#REF!,'Connection Numbers Inputs'!#REF!,'Connection Numbers Inputs'!#REF!)) ->  | P37: =MAX('Connection Numbers Inputs'!#REF!,SUM('Connection Numbers Inputs'!#REF!,'Connection Numbers Inputs'!#REF!,'Connection Numbers Inputs'!#REF!,'Connection Numbers Inputs'!#REF!,'Connection Numbers Inputs'!#REF!)) -> 
C38: ='General Inputs'!#REF! ->  | F38: ='General Inputs'!#REF! ->  | G38: Total | L38: =MAX('Connection Numbers Inputs'!#REF!,SUM('Connection Numbers Inputs'!#REF!,'Connection Numbers Inputs'!#REF!,'Connection Numbers Inputs'!#REF!,'Connection Numbers Inputs'!#REF!,'Connection Numbers Inputs'!#REF!)) ->  | M38: =MAX('Connection Numbers Inputs'!#REF!,SUM('Connection Numbers Inputs'!#REF!,'Connection Numbers Inputs'!#REF!,'Connection Numbers Inputs'!#REF!,'Connection Numbers Inputs'!#REF!,'Connection Numbers Inputs'!#REF!)) ->  | N38: =MAX('Connection Numbers Inputs'!#REF!,SUM('Connection Numbers Inputs'!#REF!,'Connection Numbers Inputs'!#REF!,'Connection Numbers Inputs'!#REF!,'Connection Numbers Inputs'!#REF!,'Connection Numbers Inputs'!#REF!)) ->  | O38: =MAX('Connection Numbers Inputs'!#REF!,SUM('Connection Numbers Inputs'!#REF!,'Connection Numbers Inputs'!#REF!,'Connection Numbers Inputs'!#REF!,'Connection Numbers Inputs'!#REF!,'Connection Numbers Inputs'!#REF!)) ->  | P38: =MAX('Connection Numbers Inputs'!#REF!,SUM('Connection Numbers Inputs'!#REF!,'Connection Numbers Inputs'!#REF!,'Connection Numbers Inputs'!#REF!,'Connection Numbers Inputs'!#REF!,'Connection Numbers Inputs'!#REF!)) -> 
C39: ='General Inputs'!#REF! ->  | F39: ='General Inputs'!#REF! ->  | G39: Total | L39: =MAX('Connection Numbers Inputs'!#REF!,SUM('Connection Numbers Inputs'!#REF!,'Connection Numbers Inputs'!#REF!,'Connection Numbers Inputs'!#REF!,'Connection Numbers Inputs'!#REF!,'Connection Numbers Inputs'!#REF!)) ->  | M39: =MAX('Connection Numbers Inputs'!#REF!,SUM('Connection Numbers Inputs'!#REF!,'Connection Numbers Inputs'!#REF!,'Connection Numbers Inputs'!#REF!,'Connection Numbers Inputs'!#REF!,'Connection Numbers Inputs'!#REF!)) ->  | N39: =MAX('Connection Numbers Inputs'!#REF!,SUM('Connection Numbers Inputs'!#REF!,'Connection Numbers Inputs'!#REF!,'Connection Numbers Inputs'!#REF!,'Connection Numbers Inputs'!#REF!,'Connection Numbers Inputs'!#REF!)) ->  | O39: =MAX('Connection Numbers Inputs'!#REF!,SUM('Connection Numbers Inputs'!#REF!,'Connection Numbers Inputs'!#REF!,'Connection Numbers Inputs'!#REF!,'Connection Numbers Inputs'!#REF!,'Connection Numbers Inputs'!#REF!)) ->  | P39: =MAX('Connection Numbers Inputs'!#REF!,SUM('Connection Numbers Inputs'!#REF!,'Connection Numbers Inputs'!#REF!,'Connection Numbers Inputs'!#REF!,'Connection Numbers Inputs'!#REF!,'Connection Numbers Inputs'!#REF!)) -> 
C40: ='General Inputs'!#REF! ->  | F40: ='General Inputs'!#REF! ->  | G40: Total | L40: =MAX('Connection Numbers Inputs'!#REF!,SUM('Connection Numbers Inputs'!#REF!,'Connection Numbers Inputs'!#REF!,'Connection Numbers Inputs'!#REF!,'Connection Numbers Inputs'!#REF!,'Connection Numbers Inputs'!#REF!)) ->  | M40: =MAX('Connection Numbers Inputs'!#REF!,SUM('Connection Numbers Inputs'!#REF!,'Connection Numbers Inputs'!#REF!,'Connection Numbers Inputs'!#REF!,'Connection Numbers Inputs'!#REF!,'Connection Numbers Inputs'!#REF!)) ->  | N40: =MAX('Connection Numbers Inputs'!#REF!,SUM('Connection Numbers Inputs'!#REF!,'Connection Numbers Inputs'!#REF!,'Connection Numbers Inputs'!#REF!,'Connection Numbers Inputs'!#REF!,'Connection Numbers Inputs'!#REF!)) ->  | O40: =MAX('Connection Numbers Inputs'!#REF!,SUM('Connection Numbers Inputs'!#REF!,'Connection Numbers Inputs'!#REF!,'Connection Numbers Inputs'!#REF!,'Connection Numbers Inputs'!#REF!,'Connection Numbers Inputs'!#REF!)) ->  | P40: =MAX('Connection Numbers Inputs'!#REF!,SUM('Connection Numbers Inputs'!#REF!,'Connection Numbers Inputs'!#REF!,'Connection Numbers Inputs'!#REF!,'Connection Numbers Inputs'!#REF!,'Connection Numbers Inputs'!#REF!)) -> 
C41: ='General Inputs'!#REF! ->  | F41: ='General Inputs'!#REF! ->  | G41: Total | L41: =MAX('Connection Numbers Inputs'!#REF!,SUM('Connection Numbers Inputs'!#REF!,'Connection Numbers Inputs'!#REF!,'Connection Numbers Inputs'!#REF!,'Connection Numbers Inputs'!#REF!,'Connection Numbers Inputs'!#REF!)) ->  | M41: =MAX('Connection Numbers Inputs'!#REF!,SUM('Connection Numbers Inputs'!#REF!,'Connection Numbers Inputs'!#REF!,'Connection Numbers Inputs'!#REF!,'Connection Numbers Inputs'!#REF!,'Connection Numbers Inputs'!#REF!)) ->  | N41: =MAX('Connection Numbers Inputs'!#REF!,SUM('Connection Numbers Inputs'!#REF!,'Connection Numbers Inputs'!#REF!,'Connection Numbers Inputs'!#REF!,'Connection Numbers Inputs'!#REF!,'Connection Numbers Inputs'!#REF!)) ->  | O41: =MAX('Connection Numbers Inputs'!#REF!,SUM('Connection Numbers Inputs'!#REF!,'Connection Numbers Inputs'!#REF!,'Connection Numbers Inputs'!#REF!,'Connection Numbers Inputs'!#REF!,'Connection Numbers Inputs'!#REF!)) ->  | P41: =MAX('Connection Numbers Inputs'!#REF!,SUM('Connection Numbers Inputs'!#REF!,'Connection Numbers Inputs'!#REF!,'Connection Numbers Inputs'!#REF!,'Connection Numbers Inputs'!#REF!,'Connection Numbers Inputs'!#REF!)) -> 
C42: ='General Inputs'!#REF! ->  | F42: ='General Inputs'!#REF! ->  | G42: Total | L42: =MAX('Connection Numbers Inputs'!#REF!,SUM('Connection Numbers Inputs'!#REF!,'Connection Numbers Inputs'!#REF!,'Connection Numbers Inputs'!#REF!,'Connection Numbers Inputs'!#REF!,'Connection Numbers Inputs'!#REF!)) ->  | M42: =MAX('Connection Numbers Inputs'!#REF!,SUM('Connection Numbers Inputs'!#REF!,'Connection Numbers Inputs'!#REF!,'Connection Numbers Inputs'!#REF!,'Connection Numbers Inputs'!#REF!,'Connection Numbers Inputs'!#REF!)) ->  | N42: =MAX('Connection Numbers Inputs'!#REF!,SUM('Connection Numbers Inputs'!#REF!,'Connection Numbers Inputs'!#REF!,'Connection Numbers Inputs'!#REF!,'Connection Numbers Inputs'!#REF!,'Connection Numbers Inputs'!#REF!)) ->  | O42: =MAX('Connection Numbers Inputs'!#REF!,SUM('Connection Numbers Inputs'!#REF!,'Connection Numbers Inputs'!#REF!,'Connection Numbers Inputs'!#REF!,'Connection Numbers Inputs'!#REF!,'Connection Numbers Inputs'!#REF!)) ->  | P42: =MAX('Connection Numbers Inputs'!#REF!,SUM('Connection Numbers Inputs'!#REF!,'Connection Numbers Inputs'!#REF!,'Connection Numbers Inputs'!#REF!,'Connection Numbers Inputs'!#REF!,'Connection Numbers Inputs'!#REF!)) -> 
C43: ='General Inputs'!#REF! ->  | F43: ='General Inputs'!#REF! ->  | G43: Total | L43: =MAX('Connection Numbers Inputs'!#REF!,SUM('Connection Numbers Inputs'!#REF!,'Connection Numbers Inputs'!#REF!,'Connection Numbers Inputs'!#REF!,'Connection Numbers Inputs'!#REF!,'Connection Numbers Inputs'!#REF!)) ->  | M43: =MAX('Connection Numbers Inputs'!#REF!,SUM('Connection Numbers Inputs'!#REF!,'Connection Numbers Inputs'!#REF!,'Connection Numbers Inputs'!#REF!,'Connection Numbers Inputs'!#REF!,'Connection Numbers Inputs'!#REF!)) ->  | N43: =MAX('Connection Numbers Inputs'!#REF!,SUM('Connection Numbers Inputs'!#REF!,'Connection Numbers Inputs'!#REF!,'Connection Numbers Inputs'!#REF!,'Connection Numbers Inputs'!#REF!,'Connection Numbers Inputs'!#REF!)) ->  | O43: =MAX('Connection Numbers Inputs'!#REF!,SUM('Connection Numbers Inputs'!#REF!,'Connection Numbers Inputs'!#REF!,'Connection Numbers Inputs'!#REF!,'Connection Numbers Inputs'!#REF!,'Connection Numbers Inputs'!#REF!)) ->  | P43: =MAX('Connection Numbers Inputs'!#REF!,SUM('Connection Numbers Inputs'!#REF!,'Connection Numbers Inputs'!#REF!,'Connection Numbers Inputs'!#REF!,'Connection Numbers Inputs'!#REF!,'Connection Numbers Inputs'!#REF!)) -> 
C44: ='General Inputs'!#REF! ->  | F44: ='General Inputs'!#REF! ->  | G44: Total | L44: =MAX('Connection Numbers Inputs'!#REF!,SUM('Connection Numbers Inputs'!#REF!,'Connection Numbers Inputs'!#REF!,'Connection Numbers Inputs'!#REF!,'Connection Numbers Inputs'!#REF!,'Connection Numbers Inputs'!#REF!)) ->  | M44: =MAX('Connection Numbers Inputs'!#REF!,SUM('Connection Numbers Inputs'!#REF!,'Connection Numbers Inputs'!#REF!,'Connection Numbers Inputs'!#REF!,'Connection Numbers Inputs'!#REF!,'Connection Numbers Inputs'!#REF!)) ->  | N44: =MAX('Connection Numbers Inputs'!#REF!,SUM('Connection Numbers Inputs'!#REF!,'Connection Numbers Inputs'!#REF!,'Connection Numbers Inputs'!#REF!,'Connection Numbers Inputs'!#REF!,'Connection Numbers Inputs'!#REF!)) ->  | O44: =MAX('Connection Numbers Inputs'!#REF!,SUM('Connection Numbers Inputs'!#REF!,'Connection Numbers Inputs'!#REF!,'Connection Numbers Inputs'!#REF!,'Connection Numbers Inputs'!#REF!,'Connection Numbers Inputs'!#REF!)) ->  | P44: =MAX('Connection Numbers Inputs'!#REF!,SUM('Connection Numbers Inputs'!#REF!,'Connection Numbers Inputs'!#REF!,'Connection Numbers Inputs'!#REF!,'Connection Numbers Inputs'!#REF!,'Connection Numbers Inputs'!#REF!)) -> 
C45: ='General Inputs'!#REF! ->  | F45: ='General Inputs'!#REF! ->  | G45: Total | L45: =MAX('Connection Numbers Inputs'!#REF!,SUM('Connection Numbers Inputs'!#REF!,'Connection Numbers Inputs'!#REF!,'Connection Numbers Inputs'!#REF!,'Connection Numbers Inputs'!#REF!,'Connection Numbers Inputs'!#REF!)) ->  | M45: =MAX('Connection Numbers Inputs'!#REF!,SUM('Connection Numbers Inputs'!#REF!,'Connection Numbers Inputs'!#REF!,'Connection Numbers Inputs'!#REF!,'Connection Numbers Inputs'!#REF!,'Connection Numbers Inputs'!#REF!)) ->  | N45: =MAX('Connection Numbers Inputs'!#REF!,SUM('Connection Numbers Inputs'!#REF!,'Connection Numbers Inputs'!#REF!,'Connection Numbers Inputs'!#REF!,'Connection Numbers Inputs'!#REF!,'Connection Numbers Inputs'!#REF!)) ->  | O45: =MAX('Connection Numbers Inputs'!#REF!,SUM('Connection Numbers Inputs'!#REF!,'Connection Numbers Inputs'!#REF!,'Connection Numbers Inputs'!#REF!,'Connection Numbers Inputs'!#REF!,'Connection Numbers Inputs'!#REF!)) ->  | P45: =MAX('Connection Numbers Inputs'!#REF!,SUM('Connection Numbers Inputs'!#REF!,'Connection Numbers Inputs'!#REF!,'Connection Numbers Inputs'!#REF!,'Connection Numbers Inputs'!#REF!,'Connection Numbers Inputs'!#REF!)) -> 
C46: ='General Inputs'!#REF! ->  | F46: ='General Inputs'!#REF! ->  | G46: Total | L46: =MAX('Connection Numbers Inputs'!#REF!,SUM('Connection Numbers Inputs'!#REF!,'Connection Numbers Inputs'!#REF!,'Connection Numbers Inputs'!#REF!,'Connection Numbers Inputs'!#REF!,'Connection Numbers Inputs'!#REF!)) ->  | M46: =MAX('Connection Numbers Inputs'!#REF!,SUM('Connection Numbers Inputs'!#REF!,'Connection Numbers Inputs'!#REF!,'Connection Numbers Inputs'!#REF!,'Connection Numbers Inputs'!#REF!,'Connection Numbers Inputs'!#REF!)) ->  | N46: =MAX('Connection Numbers Inputs'!#REF!,SUM('Connection Numbers Inputs'!#REF!,'Connection Numbers Inputs'!#REF!,'Connection Numbers Inputs'!#REF!,'Connection Numbers Inputs'!#REF!,'Connection Numbers Inputs'!#REF!)) ->  | O46: =MAX('Connection Numbers Inputs'!#REF!,SUM('Connection Numbers Inputs'!#REF!,'Connection Numbers Inputs'!#REF!,'Connection Numbers Inputs'!#REF!,'Connection Numbers Inputs'!#REF!,'Connection Numbers Inputs'!#REF!)) ->  | P46: =MAX('Connection Numbers Inputs'!#REF!,SUM('Connection Numbers Inputs'!#REF!,'Connection Numbers Inputs'!#REF!,'Connection Numbers Inputs'!#REF!,'Connection Numbers Inputs'!#REF!,'Connection Numbers Inputs'!#REF!)) -> 
C47: ='General Inputs'!#REF! ->  | F47: ='General Inputs'!#REF! ->  | G47: Total | L47: =MAX('Connection Numbers Inputs'!#REF!,SUM('Connection Numbers Inputs'!#REF!,'Connection Numbers Inputs'!#REF!,'Connection Numbers Inputs'!#REF!,'Connection Numbers Inputs'!#REF!,'Connection Numbers Inputs'!#REF!)) ->  | M47: =MAX('Connection Numbers Inputs'!#REF!,SUM('Connection Numbers Inputs'!#REF!,'Connection Numbers Inputs'!#REF!,'Connection Numbers Inputs'!#REF!,'Connection Numbers Inputs'!#REF!,'Connection Numbers Inputs'!#REF!)) ->  | N47: =MAX('Connection Numbers Inputs'!#REF!,SUM('Connection Numbers Inputs'!#REF!,'Connection Numbers Inputs'!#REF!,'Connection Numbers Inputs'!#REF!,'Connection Numbers Inputs'!#REF!,'Connection Numbers Inputs'!#REF!)) ->  | O47: =MAX('Connection Numbers Inputs'!#REF!,SUM('Connection Numbers Inputs'!#REF!,'Connection Numbers Inputs'!#REF!,'Connection Numbers Inputs'!#REF!,'Connection Numbers Inputs'!#REF!,'Connection Numbers Inputs'!#REF!)) ->  | P47: =MAX('Connection Numbers Inputs'!#REF!,SUM('Connection Numbers Inputs'!#REF!,'Connection Numbers Inputs'!#REF!,'Connection Numbers Inputs'!#REF!,'Connection Numbers Inputs'!#REF!,'Connection Numbers Inputs'!#REF!)) -> 
C48: ='General Inputs'!#REF! ->  | F48: ='General Inputs'!#REF! ->  | G48: Total | L48: =MAX('Connection Numbers Inputs'!#REF!,SUM('Connection Numbers Inputs'!#REF!,'Connection Numbers Inputs'!#REF!,'Connection Numbers Inputs'!#REF!,'Connection Numbers Inputs'!#REF!,'Connection Numbers Inputs'!#REF!)) ->  | M48: =MAX('Connection Numbers Inputs'!#REF!,SUM('Connection Numbers Inputs'!#REF!,'Connection Numbers Inputs'!#REF!,'Connection Numbers Inputs'!#REF!,'Connection Numbers Inputs'!#REF!,'Connection Numbers Inputs'!#REF!)) ->  | N48: =MAX('Connection Numbers Inputs'!#REF!,SUM('Connection Numbers Inputs'!#REF!,'Connection Numbers Inputs'!#REF!,'Connection Numbers Inputs'!#REF!,'Connection Numbers Inputs'!#REF!,'Connection Numbers Inputs'!#REF!)) ->  | O48: =MAX('Connection Numbers Inputs'!#REF!,SUM('Connection Numbers Inputs'!#REF!,'Connection Numbers Inputs'!#REF!,'Connection Numbers Inputs'!#REF!,'Connection Numbers Inputs'!#REF!,'Connection Numbers Inputs'!#REF!)) ->  | P48: =MAX('Connection Numbers Inputs'!#REF!,SUM('Connection Numbers Inputs'!#REF!,'Connection Numbers Inputs'!#REF!,'Connection Numbers Inputs'!#REF!,'Connection Numbers Inputs'!#REF!,'Connection Numbers Inputs'!#REF!)) -> 
C49: ='General Inputs'!#REF! ->  | F49: ='General Inputs'!#REF! ->  | G49: Total | L49: =MAX('Connection Numbers Inputs'!#REF!,SUM('Connection Numbers Inputs'!#REF!,'Connection Numbers Inputs'!#REF!,'Connection Numbers Inputs'!#REF!,'Connection Numbers Inputs'!#REF!,'Connection Numbers Inputs'!#REF!)) ->  | M49: =MAX('Connection Numbers Inputs'!#REF!,SUM('Connection Numbers Inputs'!#REF!,'Connection Numbers Inputs'!#REF!,'Connection Numbers Inputs'!#REF!,'Connection Numbers Inputs'!#REF!,'Connection Numbers Inputs'!#REF!)) ->  | N49: =MAX('Connection Numbers Inputs'!#REF!,SUM('Connection Numbers Inputs'!#REF!,'Connection Numbers Inputs'!#REF!,'Connection Numbers Inputs'!#REF!,'Connection Numbers Inputs'!#REF!,'Connection Numbers Inputs'!#REF!)) ->  | O49: =MAX('Connection Numbers Inputs'!#REF!,SUM('Connection Numbers Inputs'!#REF!,'Connection Numbers Inputs'!#REF!,'Connection Numbers Inputs'!#REF!,'Connection Numbers Inputs'!#REF!,'Connection Numbers Inputs'!#REF!)) ->  | P49: =MAX('Connection Numbers Inputs'!#REF!,SUM('Connection Numbers Inputs'!#REF!,'Connection Numbers Inputs'!#REF!,'Connection Numbers Inputs'!#REF!,'Connection Numbers Inputs'!#REF!,'Connection Numbers Inputs'!#REF!)) -> 
C50: Total | L50: =SUM(L20:L49) ->  | M50: =SUM(M20:M49) ->  | N50: =SUM(N20:N49) ->  | O50: =SUM(O20:O49) ->  | P50: =SUM(P20:P49) -> 

Sheet Volume Inputs
A1: Volume Inputs
B3: GJ/day | G3: MDQ(GJ)
A4: Price Band 1 | B4: Residential 1 | C4: Residential 2 | D4: Residential 3 | E4: Commercial 1 | F4: Commercial 2 | G4: Demand-AdC | H4: Demand-AdNr | I4: Demand-AdS | J4: Demand-Peter | K4: Demand-PP | L4: Demand-River | M4: Demand-SE | N4: Demand-Tanunda | O4: Demand-Whyal
A5: ='Connection Numbers Inputs'!A5 -> 2006/07 | B5: 5029285.259 | C5: 0 | D5: 0 | E5: 1264745.5 | F5: 0 | G5: 2129.390493 | H5: 3539.487097 | I5: 1119.184358 | J5: 50 | K5: 100 | L5: 100 | M5: 206.8680575 | N5: 0 | O5: 50
A6: ='Connection Numbers Inputs'!A6 -> 2007/08 | B6: 5001450.78 | C6: 0 | D6: 0 | E6: 1212835.728 | F6: 0 | G6: 2123.843938 | H6: 3556.861966 | I6: 1148.178771 | J6: 50 | K6: 100 | L6: 100 | M6: 213.8221769 | N6: 0 | O6: 50
A7: ='Connection Numbers Inputs'!A7 -> 2008/09 | B7: 5090813.141 | C7: 0 | D7: 0 | E7: 1234779.394 | F7: 0 | G7: 2112.887928 | H7: 3699.157121 | I7: 1177.173184 | J7: 50 | K7: 100 | L7: 100 | M7: 221.2527565 | N7: 145.5428571 | O7: 50
A8: ='Connection Numbers Inputs'!A8 -> 2009/10 | B8: 4422098.477 | C8: 0 | D8: 0 | E8: 1147245.573 | F8: 0 | G8: 2104.716242 | H8: 3720.837361 | I8: 1206.167598 | J8: 50 | K8: 100 | L8: 100 | M8: 229.1924411 | N8: 192.5660377 | O8: 50
A9: ='Connection Numbers Inputs'!A9 -> 2010/11 | B9: 4379602.961 | C9: 0 | D9: 0 | E9: 1148263.102 | F9: 0 | G9: 2097.278868 | H9: 3609.348979 | I9: 1235.162011 | J9: 50 | K9: 100 | L9: 100 | M9: 237.6761118 | N9: 240.4528302 | O9: 50
A10: ='Connection Numbers Inputs'!A10 -> 2011/12 | B10: 3076008.109 | C10: 0 | D10: 0 | E10: 1159573.052 | F10: 0 | G10: 2123.708794 | H10: 3797.843889 | I10: 838.3565602 | J10: 50.66806723 | K10: 50 | L10: 100 | M10: 250 | N10: 0 | O10: 50
A11: ='Connection Numbers Inputs'!A11 -> 2012/13 | B11: 3022300.409 | C11: 0 | D11: 0 | E11: 1183318.751 | F11: 0 | G11: 2088.949291 | H11: 3736.13077 | I11: 878.8222298 | J11: 50.85294118 | K11: 50 | L11: 100 | M11: 250 | N11: 50 | O11: 50
A12: ='Connection Numbers Inputs'!A12 -> 2013/14 | B12: 2972275.824 | C12: 0 | D12: 0 | E12: 1165325.288 | F12: 0 | G12: 2034.572497 | H12: 3603.322343 | I12: 909.4935418 | J12: 50.77731092 | K12: 50 | L12: 100 | M12: 250 | N12: 50 | O12: 50
A13: ='Connection Numbers Inputs'!A13 -> 2014/15 | B13: 2924276.127 | C13: 0 | D13: 0 | E13: 1173890.998 | F13: 0 | G13: 2048.03427 | H13: 3606.267827 | I13: 948.5435078 | J13: 50.84453782 | K13: 50 | L13: 100 | M13: 250 | N13: 50 | O13: 50
A14: ='Connection Numbers Inputs'!A14 -> 2015/16 | B14: 2887724.947 | C14: 0 | D14: 0 | E14: 1195322.788 | F14: 0 | G14: 2069.240671 | H14: 3655.384144 | I14: 992.4473148 | J14: 51.02521008 | K14: 50 | L14: 100 | M14: 250 | N14: 50 | O14: 50
A16: Price Band 2 | B16: Residential 1 | C16: Residential 2 | D16: Residential 3 | E16: Commercial 1 | F16: Commercial 2 | G16: Demand-AdC | H16: Demand-AdNr | I16: Demand-AdS | J16: Demand-Peter | K16: Demand-PP | L16: Demand-River | M16: Demand-SE | N16: Demand-Tanunda | O16: Demand-Whyal
A17: =A5 -> 2006/07 | B17: 2759646.437 | C17: 0 | D17: 0 | E17: 1182964.13 | F17: 0 | G17: 1581.556394 | H17: 2842.842696 | I17: 830.2234637 | J17: 12 | K17: 100 | L17: 100 | M17: 136.5329179 | N17: 0 | O17: 7
A18: 2007/08 | B18: 2530729.725 | C18: 0 | D18: 0 | E18: 1158924.376 | F18: 0 | G18: 1577.436816 | H18: 2875.334062 | I18: 851.7318436 | J18: 12 | K18: 100 | L18: 100 | M18: 141.1226367 | N18: 0 | O18: 7
A19: 2008/09 | B19: 2810587.445 | C19: 0 | D19: 0 | E19: 1182708.16 | F19: 0 | G19: 1569.299488 | H19: 2989.9754 | I19: 873.2402235 | J19: 12 | K19: 100 | L19: 100 | M19: 146.0268193 | N19: 137.4571429 | O19: 7
A20: 2009/10 | B20: 3163901.523 | C20: 0 | D20: 0 | E20: 1108532.568 | F20: 0 | G20: 1563.230155 | H20: 3007.442275 | I20: 894.7486034 | J20: 12 | K20: 100 | L20: 100 | M20: 151.2670111 | N20: 185.4339623 | O20: 7
A21: 2010/11 | B21: 3133497.039 | C21: 0 | D21: 0 | E21: 1109515.761 | F21: 0 | G21: 1557.706214 | H21: 2917.620684 | I21: 916.2569832 | J21: 12 | K21: 100 | L21: 100 | M21: 156.8662338 | N21: 231.5471698 | O21: 7
A22: 2011/12 | B22: 1436270.057 | C22: 0 | D22: 0 | E22: 1121411.732 | F22: 0 | G22: 1717.170253 | H22: 3255.572244 | I22: 716.0551326 | J22: 50.66806723 | K22: 50 | L22: 100 | M22: 250 | N22: 0 | O22: 0
A23: 2012/13 | B23: 1411816.487 | C23: 0 | D23: 0 | E23: 1144480.063 | F23: 0 | G23: 1689.064713 | H23: 3202.229955 | I23: 757.9116927 | J23: 50.85294118 | K23: 50 | L23: 100 | M23: 250 | N23: 50 | O23: 0
A24: 2013/14 | B24: 1389537.466 | C24: 0 | D24: 0 | E24: 1126987.282 | F24: 0 | G24: 1645.097191 | H24: 3087.4358 | I24: 791.4027192 | J24: 50.77731092 | K24: 50 | L24: 100 | M24: 250 | N24: 50 | O24: 0
A25: 2014/15 | B25: 1368162.555 | C25: 0 | D25: 0 | E25: 1135469.546 | F25: 0 | G25: 1655.981995 | H25: 3089.981755 | I25: 832.050102 | J25: 50.84453782 | K25: 50 | L25: 100 | M25: 250 | N25: 50 | O25: 0
A26: 2015/16 | B26: 1352100.779 | C26: 0 | D26: 0 | E26: 1156422.069 | F26: 0 | G26: 1673.128886 | H26: 3132.435884 | I26: 876.8432359 | J26: 51.02521008 | K26: 50 | L26: 100 | M26: 250 | N26: 50 | O26: 0
A28: Price Band 3 | B28: Residential 1 | C28: Residential 2 | D28: Residential 3 | E28: Commercial 1 | F28: Commercial 2 | G28: Demand-AdC | H28: Demand-AdNr | I28: Demand-AdS | J28: Demand-Peter | K28: Demand-PP | L28: Demand-River | M28: Demand-SE | N28: Demand-Tanunda | O28: Demand-Whyal
A29: =A17 -> 2006/07 | B29: 0 | C29: 0 | D29: 0 | E29: 563699.4534 | F29: 0 | G29: 6391.699649 | H29: 13604.58108 | I29: 1910.592179 | J29: 0 | K29: 616 | L29: 550 | M29: 573.4382553 | N29: 0 | O29: 0
A30: 2007/08 | B30: 0 | C30: 0 | D30: 0 | E30: 567333.5161 | F30: 0 | G30: 6375.050793 | H30: 14002.37396 | I30: 1960.089385 | J30: 0 | K30: 616 | L30: 550 | M30: 592.7150743 | N30: 0 | O30: 0
A31: 2008/09 | B31: 0 | C31: 0 | D31: 0 | E31: 572374.2724 | F31: 0 | G31: 6342.164609 | H31: 14534.01859 | I31: 2009.586592 | J31: 0 | K31: 616 | L31: 550 | M31: 613.3126411 | N31: 0 | O31: 0
A32: 2009/10 | B32: 0 | C32: 0 | D32: 0 | E32: 571744.9549 | F32: 0 | G32: 6317.636014 | H32: 14615.02053 | I32: 2059.083799 | J32: 0 | K32: 616 | L32: 550 | M32: 635.3214467 | N32: 0 | O32: 0
A33: 2010/11 | B33: 0 | C33: 0 | D33: 0 | E33: 572252.0541 | F33: 0 | G33: 6295.311567 | H33: 14198.47648 | I33: 2108.581006 | J33: 0 | K33: 616 | L33: 550 | M33: 658.8381819 | N33: 0 | O33: 0
A34: 2011/12 | B34: 2798461.834 | C34: 0 | D34: 0 | E34: 588008.7266 | F34: 0 | G34: 7482.533983 | H34: 15065.50919 | I34: 1347.288307 | J34: 19.25386555 | K34: 400 | L34: 243.45 | M34: 395.01 | N34: 0 | O34: 0
A35: 2012/13 | B35: 2760744.604 | C35: 0 | D35: 0 | E35: 600123.9175 | F35: 0 | G35: 7360.064669 | H35: 14790.18955 | I35: 1331.966077 | J35: 19.32411765 | K35: 400 | L35: 246.86 | M35: 388.28 | N35: 75 | O35: 0
A36: 2013/14 | B36: 2732008.71 | C36: 0 | D36: 0 | E36: 590931.9533 | F36: 0 | G36: 7168.477098 | H36: 14197.6937 | I36: 1300.903739 | J36: 19.29537815 | K36: 400 | L36: 247.98 | M36: 369.59 | N36: 75 | O36: 0
A37: 2014/15 | B37: 2710316.819 | C37: 0 | D37: 0 | E37: 595408.381 | F37: 0 | G37: 7215.907411 | H37: 14210.83434 | I37: 1283.30639 | J37: 19.32092437 | K37: 400 | L37: 254.75 | M37: 364.73 | N37: 75 | O37: 0
A38: 2015/16 | B38: 2704531.774 | C38: 0 | D38: 0 | E38: 606428.9731 | F38: 0 | G38: 7290.624633 | H38: 14429.95608 | I38: 1273.509449 | J38: 19.38957983 | K38: 400 | L38: 263.75 | M38: 365.62 | N38: 75 | O38: 0
A40: Price Band 4 | B40: Residential 1 | C40: Residential 2 | D40: Residential 3 | E40: Commercial 1 | F40: Commercial 2 | G40: Demand-AdC | H40: Demand-AdNr | I40: Demand-AdS | J40: Demand-Peter | K40: Demand-PP | L40: Demand-River | M40: Demand-SE | N40: Demand-Tanunda | O40: Demand-Whyal
A41: =A29 -> 2006/07 | B41: 0 | C41: 0 | D41: 0 | E41: 234160.2157 | F41: 0 | G41: 290.3714309 | H41: 24092.48135 | I41: 0 | J41: 0 | K41: 500 | L41: 0 | M41: 0 | N41: 0 | O41: 0
A42: 2007/08 | B42: 0 | C42: 0 | D42: 0 | E42: 263505.5306 | F42: 0 | G42: 289.6150825 | H42: 30373.43001 | I42: 0 | J42: 0 | K42: 500 | L42: 0 | M42: 0 | N42: 0 | O42: 0
A43: 2008/09 | B43: 0 | C43: 0 | D43: 0 | E43: 284531.2953 | F43: 0 | G43: 288.121081 | H43: 30924.18831 | I43: 0 | J43: 0 | K43: 500 | L43: 0 | M43: 0 | N43: 0 | O43: 0
A44: 2009/10 | B44: 0 | C44: 0 | D44: 0 | E44: 216676.9048 | F44: 0 | G44: 287.0067603 | H44: 31008.10242 | I44: 0 | J44: 0 | K44: 500 | L44: 0 | M44: 0 | N44: 0 | O44: 0
A45: 2010/11 | B45: 0 | C45: 0 | D45: 0 | E45: 216869.0826 | F45: 0 | G45: 285.9925729 | H45: 30576.5828 | I45: 0 | J45: 0 | K45: 500 | L45: 0 | M45: 0 | N45: 0 | O45: 0
A46: 2011/12 | B46: 0 | C46: 0 | D46: 0 | E46: 202315.7899 | F46: 0 | G46: 303.3869705 | H46: 9429.874682 | I46: 0 | J46: 0 | K46: 500 | L46: 0 | M46: 0 | N46: 0 | O46: 0
A47: 2012/13 | B47: 0 | C47: 0 | D47: 0 | E47: 206468.1687 | F47: 0 | G47: 298.4213273 | H47: 8994.74972 | I47: 0 | J47: 0 | K47: 500 | L47: 0 | M47: 0 | N47: 0 | O47: 0
A48: 2013/14 | B48: 0 | C48: 0 | D48: 0 | E48: 203349.3765 | F48: 0 | G48: 290.6532139 | H48: 8058.348152 | I48: 0 | J48: 0 | K48: 500 | L48: 0 | M48: 0 | N48: 0 | O48: 0
A49: 2014/15 | B49: 0 | C49: 0 | D49: 0 | E49: 204844.1748 | F49: 0 | G49: 292.5763243 | H49: 8079.116079 | I49: 0 | J49: 0 | K49: 500 | L49: 0 | M49: 0 | N49: 0 | O49: 0
A50: 2015/16 | B50: 0 | C50: 0 | D50: 0 | E50: 208582.2697 | F50: 0 | G50: 295.6058102 | H50: 8425.423892 | I50: 0 | J50: 0 | K50: 500 | L50: 0 | M50: 0 | N50: 0 | O50: 0
A52: Price Band 5 | B52: Residential 1 | C52: Residential 2 | D52: Residential 3 | E52: Commercial 1 | F52: Commercial 2 | G52: Demand-AdC | H52: Demand-AdNr | I52: Demand-AdS | J52: Demand-Peter | K52: Demand-PP | L52: Demand-River | M52: Demand-SE | N52: Demand-Tanunda | O52: Demand-Whyal
A53: =A41 -> 2006/07 | B53: 0 | C53: 0 | D53: 0 | E53: 0 | F53: 0 | G53: 0 | H53: 0 | I53: 0 | J53: 0 | K53: 0 | L53: 0 | M53: 0 | N53: 0 | O53: 0
A54: 2007/08 | B54: 0 | C54: 0 | D54: 0 | E54: 0 | F54: 0 | G54: 0 | H54: 0 | I54: 0 | J54: 0 | K54: 0 | L54: 0 | M54: 0 | N54: 0 | O54: 0
A55: 2008/09 | B55: 0 | C55: 0 | D55: 0 | E55: 0 | F55: 0 | G55: 0 | H55: 0 | I55: 0 | J55: 0 | K55: 0 | L55: 0 | M55: 0 | N55: 0 | O55: 0
A56: 2009/10 | B56: 0 | C56: 0 | D56: 0 | E56: 0 | F56: 0 | G56: 0 | H56: 0 | I56: 0 | J56: 0 | K56: 0 | L56: 0 | M56: 0 | N56: 0 | O56: 0
A57: 2010/11 | B57: 0 | C57: 0 | D57: 0 | E57: 0 | F57: 0 | G57: 0 | H57: 0 | I57: 0 | J57: 0 | K57: 0 | L57: 0 | M57: 0 | N57: 0 | O57: 0
A58: 2011/12 | B58: 0 | C58: 0 | D58: 0 | E58: 0 | F58: 0 | G58: 0 | H58: 0 | I58: 0 | J58: 0 | K58: 2290.6 | L58: 0 | M58: 0 | N58: 0 | O58: 0
A59: 2012/13 | B59: 0 | C59: 0 | D59: 0 | E59: 0 | F59: 0 | G59: 0 | H59: 0 | I59: 0 | J59: 0 | K59: 2286.3 | L59: 0 | M59: 0 | N59: 0 | O59: 0
A60: 2013/14 | B60: 0 | C60: 0 | D60: 0 | E60: 0 | F60: 0 | G60: 0 | H60: 0 | I60: 0 | J60: 0 | K60: 2233.6 | L60: 0 | M60: 0 | N60: 0 | O60: 0
A61: 2014/15 | B61: 0 | C61: 0 | D61: 0 | E61: 0 | F61: 0 | G61: 0 | H61: 0 | I61: 0 | J61: 0 | K61: 2213.5 | L61: 0 | M61: 0 | N61: 0 | O61: 0
A62: 2015/16 | B62: 0 | C62: 0 | D62: 0 | E62: 0 | F62: 0 | G62: 0 | H62: 0 | I62: 0 | J62: 0 | K62: 2214.6 | L62: 0 | M62: 0 | N62: 0 | O62: 0
A64: Summary | B64: Residential 1 | C64: Residential 2 | D64: Residential 3 | E64: Commercial 1 | F64: Commercial 2 | G64: Demand-AdC | H64: Demand-AdNr | I64: Demand-AdS | J64: Demand-Peter | K64: Demand-PP | L64: Demand-River | M64: Demand-SE | N64: Demand-Tanunda | O64: Demand-Whyal
A65: =A53 -> 2006/07 | B65: =B5+B17+B29+B41+B53 -> 7788931.696 | C65: 0 | D65: 0 | E65: 3245569.299 | F65: 0 | G65: 10393.01797 | H65: 44079.39222 | I65: 3860 | J65: 62 | K65: 1316 | L65: 750 | M65: 916.8392307 | N65: 0 | O65: 57
A66: 2007/08 | B66: =B6+B18+B30+B42+B54 -> 7532180.505 | C66: 0 | D66: 0 | E66: 3202599.151 | F66: 0 | G66: 10365.94663 | H66: 50808 | I66: 3960 | J66: 62 | K66: 1316 | L66: 750 | M66: 947.6598879 | N66: 0 | O66: 57
A67: 2008/09 | B67: =B7+B19+B31+B43+B55 -> 7901400.586 | C67: 0 | D67: 0 | E67: 3274393.122 | F67: 0 | G67: 10312.47311 | H67: 52147.33942 | I67: 4060 | J67: 62 | K67: 1316 | L67: 750 | M67: 980.592217 | N67: 283 | O67: 57
A68: 2009/10 | B68: =B8+B20+B32+B44+B56 -> 7586000 | C68: 0 | D68: 0 | E68: 3044200 | F68: 0 | G68: 10272.58917 | H68: 52351.40258 | I68: 4160 | J68: 62 | K68: 1316 | L68: 750 | M68: 1015.780899 | N68: 378 | O68: 57
A69: 2010/11 | B69: =B9+B21+B33+B45+B57 -> 7513100 | C69: 0 | D69: 0 | E69: 3046900 | F69: 0 | G69: 10236.28922 | H69: 51302.02894 | I69: 4260 | J69: 62 | K69: 1316 | L69: 750 | M69: 1053.380527 | N69: 472 | O69: 57
A70: 2011/12 | B70: =B10+B22+B34+B46+B58 -> 7310740 | C70: 0 | D70: 0 | E70: 3071309.3 | F70: 0 | G70: 11626.8 | H70: 31548.8 | I70: 2901.7 | J70: 120.59 | K70: 3290.6 | L70: 443.45 | M70: 895.01 | N70: 0 | O70: 50
A71: 2012/13 | B71: =B11+B23+B35+B47+B59 -> 7194861.5 | C71: 0 | D71: 0 | E71: 3134390.9 | F71: 0 | G71: 11436.5 | H71: 30723.3 | I71: 2968.7 | J71: 121.03 | K71: 3286.3 | L71: 446.86 | M71: 888.28 | N71: 175 | O71: 50
A72: 2013/14 | B72: =B12+B24+B36+B48+B60 -> 7093822 | C72: 0 | D72: 0 | E72: 3086593.9 | F72: 0 | G72: 11138.8 | H72: 28946.8 | I72: 3001.8 | J72: 120.85 | K72: 3233.6 | L72: 447.98 | M72: 869.59 | N72: 175 | O72: 50
A73: 2014/15 | B73: =B13+B25+B37+B49+B61 -> 7002755.5 | C73: 0 | D73: 0 | E73: 3109613.1 | F73: 0 | G73: 11212.5 | H73: 28986.2 | I73: 3063.9 | J73: 121.01 | K73: 3213.5 | L73: 454.75 | M73: 864.73 | N73: 175 | O73: 50
A74: 2015/16 | B74: =B14+B26+B38+B50+B62 -> 6944357.5 | C74: 0 | D74: 0 | E74: 3166756.1 | F74: 0 | G74: 11328.6 | H74: 29643.2 | I74: 3142.8 | J74: 121.44 | K74: 3214.6 | L74: 463.75 | M74: 865.62 | N74: 175 | O74: 50

Sheet RAB Calculations (hidden)
B1: ="ENVESTRA - Cost allocation model for "&'General Inputs'!#REF!&" ("&'General Inputs'!#REF!&")" -> 
B2: Regulatory Asset Base Calculations
B7: Period Ending 30 June | J7: 2005 | K7: =J7+1 -> 2006 | L7: 2007 | M7: 2008 | N7: 2009 | O7: 2010 | P7: 2011
B11: Summary of Regulatory Asset Base Calculations (in $million)
C12: Depreciation | I12: 5-year NPV
E13: Mains and Inlets | I13: =NPV(realpretaxwacc,L13:P13) -> 36.36046551 | K13: =K82 ->  | L13: 8.229431322 | M13: 8.78436781 | N13: 9.515194969 | O13: 10.16377271 | P13: 10.82815563
E14: Meters | I14: 15.49025486 | K14: =K183 ->  | L14: 3.243611481 | M14: 3.611067427 | N14: 4.062632668 | O14: 4.501658544 | P14: 4.958169578
E15: Telemetry | I15: 0.3044293249 | K15: =+K278 ->  | L15: 0.0330111862 | M15: 0.06029364986 | N15: 0.08374465191 | O15: 0.1062534621 | P15: 0.1309245159
E16: IT Systems | I16: 9.340414901 | K16: =+K383 ->  | L16: 0.9268954705 | M16: 1.76269944 | N16: 3.015914533 | O16: 3.46894675 | P16: 3.492349319
E17: Other Distribution Equipment | I17: 26.42516496 | K17: =+K483 ->  | L17: 6.367853716 | M17: 6.551339947 | N17: 6.851877563 | O17: 7.128210712 | P17: 7.459560126
E18: Other Assets | I18: 4.05530997 | K18: =+K583 ->  | L18: 0.8634685565 | M18: 0.9572901887 | N18: 1.073771653 | O18: 1.166238008 | P18: 1.263487708
D19: Total | I19: =SUM(I13:I18) -> 91.97603952 | K19: =SUM(K13:K18) ->  | L19: 19.66427173 | M19: 21.72705846 | N19: 24.60313604 | O19: 26.53508018 | P19: 28.13264688
C22: Asset return
E23: =E13 -> Mains and Inlets | I23: =NPV(NompretaxWACC,L23:P23) -> 147.5570551 | K23: =K115 ->  | L23: 34.74441109 | M23: 37.37545493 | N23: 40.33128804 | O23: 42.7832982 | P23: 45.24680553
E24: Meters | I24: 18.75372331 | K24: =K216 ->  | L24: 4.177223692 | M24: 4.642658937 | N24: 5.147506284 | O24: 5.600869307 | P24: 6.046685691
E25: Telemetry | I25: 0.852393578 | K25: =K316 ->  | L25: 0.09569911621 | M25: 0.1788543451 | N25: 0.2475225934 | O25: 0.3113030984 | P25: 0.3801311603
E26: IT Systems | I26: 1.650957158 | K26: =K416 ->  | L26: 0.1789110276 | M26: 0.3561481222 | N26: 0.591988572 | O26: 0.6408343434 | P26: 0.5530043123
E27: Other Distribution Equipment | I27: 49.18860516 | K27: =K516 ->  | L27: 12.83080704 | M27: 13.00539173 | N27: 13.23487476 | O27: 13.39594608 | P27: 13.68721066
E28: Other Assets | I28: 1.028844794 | K28: =K616 ->  | L28: 0.292352449 | M28: 0.2915760343 | N28: 0.2874172275 | O28: 0.2620369925 | P28: 0.2309973587
D29: =D19 -> Total | I29: =SUM(I23:I28) -> 219.031579 | K29: =SUM(K23:K28) ->  | L29: 52.31940442 | M29: 55.8500841 | N29: 59.84059748 | O29: 62.99428802 | P29: 66.14483471
C32: Closing written down value
E33: =E23 -> Mains and Inlets | K33: =K147 -> 
E34: =E24 -> Meters | K34: =K247 -> 
E35: Telemetry | K35: =K347 -> 
E36: IT Systems | K36: =K447 -> 
E37: Other Distribution Equipment | K37: =K547 -> 
E38: Other Assets | K38: =K647 -> 
D39: Total | I39: =SUM(I33:I38) -> 0 | K39: =SUM(K34:K38) ->  | L39: =SUM(L33:L38) ->  | M39: =SUM(M33:M38) ->  | N39: =SUM(N33:N38) ->  | O39: =SUM(O33:O38) ->  | P39: =SUM(P33:P38) -> 
C46: Index
D47: For initial capital base and 2005/06 capex | J47: 1 | K47: =J47*(1+'General Inputs'!$B$6) -> 1.0257 | L47: =K47*(1+'General Inputs'!$B$6) -> 1.05206049 | M47: =L47*(1+'General Inputs'!$B$6) -> 1.079098445 | N47: =M47*(1+'General Inputs'!$B$6) -> 1.106831275 | O47: =N47*(1+'General Inputs'!$B$6) -> 1.135276838 | P47: =O47*(1+'General Inputs'!$B$6) -> 1.164453453
D48: For capex from | G48: 2005/06 | K48: 1 | L48: =K48*(1+'General Inputs'!$B$6) -> 1.0257 | M48: =L48*(1+'General Inputs'!$B$6) -> 1.05206049 | N48: =M48*(1+'General Inputs'!$B$6) -> 1.079098445 | O48: =N48*(1+'General Inputs'!$B$6) -> 1.106831275 | P48: =O48*(1+'General Inputs'!$B$6) -> 1.135276838
G49: 2006/07 | L49: 1 | M49: =L49*(1+'General Inputs'!$B$6) -> 1.0257 | N49: =M49*(1+'General Inputs'!$B$6) -> 1.05206049 | O49: =N49*(1+'General Inputs'!$B$6) -> 1.079098445 | P49: =O49*(1+'General Inputs'!$B$6) -> 1.106831275
G50: 2007/08 | M50: 1 | N50: =M50*(1+'General Inputs'!$B$6) -> 1.0257 | O50: =N50*(1+'General Inputs'!$B$6) -> 1.05206049 | P50: =O50*(1+'General Inputs'!$B$6) -> 1.079098445
G51: 2008/09 | N51: 1 | O51: =N51*(1+'General Inputs'!$B$6) -> 1.0257 | P51: =O51*(1+'General Inputs'!$B$6) -> 1.05206049
G52: 2009/10 | O52: 1 | P52: =O52*(1+'General Inputs'!$B$6) -> 1.0257
G53: 2010/11 | P53: 1
B60: RAB Calculations
C61: ="Asset Class 1 - "&E13 -> Asset Class 1 - Mains and Inlets
C63: Real calculations
D65: Real asset value
E67: Opening balance | K67: =#REF! ->  | L67: =K75 ->  | M67: =L75 ->  | N67: =M75 ->  | O67: =N75 ->  | P67: =O75 -> 
E69: Capex
F70: First 50% | K70: =#REF!/2 ->  | L70: =#REF!/2 ->  | M70: =#REF!/2 ->  | N70: =#REF!/2 ->  | O70: =#REF!/2 ->  | P70: =#REF!/2 -> 
F71: Remainder | K71: =K70 -> 
E73: Depreciation | K73: =K77 -> 
E75: Closing balance | K75: =-K73+K71+K70+K67 -> 
E77: Depreciation | J77: ='General Inputs'!#REF! ->  | K77: ='General Inputs'!#REF! ->  | L77: ='General Inputs'!#REF! ->  | M77: ='General Inputs'!#REF! ->  | N77: ='General Inputs'!#REF! ->  | O77: ='General Inputs'!#REF! ->  | P77: ='General Inputs'!#REF! -> 
C80: Depreciation
D82: Total depreciation | J82: =J77 -> 
C85: Asset Returns
D87: Initial assets
E88: Regulatory value of initial assets | K88: =IF($K82=0,0,$K67*'RAB Calculations'!K$47*('RAB Calculations'!K82/'RAB Calculations'!$K82)) ->  | L88: =IF($K82=0,0,$K67*'RAB Calculations'!L$47*('RAB Calculations'!L82/'RAB Calculations'!$K82)) ->  | M88: =IF($K82=0,0,$K67*'RAB Calculations'!M$47*('RAB Calculations'!M82/'RAB Calculations'!$K82)) ->  | N88: =IF($K82=0,0,$K67*'RAB Calculations'!N$47*('RAB Calculations'!N82/'RAB Calculations'!$K82)) ->  | O88: =IF($K82=0,0,$K67*'RAB Calculations'!O$47*('RAB Calculations'!O82/'RAB Calculations'!$K82)) ->  | P88: =IF($K82=0,0,$K67*'RAB Calculations'!P$47*('RAB Calculations'!P82/'RAB Calculations'!$K82)) -> 
D91: Capex
E92: Regulatory value of remainder of year1 capex | K92: =$K70*'RAB Calculations'!K$47 ->  | L92: =$K70*'RAB Calculations'!L$47 ->  | M92: =$K70*'RAB Calculations'!M$47 ->  | N92: =$K70*'RAB Calculations'!N$47 ->  | O92: =$K70*'RAB Calculations'!O$47 ->  | P92: =$K70*'RAB Calculations'!P$47 -> 
E93: cost base of 50% of capex
F94: Year 1 capex | K94: =$K70*'RAB Calculations'!K$47 ->  | L94: =$K70*'RAB Calculations'!L$47 ->  | M94: =$K70*'RAB Calculations'!M$47 ->  | N94: =$K70*'RAB Calculations'!N$47 ->  | O94: =$K70*'RAB Calculations'!O$47 ->  | P94: =$K70*'RAB Calculations'!P$47 -> 
F95: Year 2 capex | L95: =$L70*'RAB Calculations'!L$48 ->  | M95: =$L70*'RAB Calculations'!M$48 ->  | N95: =$L70*'RAB Calculations'!N$48 ->  | O95: =$L70*'RAB Calculations'!O$48 ->  | P95: =$L70*'RAB Calculations'!P$48 -> 
F96: Year 3 capex | M96: =$M70*'RAB Calculations'!M$49 ->  | N96: =$M70*'RAB Calculations'!N$49 ->  | O96: =$M70*'RAB Calculations'!O$49 ->  | P96: =$M70*'RAB Calculations'!P$49 -> 
F97: Year 4 capex | N97: =$N70*'RAB Calculations'!N$50 ->  | O97: =$N70*'RAB Calculations'!O$50 ->  | P97: =$N70*'RAB Calculations'!P$50 -> 
F98: Year 5 capex | O98: =$O70*'RAB Calculations'!O$51 ->  | P98: =$O70*'RAB Calculations'!P$51 -> 
F99: Year 6 capex | P99: =$P70*'RAB Calculations'!P$52 -> 
D100: Total | K100: =SUM(K94:K99) -> 
D103: Asset returns
E104: Regulatory value of initial assets for return purposes
F105: cost base | K105: =$K67*'RAB Calculations'!K$47 ->  | L105: =$K67*'RAB Calculations'!L$47 ->  | M105: =$K67*'RAB Calculations'!M$47 ->  | N105: =$K67*'RAB Calculations'!N$47 ->  | O105: =$K67*'RAB Calculations'!O$47 ->  | P105: =$K67*'RAB Calculations'!P$47 -> 
E106: Value of Year 1 remainder assets for return purposes
F107: cost base | K107: =$K92/'RAB Calculations'!$K$48*'RAB Calculations'!K$48 ->  | L107: =$K92/'RAB Calculations'!$K$48*'RAB Calculations'!L$48 ->  | M107: =$K92/'RAB Calculations'!$K$48*'RAB Calculations'!M$48 ->  | N107: =$K92/'RAB Calculations'!$K$48*'RAB Calculations'!N$48 ->  | O107: =$K92/'RAB Calculations'!$K$48*'RAB Calculations'!O$48 ->  | P107: =$K92/'RAB Calculations'!$K$48*'RAB Calculations'!P$48 -> 
E108: WDV of 50% of capex
F109: cost base | K109: =K94 ->  | L109: =K109*(1+'General Inputs'!$B$6)+'RAB Calculations'!L95 ->  | M109: =L109*(1+'General Inputs'!$B$6)+'RAB Calculations'!M96 ->  | N109: =M109*(1+'General Inputs'!$B$6)+'RAB Calculations'!N97 ->  | O109: =N109*(1+'General Inputs'!$B$6)+'RAB Calculations'!O98 ->  | P109: =O109*(1+'General Inputs'!$B$6)+'RAB Calculations'!P99 -> 
F111: accumulated depreciation (to start of year) | K111: =J82*'RAB Calculations'!K$47 ->  | L111: =(K111+K82)*(1+'General Inputs'!$B$6) ->  | M111: =(L111+L82)*(1+'General Inputs'!$B$6) ->  | N111: =(M111+M82)*(1+'General Inputs'!$B$6) ->  | O111: =(N111+N82)*(1+'General Inputs'!$B$6) ->  | P111: =(O111+O82)*(1+'General Inputs'!$B$6) -> 
E113: Total WDV of 50% of capex | K113: =K105-K111+K109+(K109+((J109-(J109/'RAB Calculations'!$J$47*'RAB Calculations'!I47)))+K70) ->  | L113: =L105-L111+L109+(L109+((K109-(K109/'RAB Calculations'!$J$47*'RAB Calculations'!J$47)))+L70) ->  | M113: =M105-M111+M109+(M109+((L109-(L109/'RAB Calculations'!$J$47*'RAB Calculations'!K$47)))+M70) ->  | N113: =N105-N111+N109+(N109+((M109-(M109/'RAB Calculations'!$J$47*'RAB Calculations'!L$47)))+N70) ->  | O113: =O105-O111+O109+(O109+((N109-(N109/'RAB Calculations'!$J$47*'RAB Calculations'!M$47)))+O70) ->  | P113: =P105-P111+P109+(P109+((O109-(O109/'RAB Calculations'!$J$47*'RAB Calculations'!N$47)))+P70) -> 
D115: Total asset returns | K115: =(K105+K109-K111)*'General Inputs'!$B$7 ->  | L115: =(L105+L109-L111)*'General Inputs'!$B$7+((K109-($K109/'RAB Calculations'!$K$47*'RAB Calculations'!K$47)))*'General Inputs'!$B$7+L107*'General Inputs'!$B$7 ->  | M115: =(M105+M109-M111)*'General Inputs'!$B$7+((L109-($K109/'RAB Calculations'!$K$47*'RAB Calculations'!L$47)))*'General Inputs'!$B$7+M107*'General Inputs'!$B$7 ->  | N115: =(N105+N109-N111)*'General Inputs'!$B$7+((M109-($K109/'RAB Calculations'!$K$47*'RAB Calculations'!M$47)))*'General Inputs'!$B$7+N107*'General Inputs'!$B$7 ->  | O115: =(O105+O109-O111)*'General Inputs'!$B$7+((N109-($K109/'RAB Calculations'!$K$47*'RAB Calculations'!N$47)))*'General Inputs'!$B$7+O107*'General Inputs'!$B$7 ->  | P115: =(P105+P109-P111)*'General Inputs'!$B$7+((O109-($K109/'RAB Calculations'!$K$47*'RAB Calculations'!O$47)))*'General Inputs'!$B$7+P107*'General Inputs'!$B$7 -> 
C119: Proof of Calculations
D121: Initial assets
E122: Opening balance | L122: =K88-K82-K111 -> 
D124: First 50% of capex
E125: Spend | K125: =K70 -> 
E126: Carried forward balance | L126: =K94 -> 
E127: NPV at nominal WACC of | I127: ='General Inputs'!B8 -> 0.1064 | L127: =L126+L125+NPV(I127,M125:P125) -> 
D129: Remainder of capex
E130: Spend | K130: =K71 -> 
E131: Carried forward balance | L131: =K92 -> 
E132: NPV at nominal WACC of | I132: =I127 -> 0.1064 | L132: =L131+NPV(I132,L130:P130) -> 
L133: =L135-L127-L132 -> 
D135: Total opening balance | L135: =L122+L127+L132 -> 
E136: Revenue stream
F137: depreciation | L137: =L82 ->  | M137: =M82 ->  | N137: =N82 ->  | O137: =O82 ->  | P137: =P82 -> 
F138: Return on assets | L138: =L115 ->  | M138: =M115 ->  | N138: =N115 ->  | O138: =O115 ->  | P138: =P115 -> 
F139: Residual value
F140: residual value of initial assets | P140: =(P105-P111-P137+P109+P107+P130)+(O109-(K109/'RAB Calculations'!K47*'RAB Calculations'!O47)) -> 
F141: residual value of remainder of capex
E142: Total | L142: =L137+L138+L140 ->  | M142: =M137+M138+M140 ->  | N142: =N137+N138+N140 ->  | O142: =O137+O138+O140 ->  | P142: =P137+P138+P140 -> 
E144: NPV at nominal WACC of | I144: =I132 -> 0.1064 | L144: =NPV(I144,L142:P142) ->  | M144: =L135-L144 -> 
F145: Check | L145: =IF(ROUND(L135-L144,5)=0,"ok","problem") -> 
D147: Closing written down value | K147: =K105-K111-K82+K100+K109 -> 
B161: RAB Calculations
C162: ="Asset Class 2 - "&E14 -> Asset Class 2 - Meters
C164: Real calculations
D166: Real asset value
E168: Opening balance | K168: =#REF! ->  | L168: =K176 ->  | M168: =L176 ->  | N168: =M176 ->  | O168: =N176 ->  | P168: =O176 -> 
E170: Capex
F171: First 50% | K171: =#REF!/2 ->  | L171: =#REF!/2 ->  | M171: =#REF!/2 ->  | N171: =#REF!/2 ->  | O171: =#REF!/2 ->  | P171: =#REF!/2 -> 
F172: Remainder | K172: =K171 -> 
E174: Depreciation | K174: =K178 -> 
E176: Closing balance | K176: =-K174+K172+K171+K168 -> 
E178: Depreciation | J178: ='General Inputs'!#REF! ->  | K178: ='General Inputs'!#REF! ->  | L178: ='General Inputs'!#REF! ->  | M178: ='General Inputs'!#REF! ->  | N178: ='General Inputs'!#REF! ->  | O178: ='General Inputs'!#REF! ->  | P178: ='General Inputs'!#REF! -> 
C181: Depreciation
D183: Total depreciation | J183: =J178 -> 
C186: Asset Returns
D188: Initial assets
E189: Regulatory value of initial assets | K189: =IF($K183=0,0,$K168*'RAB Calculations'!K$47*('RAB Calculations'!K183/'RAB Calculations'!$K183)) ->  | L189: =IF($K183=0,0,$K168*'RAB Calculations'!L$47*('RAB Calculations'!L183/'RAB Calculations'!$K183)) ->  | M189: =IF($K183=0,0,$K168*'RAB Calculations'!M$47*('RAB Calculations'!M183/'RAB Calculations'!$K183)) ->  | N189: =IF($K183=0,0,$K168*'RAB Calculations'!N$47*('RAB Calculations'!N183/'RAB Calculations'!$K183)) ->  | O189: =IF($K183=0,0,$K168*'RAB Calculations'!O$47*('RAB Calculations'!O183/'RAB Calculations'!$K183)) ->  | P189: =IF($K183=0,0,$K168*'RAB Calculations'!P$47*('RAB Calculations'!P183/'RAB Calculations'!$K183)) -> 
D192: Capex
E193: Regulatory value of remainder of year1 capex | K193: =$K171*'RAB Calculations'!K$47 ->  | L193: =$K171*'RAB Calculations'!L$47 ->  | M193: =$K171*'RAB Calculations'!M$47 ->  | N193: =$K171*'RAB Calculations'!N$47 ->  | O193: =$K171*'RAB Calculations'!O$47 ->  | P193: =$K171*'RAB Calculations'!P$47 -> 
E194: cost base of 50% of capex
F195: Year 1 capex | K195: =$K171*'RAB Calculations'!K$47 ->  | L195: =$K171*'RAB Calculations'!L$47 ->  | M195: =$K171*'RAB Calculations'!M$47 ->  | N195: =$K171*'RAB Calculations'!N$47 ->  | O195: =$K171*'RAB Calculations'!O$47 ->  | P195: =$K171*'RAB Calculations'!P$47 -> 
F196: Year 2 capex | L196: =$L171*'RAB Calculations'!L$48 ->  | M196: =$L171*'RAB Calculations'!M$48 ->  | N196: =$L171*'RAB Calculations'!N$48 ->  | O196: =$L171*'RAB Calculations'!O$48 ->  | P196: =$L171*'RAB Calculations'!P$48 -> 
F197: Year 3 capex | M197: =$M171*'RAB Calculations'!M$49 ->  | N197: =$M171*'RAB Calculations'!N$49 ->  | O197: =$M171*'RAB Calculations'!O$49 ->  | P197: =$M171*'RAB Calculations'!P$49 -> 
F198: Year 4 capex | N198: =$N171*'RAB Calculations'!N$50 ->  | O198: =$N171*'RAB Calculations'!O$50 ->  | P198: =$N171*'RAB Calculations'!P$50 -> 
F199: Year 5 capex | O199: =$O171*'RAB Calculations'!O$51 ->  | P199: =$O171*'RAB Calculations'!P$51 -> 
F200: Year 6 capex | P200: =$P171*'RAB Calculations'!P$52 -> 
D201: Total | K201: =SUM(K195:K200) -> 
D204: Asset returns
E205: Regulatory value of initial assets for return purposes
F206: cost base | K206: =$K168*'RAB Calculations'!K$47 ->  | L206: =$K168*'RAB Calculations'!L$47 ->  | M206: =$K168*'RAB Calculations'!M$47 ->  | N206: =$K168*'RAB Calculations'!N$47 ->  | O206: =$K168*'RAB Calculations'!O$47 ->  | P206: =$K168*'RAB Calculations'!P$47 -> 
E207: Value of Year 1 remainder assets for return purposes
F208: cost base | K208: =$K193/'RAB Calculations'!$K$48*'RAB Calculations'!K$48 ->  | L208: =$K193/'RAB Calculations'!$K$48*'RAB Calculations'!L$48 ->  | M208: =$K193/'RAB Calculations'!$K$48*'RAB Calculations'!M$48 ->  | N208: =$K193/'RAB Calculations'!$K$48*'RAB Calculations'!N$48 ->  | O208: =$K193/'RAB Calculations'!$K$48*'RAB Calculations'!O$48 ->  | P208: =$K193/'RAB Calculations'!$K$48*'RAB Calculations'!P$48 -> 
E209: WDV of 50% of capex
F210: cost base | K210: =K195 ->  | L210: =K210*(1+'General Inputs'!$B$6)+'RAB Calculations'!L196 ->  | M210: =L210*(1+'General Inputs'!$B$6)+'RAB Calculations'!M197 ->  | N210: =M210*(1+'General Inputs'!$B$6)+'RAB Calculations'!N198 ->  | O210: =N210*(1+'General Inputs'!$B$6)+'RAB Calculations'!O199 ->  | P210: =O210*(1+'General Inputs'!$B$6)+'RAB Calculations'!P200 -> 
F212: accumulated depreciation (to start of year) | K212: =J183*'RAB Calculations'!K$47 ->  | L212: =(K212+K183)*(1+'General Inputs'!$B$6) ->  | M212: =(L212+L183)*(1+'General Inputs'!$B$6) ->  | N212: =(M212+M183)*(1+'General Inputs'!$B$6) ->  | O212: =(N212+N183)*(1+'General Inputs'!$B$6) ->  | P212: =(O212+O183)*(1+'General Inputs'!$B$6) -> 
E214: Total WDV of 50% of capex | K214: =K206-K212+K210+(K210+((J210-(J210/'RAB Calculations'!$J$47*'RAB Calculations'!$I$47)))+K171) ->  | L214: =L206-L212+L210+(L210+((K210-(K210/'RAB Calculations'!$J$47*'RAB Calculations'!J$47)))+L171) ->  | M214: =M206-M212+M210+(M210+((L210-(L210/'RAB Calculations'!$J$47*'RAB Calculations'!K$47)))+M171) ->  | N214: =N206-N212+N210+(N210+((M210-(M210/'RAB Calculations'!$J$47*'RAB Calculations'!L$47)))+N171) ->  | O214: =O206-O212+O210+(O210+((N210-(N210/'RAB Calculations'!$J$47*'RAB Calculations'!M$47)))+O171) ->  | P214: =P206-P212+P210+(P210+((O210-(O210/'RAB Calculations'!$J$47*'RAB Calculations'!N$47)))+P171) -> 
D216: Total asset returns | K216: =(K206+K210-K212)*'General Inputs'!$B$7 ->  | L216: =(L206+L210-L212)*'General Inputs'!$B$7+((K210-($K210/'RAB Calculations'!$K$47*'RAB Calculations'!K$47)))*'General Inputs'!$B$7+L208*'General Inputs'!$B$7 ->  | M216: =(M206+M210-M212)*'General Inputs'!$B$7+((L210-($K210/'RAB Calculations'!$K$47*'RAB Calculations'!L$47)))*'General Inputs'!$B$7+M208*'General Inputs'!$B$7 ->  | N216: =(N206+N210-N212)*'General Inputs'!$B$7+((M210-($K210/'RAB Calculations'!$K$47*'RAB Calculations'!M$47)))*'General Inputs'!$B$7+N208*'General Inputs'!$B$7 ->  | O216: =(O206+O210-O212)*'General Inputs'!$B$7+((N210-($K210/'RAB Calculations'!$K$47*'RAB Calculations'!N$47)))*'General Inputs'!$B$7+O208*'General Inputs'!$B$7 ->  | P216: =(P206+P210-P212)*'General Inputs'!$B$7+((O210-($K210/'RAB Calculations'!$K$47*'RAB Calculations'!O$47)))*'General Inputs'!$B$7+P208*'General Inputs'!$B$7 -> 
C219: Proof of Calculations
D221: Initial assets
E222: Opening balance | L222: =K189-K183-K212 -> 
D224: First 50% of capex
E225: Spend | K225: =K171 -> 
E226: Carried forward balance | L226: =K195 -> 
E227: NPV at nominal WACC of | I227: =NompretaxWACC -> 0.1064 | L227: =L226+L225+NPV(I227,M225:P225) -> 
D229: Remainder of capex
E230: Spend | K230: =K172 -> 
E231: Carried forward balance | L231: =K193 -> 
E232: NPV at nominal WACC of | I232: =I227 -> 0.1064 | L232: =L231+NPV(I232,L230:P230) -> 
L233: =L235-L227-L232 -> 
D235: Total opening balance | L235: =L222+L227+L232 -> 
E236: Revenue stream
F237: depreciation | L237: =L183 ->  | M237: =M183 ->  | N237: =N183 ->  | O237: =O183 ->  | P237: =P183 -> 
F238: Return on assets | L238: =L216 ->  | M238: =M216 ->  | N238: =N216 ->  | O238: =O216 ->  | P238: =P216 -> 
F239: Residual value
F240: residual value of initial assets | P240: =(P206-P212-P237+P210)+P208+P230+(O210-(K210/'RAB Calculations'!K47*'RAB Calculations'!O47)) -> 
F241: residual value of remainder of capex
E242: Total | L242: =L237+L238+L240 ->  | M242: =M237+M238+M240 ->  | N242: =N237+N238+N240 ->  | O242: =O237+O238+O240 ->  | P242: =P237+P238+P240 -> 
E244: NPV at nominal WACC of | I244: =I232 -> 0.1064 | L244: =NPV(I244,L242:P242) ->  | M244: =L235-L244 -> 
F245: Check | L245: =IF(ROUND(L235-L244,5)=0,"ok","problem") -> 
D247: Closing written down value | K247: =K206-K212-K183+K201+K210 -> 
B261: RAB Calculations
C262: ="Asset Class 3 - "&E15 -> Asset Class 3 - Telemetry
C264: Real calculations
D266: Real asset value
E268: Opening balance | K268: =#REF! ->  | L268: =K276 ->  | M268: =L276 ->  | N268: =M276 ->  | O268: =N276 ->  | P268: =O276 -> 
E270: Capex
F271: First 50% | K271: =#REF!/2 ->  | L271: =#REF!/2 ->  | M271: =#REF!/2 ->  | N271: =#REF!/2 ->  | O271: =#REF!/2 ->  | P271: =#REF!/2 -> 
F272: Remainder | K272: =K271 -> 
E274: Depreciation | K274: =K278 -> 
E276: Closing balance | K276: =-K274+K272+K271+K268 -> 
E278: Depreciation | J278: ='General Inputs'!#REF! ->  | K278: ='General Inputs'!#REF! ->  | L278: ='General Inputs'!#REF! ->  | M278: ='General Inputs'!#REF! ->  | N278: ='General Inputs'!#REF! ->  | O278: ='General Inputs'!#REF! ->  | P278: ='General Inputs'!#REF! -> 
C281: Depreciation
D283: Total depreciation | J283: =J278 -> 
C286: Asset Returns
D288: Initial assets
E289: Regulatory value of initial assets | K289: =IF($K283=0,0,$K268*'RAB Calculations'!K$47*('RAB Calculations'!K283/'RAB Calculations'!$K283)) ->  | L289: =IF($K283=0,0,$K268*'RAB Calculations'!L$47*('RAB Calculations'!L283/'RAB Calculations'!$K283)) ->  | M289: =IF($K283=0,0,$K268*'RAB Calculations'!M$47*('RAB Calculations'!M283/'RAB Calculations'!$K283)) ->  | N289: =IF($K283=0,0,$K268*'RAB Calculations'!N$47*('RAB Calculations'!N283/'RAB Calculations'!$K283)) ->  | O289: =IF($K283=0,0,$K268*'RAB Calculations'!O$47*('RAB Calculations'!O283/'RAB Calculations'!$K283)) ->  | P289: =IF($K283=0,0,$K268*'RAB Calculations'!P$47*('RAB Calculations'!P283/'RAB Calculations'!$K283)) -> 
D292: Capex
E293: Regulatory value of remainder of year1 capex | K293: =$K271*'RAB Calculations'!K$47 ->  | L293: =$K271*'RAB Calculations'!L$47 ->  | M293: =$K271*'RAB Calculations'!M$47 ->  | N293: =$K271*'RAB Calculations'!N$47 ->  | O293: =$K271*'RAB Calculations'!O$47 ->  | P293: =$K271*'RAB Calculations'!P$47 -> 
E294: cost base of 50% of capex
F295: Year 1 capex | K295: =$K271*'RAB Calculations'!K$47 ->  | L295: =$K271*'RAB Calculations'!L$47 ->  | M295: =$K271*'RAB Calculations'!M$47 ->  | N295: =$K271*'RAB Calculations'!N$47 ->  | O295: =$K271*'RAB Calculations'!O$47 ->  | P295: =$K271*'RAB Calculations'!P$47 -> 
F296: Year 2 capex | L296: =$L271*'RAB Calculations'!L$48 ->  | M296: =$L271*'RAB Calculations'!M$48 ->  | N296: =$L271*'RAB Calculations'!N$48 ->  | O296: =$L271*'RAB Calculations'!O$48 ->  | P296: =$L271*'RAB Calculations'!P$48 -> 
F297: Year 3 capex | M297: =$M271*'RAB Calculations'!M$49 ->  | N297: =$M271*'RAB Calculations'!N$49 ->  | O297: =$M271*'RAB Calculations'!O$49 ->  | P297: =$M271*'RAB Calculations'!P$49 -> 
F298: Year 4 capex | N298: =$N271*'RAB Calculations'!N$50 ->  | O298: =$N271*'RAB Calculations'!O$50 ->  | P298: =$N271*'RAB Calculations'!P$50 -> 
F299: Year 5 capex | O299: =$O271*'RAB Calculations'!O$51 ->  | P299: =$O271*'RAB Calculations'!P$51 -> 
F300: Year 6 capex | P300: =$P271*'RAB Calculations'!P$52 -> 
D301: Total | K301: =SUM(K295:K300) -> 
D304: Asset returns
E305: Regulatory value of initial assets for return purposes
F306: cost base | K306: =$K268*'RAB Calculations'!K$47 ->  | L306: =$K268*'RAB Calculations'!L$47 ->  | M306: =$K268*'RAB Calculations'!M$47 ->  | N306: =$K268*'RAB Calculations'!N$47 ->  | O306: =$K268*'RAB Calculations'!O$47 ->  | P306: =$K268*'RAB Calculations'!P$47 -> 
E307: Value of Year 1 remainder assets for return purposes
F308: cost base | K308: =$K293/'RAB Calculations'!$K$48*'RAB Calculations'!K$48 ->  | L308: =$K293/'RAB Calculations'!$K$48*'RAB Calculations'!L$48 ->  | M308: =$K293/'RAB Calculations'!$K$48*'RAB Calculations'!M$48 ->  | N308: =$K293/'RAB Calculations'!$K$48*'RAB Calculations'!N$48 ->  | O308: =$K293/'RAB Calculations'!$K$48*'RAB Calculations'!O$48 ->  | P308: =$K293/'RAB Calculations'!$K$48*'RAB Calculations'!P$48 -> 
E309: WDV of 50% of capex
F310: cost base | K310: =K295 ->  | L310: =K310*(1+'General Inputs'!$B$6)+'RAB Calculations'!L296 ->  | M310: =L310*(1+'General Inputs'!$B$6)+'RAB Calculations'!M297 ->  | N310: =M310*(1+'General Inputs'!$B$6)+'RAB Calculations'!N298 ->  | O310: =N310*(1+'General Inputs'!$B$6)+'RAB Calculations'!O299 ->  | P310: =O310*(1+'General Inputs'!$B$6)+'RAB Calculations'!P300 -> 
F312: accumulated depreciation (to start of year) | K312: =J283*'RAB Calculations'!K$47 ->  | L312: =(K312+K283)*(1+'General Inputs'!$B$6) ->  | M312: =(L312+L283)*(1+'General Inputs'!$B$6) ->  | N312: =(M312+M283)*(1+'General Inputs'!$B$6) ->  | O312: =(N312+N283)*(1+'General Inputs'!$B$6) ->  | P312: =(O312+O283)*(1+'General Inputs'!$B$6) -> 
E314: Total WDV of 50% of capex | K314: =K306-K312+K310+(K310+((J310-(J310/'RAB Calculations'!$J$47*'RAB Calculations'!I$47)))+K271) ->  | L314: =L306-L312+L310+(L310+((K310-(K310/'RAB Calculations'!$J$47*'RAB Calculations'!J$47)))+L271) ->  | M314: =M306-M312+M310+(M310+((L310-(L310/'RAB Calculations'!$J$47*'RAB Calculations'!K$47)))+M271) ->  | N314: =N306-N312+N310+(N310+((M310-(M310/'RAB Calculations'!$J$47*'RAB Calculations'!L$47)))+N271) ->  | O314: =O306-O312+O310+(O310+((N310-(N310/'RAB Calculations'!$J$47*'RAB Calculations'!M$47)))+O271) ->  | P314: =P306-P312+P310+(P310+((O310-(O310/'RAB Calculations'!$J$47*'RAB Calculations'!N$47)))+P271) -> 
D316: Total asset returns | K316: =(K306+K310-K312)*'General Inputs'!$B$7 ->  | L316: =(L306+L310-L312)*'General Inputs'!$B$7+((K310-($K310/'RAB Calculations'!$K$47*'RAB Calculations'!K$47)))*'General Inputs'!$B$7+L308*'General Inputs'!$B$7 ->  | M316: =(M306+M310-M312)*'General Inputs'!$B$7+((L310-($K310/'RAB Calculations'!$K$47*'RAB Calculations'!L$47)))*'General Inputs'!$B$7+M308*'General Inputs'!$B$7 ->  | N316: =(N306+N310-N312)*'General Inputs'!$B$7+((M310-($K310/'RAB Calculations'!$K$47*'RAB Calculations'!M$47)))*'General Inputs'!$B$7+N308*'General Inputs'!$B$7 ->  | O316: =(O306+O310-O312)*'General Inputs'!$B$7+((N310-($K310/'RAB Calculations'!$K$47*'RAB Calculations'!N$47)))*'General Inputs'!$B$7+O308*'General Inputs'!$B$7 ->  | P316: =(P306+P310-P312)*'General Inputs'!$B$7+((O310-($K310/'RAB Calculations'!$K$47*'RAB Calculations'!O$47)))*'General Inputs'!$B$7+P308*'General Inputs'!$B$7 -> 
C319: Proof of Calculations
D321: Initial assets
E322: Opening balance | L322: =K289-K283-K312 -> 
D324: First 50% of capex
E325: Spend | K325: =K271 -> 
E326: Carried forward balance | L326: =K295 -> 
E327: NPV at nominal WACC of | I327: =NompretaxWACC -> 0.1064 | L327: =L326+L325+NPV(I327,M325:P325) -> 
D329: Remainder of capex
E330: Spend | K330: =K272 -> 
E331: Carried forward balance | L331: =K293 -> 
... 186 more rows

Sheet Tariff Inputs
A1: Tariff Inputs
A4: ='General Inputs'!B20 -> Residential 1 | B4: 2004/05 | C4: 2005/06 | D4: ='Volume Inputs'!A5 -> 2006/07 | E4: ='Volume Inputs'!A6 -> 2007/08 | F4: ='Volume Inputs'!A7 -> 2008/09 | G4: ='Volume Inputs'!A8 -> 2009/10 | H4: ='Volume Inputs'!A9 -> 2010/11 | I4: 2011/12 | J4: 2012/13 | K4: 2013/14 | L4: 2014/15 | M4: 2015/16
A5: ='General Inputs'!E20 -> Residential tariff - anytime use
A6: Fixed ($/day) | B6: 0 | C6: 0 | D6: 0.229 | E6: 0.248 | F6: 0.26 | G6: 0.28 | H6: ='[8]Alternative Tariff Schedule'!$B$6 -> 0.31 | I6: 0 | J6: 0 | K6: 0 | L6: 0 | M6: 0
A7: Band 1 ($/GJ) | B7: 0 | C7: 0 | D7: 9.977 | E7: 10.15 | F7: 10.82 | G7: 11.02 | H7: ='[8]Alternative Tariff Schedule'!$B$7 -> 14 | I7: 0 | J7: 0 | K7: 0 | L7: 0 | M7: 0
A8: Band 2 ($/GJ) | B8: 0 | C8: 0 | D8: 4.758 | E8: 4.82 | F8: 5.06 | G8: 5.14 | H8: ='[8]Alternative Tariff Schedule'!$B$8 -> 8.34465 | I8: 0 | J8: 0 | K8: 0 | L8: 0 | M8: 0
A9: Band 3 ($/GJ) | B9: 0 | C9: 0 | D9: 0 | E9: 0 | F9: 0 | G9: 0 | H9: ='[8]Alternative Tariff Schedule'!$B$9 -> 3.49598301 | I9: 0 | J9: 0 | K9: 0 | L9: 0 | M9: 0
A10: Band 4 ($/GJ) | B10: 0 | C10: 0 | D10: 0 | E10: 0 | F10: 0 | G10: 0 | H10: 0 | I10: 0 | J10: 0 | K10: 0 | L10: 0 | M10: 0
A11: Band 5 ($/GJ) | B11: 0 | C11: 0 | D11: 0 | E11: 0 | F11: 0 | G11: 0 | H11: 0 | I11: 0 | J11: 0 | K11: 0 | L11: 0 | M11: 0
A13: ='General Inputs'!B21 -> Residential 2 | B13: =B4 -> 2004/05 | C13: =C4 -> 2005/06 | D13: 2006/07 | E13: 2007/08 | F13: 2008/09 | G13: 2009/10 | H13: 2010/11 | I13: =I4 -> 2011/12 | J13: =J4 -> 2012/13 | K13: =K4 -> 2013/14 | L13: =L4 -> 2014/15 | M13: =M4 -> 2015/16
A14: ='General Inputs'!E21 -> Residential tariff - HW booster only
A15: =A6 -> Fixed ($/day) | B15: 0 | C15: 0 | D15: 0 | E15: 0 | F15: 0 | G15: 0 | H15: 0 | I15: 0 | J15: 0 | K15: 0 | L15: 0 | M15: 0
A16: Band 1 ($/GJ) | B16: 0 | C16: 0 | D16: 0 | E16: 0 | F16: 0 | G16: 0 | H16: 0 | I16: 0 | J16: 0 | K16: 0 | L16: 0 | M16: 0
A17: Band 2 ($/GJ) | B17: 0 | C17: 0 | D17: 0 | E17: 0 | F17: 0 | G17: 0 | H17: 0 | I17: 0 | J17: 0 | K17: 0 | L17: 0 | M17: 0
A18: Band 3 ($/GJ) | B18: 0 | C18: 0 | D18: 0 | E18: 0 | F18: 0 | G18: 0 | H18: 0 | I18: 0 | J18: 0 | K18: 0 | L18: 0 | M18: 0
A19: Band 4 ($/GJ) | B19: 0 | C19: 0 | D19: 0 | E19: 0 | F19: 0 | G19: 0 | H19: 0 | I19: 0 | J19: 0 | K19: 0 | L19: 0 | M19: 0
A20: Band 5 ($/GJ) | B20: 0 | C20: 0 | D20: 0 | E20: 0 | F20: 0 | G20: 0 | H20: 0 | I20: 0 | J20: 0 | K20: 0 | L20: 0 | M20: 0
A22: ='General Inputs'!B22 -> Residential 3 | B22: =B13 -> 2004/05 | C22: =C13 -> 2005/06 | D22: 2006/07 | E22: 2007/08 | F22: 2008/09 | G22: 2009/10 | H22: 2010/11 | I22: =I13 -> 2011/12 | J22: =J13 -> 2012/13 | K22: =K13 -> 2013/14 | L22: =L13 -> 2014/15 | M22: =M13 -> 2015/16
A23: ='General Inputs'!E22 -> Residential Tariff - off peak only
A24: =A15 -> Fixed ($/day) | B24: 0 | C24: 0 | D24: 0 | E24: 0 | F24: 0 | G24: 0 | H24: 0 | I24: 0 | J24: 0 | K24: 0 | L24: 0 | M24: 0
A25: Band 1 ($/GJ) | B25: 0 | C25: 0 | D25: 0 | E25: 0 | F25: 0 | G25: 0 | H25: 0 | I25: 0 | J25: 0 | K25: 0 | L25: 0 | M25: 0
A26: Band 2 ($/GJ) | B26: 0 | C26: 0 | D26: 0 | E26: 0 | F26: 0 | G26: 0 | H26: 0 | I26: 0 | J26: 0 | K26: 0 | L26: 0 | M26: 0
A27: Band 3 ($/GJ) | B27: 0 | C27: 0 | D27: 0 | E27: 0 | F27: 0 | G27: 0 | H27: 0 | I27: 0 | J27: 0 | K27: 0 | L27: 0 | M27: 0
A28: Band 4 ($/GJ) | B28: 0 | C28: 0 | D28: 0 | E28: 0 | F28: 0 | G28: 0 | H28: 0 | I28: 0 | J28: 0 | K28: 0 | L28: 0 | M28: 0
A29: Band 5 ($/GJ) | B29: 0 | C29: 0 | D29: 0 | E29: 0 | F29: 0 | G29: 0 | H29: 0 | I29: 0 | J29: 0 | K29: 0 | L29: 0 | M29: 0
A31: ='General Inputs'!B23 -> Commercial 1 | B31: =B22 -> 2004/05 | C31: =C22 -> 2005/06 | D31: 2006/07 | E31: 2007/08 | F31: 2008/09 | G31: 2009/10 | H31: 2010/11 | I31: =I22 -> 2011/12 | J31: =J22 -> 2012/13 | K31: =K22 -> 2013/14 | L31: =L22 -> 2014/15 | M31: =M22 -> 2015/16
A32: ='General Inputs'!E23 -> Commercial customers - anytime use
A33: =A24 -> Fixed ($/day) | B33: 0 | C33: 0 | D33: 0.467 | E33: 0.539 | F33: 0.52 | G33: 0.56 | H33: ='[8]Alternative Tariff Schedule'!$B$13 -> 0.62 | I33: 0 | J33: 0 | K33: 0 | L33: 0 | M33: 0
A34: Band 1 ($/GJ) | B34: 0 | C34: 0 | D34: 7.359 | E34: 7.55 | F34: 8.06 | G34: 8.3 | H34: ='[8]Alternative Tariff Schedule'!$B$14 -> 8.8 | I34: 0 | J34: 0 | K34: 0 | L34: 0 | M34: 0
A35: Band 2 ($/GJ) | B35: 0 | C35: 0 | D35: 4.227 | E35: 4.32 | F35: 4.56 | G35: 4.69 | H35: ='[8]Alternative Tariff Schedule'!$B$15 -> 4.72 | I35: 0 | J35: 0 | K35: 0 | L35: 0 | M35: 0
A36: Band 3 ($/GJ) | B36: 0 | C36: 0 | D36: 1.85 | E36: 1.88 | F36: 1.99 | G36: 2.04 | H36: ='[8]Alternative Tariff Schedule'!$B$16 -> 2.06 | I36: 0 | J36: 0 | K36: 0 | L36: 0 | M36: 0
A37: Band 4 ($/GJ) | B37: 0 | C37: 0 | D37: 0.788 | E37: 0.79 | F37: 0.85 | G37: 0.86 | H37: ='[8]Alternative Tariff Schedule'!$B$17 -> 0.86 | I37: 0 | J37: 0 | K37: 0 | L37: 0 | M37: 0
A38: Band 5 ($/GJ) | B38: 0 | C38: 0 | D38: 0 | E38: 0 | F38: 0 | G38: 0 | H38: 0 | I38: 0 | J38: 0 | K38: 0 | L38: 0 | M38: 0
A40: ='General Inputs'!B24 -> Commercial 2 | B40: =B31 -> 2004/05 | C40: =C31 -> 2005/06 | D40: 2006/07 | E40: 2007/08 | F40: 2008/09 | G40: 2009/10 | H40: 2010/11 | I40: =I31 -> 2011/12 | J40: =J31 -> 2012/13 | K40: =K31 -> 2013/14 | L40: =L31 -> 2014/15 | M40: =M31 -> 2015/16
A41: ='General Inputs'!E24 -> Commercial customers - Off peak only
A42: =A33 -> Fixed ($/day) | B42: 0 | C42: 0 | D42: 0 | E42: 0 | F42: 0 | G42: 0 | H42: 0 | I42: 0 | J42: 0 | K42: 0 | L42: 0 | M42: 0
A43: Band 1 ($/GJ) | B43: 0 | C43: 0 | D43: 0 | E43: 0 | F43: 0 | G43: 0 | H43: 0 | I43: 0 | J43: 0 | K43: 0 | L43: 0 | M43: 0
A44: Band 2 ($/GJ) | B44: 0 | C44: 0 | D44: 0 | E44: 0 | F44: 0 | G44: 0 | H44: 0 | I44: 0 | J44: 0 | K44: 0 | L44: 0 | M44: 0
A45: Band 3 ($/GJ) | B45: 0 | C45: 0 | D45: 0 | E45: 0 | F45: 0 | G45: 0 | H45: 0 | I45: 0 | J45: 0 | K45: 0 | L45: 0 | M45: 0
A46: Band 4 ($/GJ) | B46: 0 | C46: 0 | D46: 0 | E46: 0 | F46: 0 | G46: 0 | H46: 0 | I46: 0 | J46: 0 | K46: 0 | L46: 0 | M46: 0
A47: Band 5 ($/GJ) | B47: 0 | C47: 0 | D47: 0 | E47: 0 | F47: 0 | G47: 0 | H47: 0 | I47: 0 | J47: 0 | K47: 0 | L47: 0 | M47: 0
A49: Demand-AdNr | B49: =B40 -> 2004/05 | C49: =C40 -> 2005/06 | D49: 2006/07 | E49: 2007/08 | F49: 2008/09 | G49: 2009/10 | H49: 2010/11 | I49: =I40 -> 2011/12 | J49: =J40 -> 2012/13 | K49: =K40 -> 2013/14 | L49: =L40 -> 2014/15 | M49: =M40 -> 2015/16
A50: Demand customers in region 1
A51: Fixed ($/month) | B51: 0 | C51: 0 | D51: 2130 | E51: 2317 | F51: 2419 | G51: 2506 | H51: ='[8]Alternative Tariff Schedule'!C21 -> 2682 | I51: 0 | J51: 0 | K51: 0 | L51: 0 | M51: 0
A52: Band 1 ($/GJ) | B52: 0 | C52: 0 | D52: 28.43 | E52: 29.28 | F52: 30.86 | G52: 32.4 | H52: ='[8]Alternative Tariff Schedule'!C22 -> 34.06 | I52: 0 | J52: 0 | K52: 0 | L52: 0 | M52: 0
A53: Band 2 ($/GJ) | B53: 0 | C53: 0 | D53: 18.92 | E53: 19.3 | F53: 20.3 | G53: 20.91 | H53: ='[8]Alternative Tariff Schedule'!C23 -> 21.33 | I53: 0 | J53: 0 | K53: 0 | L53: 0 | M53: 0
A54: Band 3 ($/GJ) | B54: 0 | C54: 0 | D54: 5.61 | E54: 5.67 | F54: 5.94 | G54: 6.04 | H54: ='[8]Alternative Tariff Schedule'!C24 -> 6.4 | I54: 0 | J54: 0 | K54: 0 | L54: 0 | M54: 0
A55: Band 4 ($/GJ) | B55: 0 | C55: 0 | D55: 0 | E55: 0 | F55: 0 | G55: 0 | H55: 0 | I55: 0 | J55: 0 | K55: 0 | L55: 0 | M55: 0
A56: Band 5 ($/GJ) | B56: 0 | C56: 0 | D56: 0 | E56: 0 | F56: 0 | G56: 0 | H56: 0 | I56: 0 | J56: 0 | K56: 0 | L56: 0 | M56: 0
A58: Demand-AdC | B58: =B49 -> 2004/05 | C58: =C49 -> 2005/06 | D58: 2006/07 | E58: 2007/08 | F58: 2008/09 | G58: 2009/10 | H58: 2010/11 | I58: =I49 -> 2011/12 | J58: =J49 -> 2012/13 | K58: =K49 -> 2013/14 | L58: =L49 -> 2014/15 | M58: =M49 -> 2015/16
A59: Demand customers in region 2
A60: =A51 -> Fixed ($/month) | B60: 0 | C60: 0 | D60: 2130 | E60: 2317 | F60: 2419 | G60: 2506 | H60: ='[8]Alternative Tariff Schedule'!B21 -> 2682 | I60: 0 | J60: 0 | K60: 0 | L60: 0 | M60: 0
A61: Band 1 ($/GJ) | B61: 0 | C61: 0 | D61: 33.88 | E61: 34.9 | F61: 36.78 | G61: 38.62 | H61: ='[8]Alternative Tariff Schedule'!B22 -> 40.59 | I61: 0 | J61: 0 | K61: 0 | L61: 0 | M61: 0
A62: Band 2 ($/GJ) | B62: 0 | C62: 0 | D62: 22.89 | E62: 23.34 | F62: 24.55 | G62: 25.29 | H62: ='[8]Alternative Tariff Schedule'!B23 -> 25.8 | I62: 0 | J62: 0 | K62: 0 | L62: 0 | M62: 0
A63: Band 3 ($/GJ) | B63: 0 | C63: 0 | D63: 6.49 | E63: 6.55 | F63: 6.86 | G63: 6.97 | H63: ='[8]Alternative Tariff Schedule'!B24 -> 7.4 | I63: 0 | J63: 0 | K63: 0 | L63: 0 | M63: 0
A64: Band 4 ($/GJ) | B64: 0 | C64: 0 | D64: 0 | E64: 0 | F64: 0 | G64: 0 | H64: 0 | I64: 0 | J64: 0 | K64: 0 | L64: 0 | M64: 0
A65: Band 5 ($/GJ) | B65: 0 | C65: 0 | D65: 0 | E65: 0 | F65: 0 | G65: 0 | H65: 0 | I65: 0 | J65: 0 | K65: 0 | L65: 0 | M65: 0
A67: Demand-AdS | B67: =B58 -> 2004/05 | C67: =C58 -> 2005/06 | D67: 2006/07 | E67: 2007/08 | F67: 2008/09 | G67: 2009/10 | H67: 2010/11 | I67: =I58 -> 2011/12 | J67: =J58 -> 2012/13 | K67: =K58 -> 2013/14 | L67: =L58 -> 2014/15 | M67: =M58 -> 2015/16
A68: Demand customers in region 3
A69: =A60 -> Fixed ($/month) | B69: 0 | C69: 0 | D69: 2130 | E69: 2317 | F69: 2419 | G69: 2506 | H69: ='[8]Alternative Tariff Schedule'!D21 -> 2682 | I69: 0 | J69: 0 | K69: 0 | L69: 0 | M69: 0
A70: Band 1 ($/GJ) | B70: 0 | C70: 0 | D70: 39.95 | E70: 41.15 | F70: 43.37 | G70: 45.54 | H70: ='[8]Alternative Tariff Schedule'!D22 -> 47.86 | I70: 0 | J70: 0 | K70: 0 | L70: 0 | M70: 0
A71: Band 2 ($/GJ) | B71: 0 | C71: 0 | D71: 26.59 | E71: 27.12 | F71: 28.53 | G71: 29.39 | H71: ='[8]Alternative Tariff Schedule'!D23 -> 29.97 | I71: 0 | J71: 0 | K71: 0 | L71: 0 | M71: 0
A72: Band 3 ($/GJ) | B72: 0 | C72: 0 | D72: 7.93 | E72: 8.01 | F72: 8.39 | G72: 8.53 | H72: ='[8]Alternative Tariff Schedule'!D24 -> 9.04 | I72: 0 | J72: 0 | K72: 0 | L72: 0 | M72: 0
A73: Band 4 ($/GJ) | B73: 0 | C73: 0 | D73: 0 | E73: 0 | F73: 0 | G73: 0 | H73: 0 | I73: 0 | J73: 0 | K73: 0 | L73: 0 | M73: 0
A74: Band 5 ($/GJ) | B74: 0 | C74: 0 | D74: 0 | E74: 0 | F74: 0 | G74: 0 | H74: 0 | I74: 0 | J74: 0 | K74: 0 | L74: 0 | M74: 0
A76: Demand-PP | B76: =B67 -> 2004/05 | C76: =C67 -> 2005/06 | D76: 2006/07 | E76: 2007/08 | F76: 2008/09 | G76: 2009/10 | H76: 2010/11 | I76: =I67 -> 2011/12 | J76: =J67 -> 2012/13 | K76: =K67 -> 2013/14 | L76: =L67 -> 2014/15 | M76: =M67 -> 2015/16
A77: Demand customers in region 4
A78: =A69 -> Fixed ($/month) | B78: 0 | C78: 0 | D78: 2130 | E78: 2317 | F78: 2419 | G78: 2506 | H78: ='[8]Alternative Tariff Schedule'!C28 -> 2682 | I78: 0 | J78: 0 | K78: 0 | L78: 0 | M78: 0
A79: Band 1 ($/GJ) | B79: 0 | C79: 0 | D79: 28.42 | E79: 29.27 | F79: 30.85 | G79: 32.39 | H79: ='[8]Alternative Tariff Schedule'!C29 -> 34.05 | I79: 0 | J79: 0 | K79: 0 | L79: 0 | M79: 0
A80: Band 2 ($/GJ) | B80: 0 | C80: 0 | D80: 15.43 | E80: 15.74 | F80: 16.56 | G80: 17.06 | H80: ='[8]Alternative Tariff Schedule'!C30 -> 17.4 | I80: 0 | J80: 0 | K80: 0 | L80: 0 | M80: 0
A81: Band 3 ($/GJ) | B81: 0 | C81: 0 | D81: 6.36 | E81: 6.42 | F81: 6.75 | G81: 6.86 | H81: ='[8]Alternative Tariff Schedule'!C31 -> 7.34 | I81: 0 | J81: 0 | K81: 0 | L81: 0 | M81: 0
A82: Band 4 ($/GJ) | B82: 0 | C82: 0 | D82: 5.19 | E82: 5.23 | F82: 5.5 | G82: 5.59 | H82: ='[8]Alternative Tariff Schedule'!C32 -> 5.98 | I82: 0 | J82: 0 | K82: 0 | L82: 0 | M82: 0
A83: Band 5 ($/GJ) | B83: 0 | C83: 0 | D83: 0 | E83: 0 | F83: 0 | G83: 0 | H83: 0 | I83: 0 | J83: 0 | K83: 0 | L83: 0 | M83: 0
A85: Demand-Peter | B85: =B76 -> 2004/05 | C85: =C76 -> 2005/06 | D85: 2006/07 | E85: 2007/08 | F85: 2008/09 | G85: 2009/10 | H85: 2010/11 | I85: =I76 -> 2011/12 | J85: =J76 -> 2012/13 | K85: =K76 -> 2013/14 | L85: =L76 -> 2014/15 | M85: =M76 -> 2015/16
A86: Demand customers in region 5
A87: =A78 -> Fixed ($/month) | B87: 0 | C87: 0 | D87: 2953 | E87: 3211 | F87: 3353 | G87: 3474 | H87: ='[8]Alternative Tariff Schedule'!B28 -> 3795 | I87: 0 | J87: 0 | K87: 0 | L87: 0 | M87: 0
A88: Band 1 ($/GJ) | B88: 0 | C88: 0 | D88: 41.71 | E88: 42.96 | F88: 45.28 | G88: 47.54 | H88: ='[8]Alternative Tariff Schedule'!B29 -> 49.92 | I88: 0 | J88: 0 | K88: 0 | L88: 0 | M88: 0
A89: Band 2 ($/GJ) | B89: 0 | C89: 0 | D89: 27.2 | E89: 27.74 | F89: 29.18 | G89: 30.06 | H89: ='[8]Alternative Tariff Schedule'!B30 -> 30.66 | I89: 0 | J89: 0 | K89: 0 | L89: 0 | M89: 0
A90: Band 3 ($/GJ) | B90: 0 | C90: 0 | D90: 27.2 | E90: 27.47 | F90: 28.87 | G90: 29.36 | H90: ='[8]Alternative Tariff Schedule'!B31 -> 31.42 | I90: 0 | J90: 0 | K90: 0 | L90: 0 | M90: 0
A91: Band 4 ($/GJ) | B91: 0 | C91: 0 | D91: 5.61 | E91: 5.66 | F91: 5.95 | G91: 6.05 | H91: ='[8]Alternative Tariff Schedule'!B32 -> 6.47 | I91: 0 | J91: 0 | K91: 0 | L91: 0 | M91: 0
A92: Band 5 ($/GJ) | B92: 0 | C92: 0 | D92: 0 | E92: 0 | F92: 0 | G92: 0 | H92: 0 | I92: 0 | J92: 0 | K92: 0 | L92: 0 | M92: 0
A94: Demand-River | B94: =B85 -> 2004/05 | C94: =C85 -> 2005/06 | D94: 2006/07 | E94: 2007/08 | F94: 2008/09 | G94: 2009/10 | H94: 2010/11 | I94: =I85 -> 2011/12 | J94: =J85 -> 2012/13 | K94: =K85 -> 2013/14 | L94: =L85 -> 2014/15 | M94: =M85 -> 2015/16
A95: Demand customers in region 6
A96: =A87 -> Fixed ($/month) | B96: 0 | C96: 0 | D96: 2953 | E96: 3211 | F96: 3353 | G96: 3474 | H96: ='[8]Alternative Tariff Schedule'!D28 -> 3795 | I96: 0 | J96: 0 | K96: 0 | L96: 0 | M96: 0
A97: Band 1 ($/GJ) | B97: 0 | C97: 0 | D97: 41.61 | E97: 42.86 | F97: 45.17 | G97: 47.43 | H97: ='[8]Alternative Tariff Schedule'!D29 -> 49.8 | I97: 0 | J97: 0 | K97: 0 | L97: 0 | M97: 0
A98: Band 2 ($/GJ) | B98: 0 | C98: 0 | D98: 27.2 | E98: 27.74 | F98: 29.18 | G98: 30.06 | H98: ='[8]Alternative Tariff Schedule'!D30 -> 30.66 | I98: 0 | J98: 0 | K98: 0 | L98: 0 | M98: 0
A99: Band 3 ($/GJ) | B99: 0 | C99: 0 | D99: 27.2 | E99: 27.47 | F99: 28.87 | G99: 29.36 | H99: ='[8]Alternative Tariff Schedule'!D31 -> 31.42 | I99: 0 | J99: 0 | K99: 0 | L99: 0 | M99: 0
A100: Band 4 ($/GJ) | B100: 0 | C100: 0 | D100: 5.61 | E100: 5.66 | F100: 5.95 | G100: 6.05 | H100: ='[8]Alternative Tariff Schedule'!D32 -> 6.47 | I100: 0 | J100: 0 | K100: 0 | L100: 0 | M100: 0
A101: Band 5 ($/GJ) | B101: 0 | C101: 0 | D101: 0 | E101: 0 | F101: 0 | G101: 0 | H101: 0 | I101: 0 | J101: 0 | K101: 0 | L101: 0 | M101: 0
A103: Demand-SE | B103: =B94 -> 2004/05 | C103: =C94 -> 2005/06 | D103: 2006/07 | E103: 2007/08 | F103: 2008/09 | G103: 2009/10 | H103: 2010/11 | I103: =I94 -> 2011/12 | J103: =J94 -> 2012/13 | K103: =K94 -> 2013/14 | L103: =L94 -> 2014/15 | M103: =M94 -> 2015/16
A104: Demand customers in region 7
A105: =A96 -> Fixed ($/month) | B105: 0 | C105: 0 | D105: 2130 | E105: 2317 | F105: 2419 | G105: 2506 | H105: ='[8]Alternative Tariff Schedule'!E28 -> 2682 | I105: 0 | J105: 0 | K105: 0 | L105: 0 | M105: 0
A106: Band 1 ($/GJ) | B106: 0 | C106: 0 | D106: 28.42 | E106: 29.27 | F106: 30.85 | G106: 32.39 | H106: ='[8]Alternative Tariff Schedule'!E29 -> 34.05 | I106: 0 | J106: 0 | K106: 0 | L106: 0 | M106: 0
A107: Band 2 ($/GJ) | B107: 0 | C107: 0 | D107: 15.43 | E107: 15.74 | F107: 16.56 | G107: 17.06 | H107: ='[8]Alternative Tariff Schedule'!E30 -> 17.4 | I107: 0 | J107: 0 | K107: 0 | L107: 0 | M107: 0
A108: Band 3 ($/GJ) | B108: 0 | C108: 0 | D108: 15.43 | E108: 15.58 | F108: 16.37 | G108: 16.65 | H108: ='[8]Alternative Tariff Schedule'!E31 -> 17.82 | I108: 0 | J108: 0 | K108: 0 | L108: 0 | M108: 0
A109: Band 4 ($/GJ) | B109: 0 | C109: 0 | D109: 5.61 | E109: 5.66 | F109: 5.95 | G109: 6.05 | H109: ='[8]Alternative Tariff Schedule'!E32 -> 6.47 | I109: 0 | J109: 0 | K109: 0 | L109: 0 | M109: 0
A110: Band 5 ($/GJ) | B110: 0 | C110: 0 | D110: 0 | E110: 0 | F110: 0 | G110: 0 | H110: 0 | I110: 0 | J110: 0 | K110: 0 | L110: 0 | M110: 0
A112: Demand-Whyal | B112: =B103 -> 2004/05 | C112: =C103 -> 2005/06 | D112: 2006/07 | E112: 2007/08 | F112: 2008/09 | G112: 2009/10 | H112: 2010/11 | I112: =I103 -> 2011/12 | J112: =J103 -> 2012/13 | K112: =K103 -> 2013/14 | L112: =L103 -> 2014/15 | M112: =M103 -> 2015/16
A113: Demand customers in region 8
A114: =A105 -> Fixed ($/month) | B114: 0 | C114: 0 | D114: 2130 | E114: 2317 | F114: 2419 | G114: 2506 | H114: ='[8]Alternative Tariff Schedule'!F28 -> 2682 | I114: 0 | J114: 0 | K114: 0 | L114: 0 | M114: 0
A115: Band 1 ($/GJ) | B115: 0 | C115: 0 | D115: 28.53 | E115: 29.39 | F115: 30.98 | G115: 32.53 | H115: ='[8]Alternative Tariff Schedule'!F29 -> 34.18 | I115: 0 | J115: 0 | K115: 0 | L115: 0 | M115: 0
A116: Band 2 ($/GJ) | B116: 0 | C116: 0 | D116: 15.43 | E116: 15.74 | F116: 16.56 | G116: 17.06 | H116: ='[8]Alternative Tariff Schedule'!F30 -> 17.4 | I116: 0 | J116: 0 | K116: 0 | L116: 0 | M116: 0
A117: Band 3 ($/GJ) | B117: 0 | C117: 0 | D117: 15.43 | E117: 15.58 | F117: 16.37 | G117: 16.65 | H117: ='[8]Alternative Tariff Schedule'!F31 -> 17.82 | I117: 0 | J117: 0 | K117: 0 | L117: 0 | M117: 0
A118: Band 4 ($/GJ) | B118: 0 | C118: 0 | D118: 5.61 | E118: 5.66 | F118: 5.95 | G118: 6.05 | H118: ='[8]Alternative Tariff Schedule'!F32 -> 6.47 | I118: 0 | J118: 0 | K118: 0 | L118: 0 | M118: 0
A119: Band 5 ($/GJ) | B119: 0 | C119: 0 | D119: 0 | E119: 0 | F119: 0 | G119: 0 | H119: 0 | I119: 0 | J119: 0 | K119: 0 | L119: 0 | M119: 0

Sheet Cost allocators
A1: Cost Allocators
A4: Tariff D Zonal Allocator Selection
A5: ='FDC Calculations'!A4 -> Return on capital | B5: Assets
A6: ='FDC Calculations'!A5 -> Return of capital | B6: Assets
A7: ='FDC Calculations'!A6 -> O&M | B7: Volume and Customer No
A8: ='FDC Calculations'!A7 -> Carry-over amounts | B8: Volume and Customer No
A9: ='FDC Calculations'!A8 -> Benchmark Tax liability | B9: Assets
A11: Tariff R+C Allocator Selection | C11: Residential | D11: Commercial
A12: =A5 -> Return on capital | B12: Volume and Customer No | C12: =IF(B12=$A$20,SUM($C$20:$E$20)/SUM($C$20:$G$20),IF(B12=$A$21,SUM($C$21:$E$21)/SUM($C$21:$G$21),SUM($C$22:$E$22)/SUM($C$22:$G$22))) ->  | D12: =IF(B12=$A$20,SUM($F$20:$G$20)/SUM($C$20:$G$20),IF(B12=$A$21,SUM($F$21:$G$21)/SUM($C$21:$G$21),SUM($F$22:$G$22)/SUM($C$22:$G$22))) -> 
A13: =A6 -> Return of capital | B13: Volume and Customer No | C13: =IF(B13=$A$20,SUM($C$20:$E$20)/SUM($C$20:$G$20),IF(B13=$A$21,SUM($C$21:$E$21)/SUM($C$21:$G$21),SUM($C$22:$E$22)/SUM($C$22:$G$22))) ->  | D13: =IF(B13=$A$20,SUM($F$20:$G$20)/SUM($C$20:$G$20),IF(B13=$A$21,SUM($F$21:$G$21)/SUM($C$21:$G$21),SUM($F$22:$G$22)/SUM($C$22:$G$22))) -> 
A14: =A7 -> O&M | B14: Volume and Customer No | C14: =IF(B14=$A$20,SUM($C$20:$E$20)/SUM($C$20:$G$20),IF(B14=$A$21,SUM($C$21:$E$21)/SUM($C$21:$G$21),SUM($C$22:$E$22)/SUM($C$22:$G$22))) ->  | D14: =IF(B14=$A$20,SUM($F$20:$G$20)/SUM($C$20:$G$20),IF(B14=$A$21,SUM($F$21:$G$21)/SUM($C$21:$G$21),SUM($F$22:$G$22)/SUM($C$22:$G$22))) -> 
A15: =A8 -> Carry-over amounts | B15: Volume and Customer No | C15: =IF(B15=$A$20,SUM($C$20:$E$20)/SUM($C$20:$G$20),IF(B15=$A$21,SUM($C$21:$E$21)/SUM($C$21:$G$21),SUM($C$22:$E$22)/SUM($C$22:$G$22))) ->  | D15: =IF(B15=$A$20,SUM($F$20:$G$20)/SUM($C$20:$G$20),IF(B15=$A$21,SUM($F$21:$G$21)/SUM($C$21:$G$21),SUM($F$22:$G$22)/SUM($C$22:$G$22))) -> 
A16: =A9 -> Benchmark Tax liability | B16: Volume and Customer No | C16: =IF(B16=$A$20,SUM($C$20:$E$20)/SUM($C$20:$G$20),IF(B16=$A$21,SUM($C$21:$E$21)/SUM($C$21:$G$21),SUM($C$22:$E$22)/SUM($C$22:$G$22))) ->  | D16: =IF(B16=$A$20,SUM($F$20:$G$20)/SUM($C$20:$G$20),IF(B16=$A$21,SUM($F$21:$G$21)/SUM($C$21:$G$21),SUM($F$22:$G$22)/SUM($C$22:$G$22))) -> 
A18: Allocators (Percentages) | B18: Total | C18: Residential 1 | D18: Residential 2 | E18: Residential 3 | F18: Commercial 1 | G18: Commercial 2 | H18: Demand-AdC | I18: Demand-AdNr | J18: Demand-AdS | K18: Demand-Peter | L18: Demand-PP | M18: Demand-River | N18: Demand-SE | O18: Demand-Town | P18: Demand-Whyal
A19: Assets | B19: =SUM(C19:P19) -> 0.06025937866 | H19: ='DORC Calculations'!$B$18/'DORC Calculations'!$B$26*'DORC Calculations'!$I$18 -> 0.01677194539 | I19: ='DORC Calculations'!$B$19/'DORC Calculations'!$B$26*'DORC Calculations'!$I$18 -> 0.02921334549 | J19: ='DORC Calculations'!$B$20/'DORC Calculations'!$B$26*'DORC Calculations'!$I$18 -> 0.008974009827 | K19: ='DORC Calculations'!$B$21/'DORC Calculations'!$B$26*'DORC Calculations'!$I$18 -> 0.0003604676318 | L19: ='DORC Calculations'!$B$22/'DORC Calculations'!$B$26*'DORC Calculations'!$I$18 -> 0.001870480444 | M19: ='DORC Calculations'!$B$23/'DORC Calculations'!$B$26*'DORC Calculations'!$I$18 -> 0.0003119237237 | N19: ='DORC Calculations'!$B$24/'DORC Calculations'!$B$26*'DORC Calculations'!$I$18 -> 0.002329561607 | P19: ='DORC Calculations'!$B$25/'DORC Calculations'!$B$26*'DORC Calculations'!$I$18 -> 0.0004276445551
A20: Customer Number | B20: =SUM(C20:P20) ->  | C20: =C28/SUM($C$28:$Q$28) ->  | D20: =D28/SUM($C$28:$Q$28) ->  | E20: =E28/SUM($C$28:$Q$28) ->  | F20: =F28/SUM($C$28:$Q$28) ->  | G20: =G28/SUM($C$28:$Q$28) ->  | H20: =H28/SUM($C$28:$P$28) ->  | P20: =P28/SUM($C$28:$P$28) -> 
A21: Volume | B21: =SUM(C21:P21) -> 1 | C21: =C29/SUM($C$29:$Q$29) -> 0.3405867823 | D21: =D29/SUM($C$29:$Q$29) -> 0 | E21: =E29/SUM($C$29:$Q$29) -> 0 | F21: =F29/SUM($C$29:$Q$29) -> 0.1405453403 | G21: =G29/SUM($C$29:$Q$29) -> 0 | H21: =H29/SUM($B$29:$P$29) -> 0.09627349976 | I21: =I29/SUM($C$29:$P$29) -> 0.3559803862 | J21: 0.03144331576 | K21: 0.0008131433836 | L21: 0.0202802361 | M21: 0.005338588669 | N21: 0.008263221475 | P21: =P29/SUM($C$29:$P$29) -> 0.0004754860646
A22: Volume and Customer No | B22: =SUM(C22:P22) ->  | C22: =$B$23*C20+$B$24*C21 ->  | D22: =$B$23*D20+$B$24*D21 -> 
A23: % Volume | B23: 0.5
A24: % Customer | B24: 0.5
A26: Allocators (Amounts) | C26: =C18 -> Residential 1 | D26: =D18 -> Residential 2 | E26: Residential 3 | F26: Commercial 1 | G26: Commercial 2 | H26: Demand-AdC | I26: Demand-AdNr | J26: Demand-AdS | K26: Demand-Peter | L26: Demand-PP | M26: Demand-River | N26: Demand-SE | O26: Demand-Town | P26: Demand-Whyal
A27: Assets | C27: 0 | D27: 0 | E27: 0 | F27: 0 | G27: 0 | H27: ='DORC Calculations'!B18 -> 17468737.97 | I27: ='DORC Calculations'!B19 -> 30427017.6 | J27: ='DORC Calculations'!B20 -> 9346836.195 | K27: ='DORC Calculations'!B21 -> 375443.305 | L27: ='DORC Calculations'!B22 -> 1948189.79 | M27: ='DORC Calculations'!B23 -> 324882.6341 | N27: ='DORC Calculations'!B24 -> 2426343.537 | P27: ='DORC Calculations'!B25 -> 445411.102
A28: Customer Number | C28: =IFERROR(AVERAGE('Connection Numbers Inputs'!$B5:$B9),0) ->  | D28: =IFERROR(AVERAGE('Connection Numbers Inputs'!$C5:$C9),0) ->  | E28: =IFERROR(AVERAGE('Connection Numbers Inputs'!$D5:$D9),0) ->  | F28: =IFERROR(AVERAGE('Connection Numbers Inputs'!$E5:$E9),0) ->  | G28: =IFERROR(AVERAGE('Connection Numbers Inputs'!$F5:$F9),0) ->  | H28: =IFERROR(AVERAGE('Connection Numbers Inputs'!$G5:$G9),0) ->  | I28: =IFERROR(AVERAGE('Connection Numbers Inputs'!$H5:$H9),0) ->  | J28: =IFERROR(AVERAGE('Connection Numbers Inputs'!$I5:$I9),0) ->  | K28: =IFERROR(AVERAGE('Connection Numbers Inputs'!$J5:$J9),0) ->  | L28: =IFERROR(AVERAGE('Connection Numbers Inputs'!$K5:$K9),0) ->  | M28: =IFERROR(AVERAGE('Connection Numbers Inputs'!$L5:$L9),0) ->  | N28: =IFERROR(AVERAGE('Connection Numbers Inputs'!$M5:$M9),0) ->  | P28: =IFERROR(AVERAGE('Connection Numbers Inputs'!$O5:$O9),0) -> 
A29: Volume | C29: =IF(C33="Demand",C56,AVERAGE('Volume Inputs'!B$65:B$69)) -> 7664322.557 | D29: =IF(D33="Demand",D56,AVERAGE('Volume Inputs'!C$65:C$69)) -> 0 | E29: =IF(E33="Demand",E56,AVERAGE('Volume Inputs'!D$65:D$69)) -> 0 | F29: =IF(F33="Demand",F56,AVERAGE('Volume Inputs'!E$65:E$69)) -> 3162732.314 | G29: =IF(G33="Demand",G56,AVERAGE('Volume Inputs'!F$65:F$69)) -> 0 | H29: =IF(H33="Demand",H56,AVERAGE('Volume Inputs'!G$65:G$69)) -> 2166470.322 | I29: =IF(I33="Demand",I56,AVERAGE('Volume Inputs'!H$65:H$69)) -> 8010729.263 | J29: =IF(J33="Demand",J56,AVERAGE('Volume Inputs'!I$65:I$69)) -> 707578 | K29: =IF(K33="Demand",K56,AVERAGE('Volume Inputs'!J$65:J$69)) -> 18298.4 | L29: =IF(L33="Demand",L56,AVERAGE('Volume Inputs'!K$65:K$69)) -> 456372 | M29: =IF(M33="Demand",M56,AVERAGE('Volume Inputs'!L$65:L$69)) -> 120135.8 | N29: =IF(N33="Demand",N56,AVERAGE('Volume Inputs'!M$65:M$69)) -> 185949.6552 | P29: =IF(P33="Demand",P56,AVERAGE('Volume Inputs'!O$65:O$69)) -> 10700
A31: Calculation of Consumption (GJ)
A32: Total MDQ | C32: =C26 -> Residential 1 | D32: =D26 -> Residential 2 | E32: Residential 3 | F32: Commercial 1 | G32: Commercial 2 | H32: Demand-AdC | I32: Demand-AdNr | J32: Demand-AdS | K32: Demand-Peter | L32: Demand-PP | M32: Demand-River | N32: Demand-SE | O32: Demand-Town | P32: Demand-Whyal
A33: Demand Tariff | C33: ='General Inputs'!C20 -> Non-demand | D33: ='General Inputs'!C21 -> Non-demand | E33: ='General Inputs'!C22 -> Non-demand | F33: ='General Inputs'!C23 -> Non-demand | G33: ='General Inputs'!C24 -> Non-demand | H33: ='General Inputs'!C26 -> Demand | I33: ='General Inputs'!C25 -> Demand | J33: ='General Inputs'!C27 -> Demand | K33: ='General Inputs'!C29 -> Demand | L33: ='General Inputs'!C28 -> Demand | M33: ='General Inputs'!C30 -> Demand | N33: ='General Inputs'!C31 -> Demand | O33: ='General Inputs'!C33 -> Demand | P33: ='General Inputs'!C32 -> Demand
A34: 2006/07 | C34: =IF($C33="Demand",'Volume Inputs'!B65,0) -> 0 | D34: =IF($D33="Demand",'Volume Inputs'!C65,0) -> 0 | E34: =IF($E33="Demand",'Volume Inputs'!D65,0) -> 0 | F34: =IF($F33="Demand",'Volume Inputs'!E65,0) -> 0 | G34: =IF($G33="Demand",'Volume Inputs'!F65,0) -> 0 | H34: =IF($H33="Demand",'Volume Inputs'!G65,0) -> 10393.01797 | I34: =IF($I33="Demand",'Volume Inputs'!H65,0) -> 44079.39222 | J34: =IF($J33="Demand",'Volume Inputs'!I65,0) -> 3860 | K34: =IF($K33="Demand",'Volume Inputs'!J65,0) -> 62 | L34: =IF($L33="Demand",'Volume Inputs'!K65,0) -> 1316 | M34: =IF($M33="Demand",'Volume Inputs'!L65,0) -> 750 | N34: =IF($N33="Demand",'Volume Inputs'!M65,0) -> 916.8392307 | P34: =IF($P33="Demand",'Volume Inputs'!O65,0) -> 57
A35: 2007/08 | C35: =IF($C33="Demand",'Volume Inputs'!B66,0) -> 0 | D35: =IF($D33="Demand",'Volume Inputs'!C66,0) -> 0 | E35: =IF($E33="Demand",'Volume Inputs'!D66,0) -> 0 | F35: =IF($F33="Demand",'Volume Inputs'!E66,0) -> 0 | G35: =IF($G33="Demand",'Volume Inputs'!F66,0) -> 0 | H35: =IF($H33="Demand",'Volume Inputs'!G66,0) -> 10365.94663 | I35: =IF($I33="Demand",'Volume Inputs'!H66,0) -> 50808 | J35: =IF($J33="Demand",'Volume Inputs'!I66,0) -> 3960 | K35: =IF($K33="Demand",'Volume Inputs'!J66,0) -> 62 | L35: =IF($L33="Demand",'Volume Inputs'!K66,0) -> 1316 | M35: =IF($M33="Demand",'Volume Inputs'!L66,0) -> 750 | N35: =IF($N33="Demand",'Volume Inputs'!M66,0) -> 947.6598879 | P35: =IF($P33="Demand",'Volume Inputs'!O66,0) -> 57
A36: 2008/09 | C36: =IF($C33="Demand",'Volume Inputs'!B67,0) -> 0 | D36: =IF($D33="Demand",'Volume Inputs'!C67,0) -> 0 | E36: =IF($E33="Demand",'Volume Inputs'!D67,0) -> 0 | F36: =IF($F33="Demand",'Volume Inputs'!E67,0) -> 0 | G36: =IF($G33="Demand",'Volume Inputs'!F67,0) -> 0 | H36: =IF($H33="Demand",'Volume Inputs'!G67,0) -> 10312.47311 | I36: =IF($I33="Demand",'Volume Inputs'!H67,0) -> 52147.33942 | J36: =IF($J33="Demand",'Volume Inputs'!I67,0) -> 4060 | K36: =IF($K33="Demand",'Volume Inputs'!J67,0) -> 62 | L36: =IF($L33="Demand",'Volume Inputs'!K67,0) -> 1316 | M36: =IF($M33="Demand",'Volume Inputs'!L67,0) -> 750 | N36: =IF($N33="Demand",'Volume Inputs'!M67,0) -> 980.592217 | P36: =IF($P33="Demand",'Volume Inputs'!O67,0) -> 57
A37: 2009/10 | C37: =IF($C33="Demand",'Volume Inputs'!B68,0) -> 0 | D37: =IF($D33="Demand",'Volume Inputs'!C68,0) -> 0 | E37: =IF($E33="Demand",'Volume Inputs'!D68,0) -> 0 | F37: =IF($F33="Demand",'Volume Inputs'!E68,0) -> 0 | G37: =IF($G33="Demand",'Volume Inputs'!F68,0) -> 0 | H37: =IF($H33="Demand",'Volume Inputs'!G68,0) -> 10272.58917 | I37: =IF($I33="Demand",'Volume Inputs'!H68,0) -> 52351.40258 | J37: =IF($J33="Demand",'Volume Inputs'!I68,0) -> 4160 | K37: =IF($K33="Demand",'Volume Inputs'!J68,0) -> 62 | L37: =IF($L33="Demand",'Volume Inputs'!K68,0) -> 1316 | M37: =IF($M33="Demand",'Volume Inputs'!L68,0) -> 750 | N37: =IF($N33="Demand",'Volume Inputs'!M68,0) -> 1015.780899 | P37: =IF($P33="Demand",'Volume Inputs'!O68,0) -> 57
A38: 2010/11 | C38: =IF($C33="Demand",'Volume Inputs'!B69,0) -> 0 | D38: =IF($D33="Demand",'Volume Inputs'!C69,0) -> 0 | E38: =IF($E33="Demand",'Volume Inputs'!D69,0) -> 0 | F38: =IF($F33="Demand",'Volume Inputs'!E69,0) -> 0 | G38: =IF($G33="Demand",'Volume Inputs'!F69,0) -> 0 | H38: =IF($H33="Demand",'Volume Inputs'!G69,0) -> 10236.28922 | I38: =IF($I33="Demand",'Volume Inputs'!H69,0) -> 51302.02894 | J38: =IF($J33="Demand",'Volume Inputs'!I69,0) -> 4260 | K38: =IF($K33="Demand",'Volume Inputs'!J69,0) -> 62 | L38: =IF($L33="Demand",'Volume Inputs'!K69,0) -> 1316 | M38: =IF($M33="Demand",'Volume Inputs'!L69,0) -> 750 | N38: =IF($N33="Demand",'Volume Inputs'!M69,0) -> 1053.380527 | P38: =IF($P33="Demand",'Volume Inputs'!O69,0) -> 57
A39: 2011/12 | C39: =IF($C33="Demand",'Volume Inputs'!B70,0) -> 0 | D39: =IF($D33="Demand",'Volume Inputs'!C70,0) -> 0 | E39: =IF($E33="Demand",'Volume Inputs'!D70,0) -> 0 | F39: =IF($F33="Demand",'Volume Inputs'!E70,0) -> 0 | G39: =IF($G33="Demand",'Volume Inputs'!F70,0) -> 0 | H39: =IF($H33="Demand",'Volume Inputs'!G70,0) -> 11626.8 | I39: =IF($I33="Demand",'Volume Inputs'!H70,0) -> 31548.8 | J39: =IF($J33="Demand",'Volume Inputs'!I70,0) -> 2901.7 | K39: =IF($K33="Demand",'Volume Inputs'!J70,0) -> 120.59 | L39: =IF($L33="Demand",'Volume Inputs'!K70,0) -> 3290.6 | M39: =IF($M33="Demand",'Volume Inputs'!L70,0) -> 443.45 | N39: =IF($N33="Demand",'Volume Inputs'!M70,0) -> 895.01 | P39: =IF($P33="Demand",'Volume Inputs'!O70,0) -> 50
A40: 2012/13 | C40: =IF($C33="Demand",'Volume Inputs'!B71,0) -> 0 | D40: =IF($D33="Demand",'Volume Inputs'!C71,0) -> 0 | E40: =IF($E33="Demand",'Volume Inputs'!D71,0) -> 0 | F40: =IF($F33="Demand",'Volume Inputs'!E71,0) -> 0 | G40: =IF($G33="Demand",'Volume Inputs'!F71,0) -> 0 | H40: =IF($H33="Demand",'Volume Inputs'!G71,0) -> 11436.5 | I40: =IF($I33="Demand",'Volume Inputs'!H71,0) -> 30723.3 | J40: =IF($J33="Demand",'Volume Inputs'!I71,0) -> 2968.7 | K40: =IF($K33="Demand",'Volume Inputs'!J71,0) -> 121.03 | L40: =IF($L33="Demand",'Volume Inputs'!K71,0) -> 3286.3 | M40: =IF($M33="Demand",'Volume Inputs'!L71,0) -> 446.86 | N40: =IF($N33="Demand",'Volume Inputs'!M71,0) -> 888.28 | P40: =IF($P33="Demand",'Volume Inputs'!O71,0) -> 50
A41: 2013/14 | C41: =IF($C33="Demand",'Volume Inputs'!B72,0) -> 0 | D41: =IF($D33="Demand",'Volume Inputs'!C72,0) -> 0 | E41: =IF($E33="Demand",'Volume Inputs'!D72,0) -> 0 | F41: =IF($F33="Demand",'Volume Inputs'!E72,0) -> 0 | G41: =IF($G33="Demand",'Volume Inputs'!F72,0) -> 0 | H41: =IF($H33="Demand",'Volume Inputs'!G72,0) -> 11138.8 | I41: =IF($I33="Demand",'Volume Inputs'!H72,0) -> 28946.8 | J41: =IF($J33="Demand",'Volume Inputs'!I72,0) -> 3001.8 | K41: =IF($K33="Demand",'Volume Inputs'!J72,0) -> 120.85 | L41: =IF($L33="Demand",'Volume Inputs'!K72,0) -> 3233.6 | M41: =IF($M33="Demand",'Volume Inputs'!L72,0) -> 447.98 | N41: =IF($N33="Demand",'Volume Inputs'!M72,0) -> 869.59 | P41: =IF($P33="Demand",'Volume Inputs'!O72,0) -> 50
A42: 2014/15 | C42: =IF($C33="Demand",'Volume Inputs'!B73,0) -> 0 | D42: =IF($D33="Demand",'Volume Inputs'!C73,0) -> 0 | E42: =IF($E33="Demand",'Volume Inputs'!D73,0) -> 0 | F42: =IF($F33="Demand",'Volume Inputs'!E73,0) -> 0 | G42: =IF($G33="Demand",'Volume Inputs'!F73,0) -> 0 | H42: =IF($H33="Demand",'Volume Inputs'!G73,0) -> 11212.5 | I42: =IF($I33="Demand",'Volume Inputs'!H73,0) -> 28986.2 | J42: =IF($J33="Demand",'Volume Inputs'!I73,0) -> 3063.9 | K42: =IF($K33="Demand",'Volume Inputs'!J73,0) -> 121.01 | L42: =IF($L33="Demand",'Volume Inputs'!K73,0) -> 3213.5 | M42: =IF($M33="Demand",'Volume Inputs'!L73,0) -> 454.75 | N42: =IF($N33="Demand",'Volume Inputs'!M73,0) -> 864.73 | P42: =IF($P33="Demand",'Volume Inputs'!O73,0) -> 50
A43: 2015/16 | C43: =IF($C33="Demand",'Volume Inputs'!B74,0) -> 0 | D43: =IF($D33="Demand",'Volume Inputs'!C74,0) -> 0 | E43: =IF($E33="Demand",'Volume Inputs'!D74,0) -> 0 | F43: =IF($F33="Demand",'Volume Inputs'!E74,0) -> 0 | G43: =IF($G33="Demand",'Volume Inputs'!F74,0) -> 0 | H43: =IF($H33="Demand",'Volume Inputs'!G74,0) -> 11328.6 | I43: =IF($I33="Demand",'Volume Inputs'!H74,0) -> 29643.2 | J43: =IF($J33="Demand",'Volume Inputs'!I74,0) -> 3142.8 | K43: =IF($K33="Demand",'Volume Inputs'!J74,0) -> 121.44 | L43: =IF($L33="Demand",'Volume Inputs'!K74,0) -> 3214.6 | M43: =IF($M33="Demand",'Volume Inputs'!L74,0) -> 463.75 | N43: =IF($N33="Demand",'Volume Inputs'!M74,0) -> 865.62 | P43: =IF($P33="Demand",'Volume Inputs'!O74,0) -> 50
A45: Calculated Consumption | C45: =C32 -> Residential 1 | D45: =D32 -> Residential 2 | E45: Residential 3 | F45: Commercial 1 | G45: Commercial 2 | H45: Demand-AdC | I45: Demand-AdNr | J45: Demand-AdS | K45: Demand-Peter | L45: Demand-PP | M45: Demand-River | N45: Demand-SE | O45: Demand-Town | P45: Demand-Whyal
A46: =A34 -> 2006/07 | C46: =C34/$B$59*$B$60 -> 0 | D46: 0 | E46: 0 | F46: 0 | G46: 0 | H46: 2078603.593 | I46: 8815878.445 | J46: =J34/$B$59*$B$60 -> 772000 | K46: =K34/$B$59*$B$60 -> 12400 | L46: =L34/$B$59*$B$60 -> 263200 | M46: =M34/$B$59*$B$60 -> 150000 | N46: =N34/$B$59*$B$60 -> 183367.8461 | P46: =P34/$B$59*$B$60 -> 11400
A47: =A35 -> 2007/08 | C47: =C35/$B$59*$B$60 -> 0 | D47: 0 | E47: 0 | F47: 0 | G47: 0 | H47: 2073189.326 | I47: 10161600 | J47: 792000 | K47: 12400 | L47: 263200 | M47: 150000 | N47: 189531.9776 | P47: =P35/$B$59*$B$60 -> 11400
A48: 2008/09 | C48: =C36/$B$59*$B$60 -> 0 | D48: 0 | E48: 0 | F48: 0 | G48: 0 | H48: 2062494.621 | I48: 10429467.88 | J48: 812000 | K48: 12400 | L48: 263200 | M48: 150000 | N48: 196118.4434 | P48: 11400
A49: 2009/10 | C49: =C37/$B$59*$B$60 -> 0 | D49: 0 | E49: 0 | F49: 0 | G49: 0 | H49: 2054517.834 | I49: 10470280.52 | J49: 832000 | K49: 12400 | L49: 263200 | M49: 150000 | N49: 203156.1798 | P49: 11400
A50: 2010/11 | C50: =C38/$B$59*$B$60 -> 0 | D50: 0 | E50: 0 | F50: 0 | G50: 0 | H50: 2047257.844 | I50: 10260405.79 | J50: 852000 | K50: 12400 | L50: 263200 | M50: 150000 | N50: 210676.1055 | P50: 11400
A51: 2011/12 | C51: =C39/$B$59*$B$60 -> 0 | D51: 0 | E51: 0 | F51: 0 | G51: 0 | H51: 2325360 | I51: 6309760 | J51: 580340 | K51: 24118 | L51: 658120 | M51: 88690 | N51: 179002 | P51: 10000
A52: 2012/13 | C52: =C40/$B$59*$B$60 -> 0 | D52: 0 | E52: 0 | F52: 0 | G52: 0 | H52: 2287300 | I52: 6144660 | J52: 593740 | K52: 24206 | L52: 657260 | M52: 89372 | N52: 177656 | P52: 10000
A53: 2013/14 | C53: =C41/$B$59*$B$60 -> 0 | D53: 0 | E53: 0 | F53: 0 | G53: 0 | H53: 2227760 | I53: 5789360 | J53: 600360 | K53: 24170 | L53: 646720 | M53: 89596 | N53: 173918 | P53: 10000
A54: 2014/15 | C54: =C42/$B$59*$B$60 -> 0 | D54: 0 | E54: 0 | F54: 0 | G54: 0 | H54: 2242500 | I54: 5797240 | J54: 612780 | K54: 24202 | L54: 642700 | M54: 90950 | N54: 172946 | P54: 10000
A55: 2015/16 | C55: =C43/$B$59*$B$60 -> 0 | D55: 0 | E55: 0 | F55: 0 | G55: 0 | H55: 2265720 | I55: 5928640 | J55: 628560 | K55: 24288 | L55: 642920 | M55: 92750 | N55: 173124 | P55: 10000
A56: Average | C56: =AVERAGE(C46:C55) -> 0 | D56: =AVERAGE(D46:D55) -> 0 | E56: 0 | F56: 0 | G56: 0 | H56: 2166470.322 | I56: 8010729.263 | J56: 707578 | K56: 18298.4 | L56: 456372 | M56: 120135.8 | N56: 185949.6552 | P56: 10700
A58: Other Calculation of Consumption Inputs
A59: Load factor | B59: 1.3
A60: Days | B60: 260

Sheet PTRM Inputs
A1: SA PTRM Inputs
A3: Building block components ($M NOMINAL) | B3: 2011-12 | C3: 2012-13 | D3: 2013-14 | E3: 2014-15 | F3: 2015-16 | G3: TOTAL
A5: Return on capital | B5: 109.7 | C5: 121.1 | D5: 133.3 | E5: 144.8 | F5: 157.4 | G5: =SUM(B5:F5) -> 666.3
A6: Return of capital | B6: 2.5 | C6: 3.4 | D6: 4.4 | E6: 4.5 | F6: 5.1 | G6: 19.9
A7: O&M | B7: 71 | C7: 73.7 | D7: 75.2 | E7: 76.7 | F7: 76.9 | G7: 373.5
A8: Carry-over amounts | B8: 11.7 | C8: 3.4 | D8: 3.4 | E8: 1.9 | F8: 0 | G8: 20.4
A9: Benchmark Tax liability | B9: 18.8 | C9: 16.5 | D9: 17 | E9: 16.5 | F9: 16.2 | G9: 85
A10: TOTAL REVENUE | B10: =SUM(B5:B9) -> 213.7 | C10: =SUM(C5:C9) -> 218.1 | D10: =SUM(D5:D9) -> 233.3 | E10: =SUM(E5:E9) -> 244.4 | F10: =SUM(F5:F9) -> 255.6 | G10: 1165.1
A11: TOTAL REVENUE (SMOOTHED) | B11: 177.9 | C11: 213.3 | D11: 247.7 | E11: 259.3 | F11: 270.1 | G11: 1168.3
A14: PTRM Opening RAB 2011-12
A15: Asset Class Name | B15: Opening Asset Value
A16: Mains & Inlets | B16: 434.7513441
A17: Meters | B17: 22.39789983
A18: Regulators/Odorising | B18: 203.2288327
A19: Telemetry | B19: 0
A20: Mains | B20: 253.7816806
A21: Inlets | B21: 40.76174794
A22: Meters | B22: 65.81028521
A23: Telemetry | B23: 4.330229037
A24: IT Systems | B24: 3.933886663
A25: Other Distribution Equipment | B25: 7.171477392
A26: Other Assets | B26: 5.377742517

Sheet DORC Calculations
A1: DORC Inputs and Calculations
A2: Tariff D DORC Calculations
A4: Tariff D Summary - 1 July 1999 DORC | B4: Total | C4: Total Cost | D4: Total Inlet | E4: Total Meter and RDL | F4: Total Gate Station | G4: Average Length | H4: Average Cost/m
A5: Central | B5: =SUMIF($B$31:$B$189,A5,$J$31:$J$189) -> 10945456.41 | C5: =SUMIF($B$31:$B$189,A5,$F$31:$F$189) -> 8459300.759 | D5: =SUMIF($B$31:$B$189,$A5,$G$31:$G$189) -> 733200 | E5: =SUMIF($B$31:$B$189,$A5,$H$31:$H$189) -> 1043068 | F5: =SUMIF($B$31:$B$189,$A5,$I$31:$I$189) -> 709887.6465 | G5: 14567.76852 | H5: 13.28586418
A6: Northern | B6: =SUMIF($B$31:$B$189,A6,$J$31:$J$189)+SUMIF($B$31:$B$189,"North Western",$J$31:$J$189) -> 19064777.05 | C6: =SUMIF($B$31:$B$189,A6,$F$31:$F$189)+SUMIF($B$31:$B$189,"NORTH WESTERN",$F$31:$F$189) -> 14808805.08 | D6: =SUMIF($B$31:$B$189,$A6,$G$31:$G$189)+SUMIF($B$31:$B$189,"NORTH WESTERN",$G$31:$G$189) -> 1297200 | E6: =SUMIF($B$31:$B$189,$A6,$H$31:$H$189)+SUMIF($B$31:$B$189,"NORTH WESTERN",$H$31:$H$189) -> 1734068 | F6: =SUMIF($B$31:$B$189,$A6,$I$31:$I$189)+SUMIF($B$31:$B$189,"NORTH WESTERN",$I$31:$I$189) -> 1224703.969
A7: Southern | B7: 5856484.21 | C7: 4716231.945 | D7: 352500 | E7: 472183 | F7: 315569.2642
A8: Peterborough | B8: 235243 | C8: 175560 | D8: 14100 | E8: 15583 | F8: 30000
A9: Port Pirie | B9: 1220685 | C9: 1034100 | D9: 42300 | E9: 69285 | F9: 75000
A10: Riverland | B10: 203563 | C10: 173880 | D10: 14100 | E10: 15583 | F10: 0
A11: South East | B11: 1520283.689 | C11: 1232504.998 | D11: 84600 | E11: 93498 | F11: 109680.6913
A12: Whyalla | B12: 279083 | C12: 248400 | D12: 14100 | E12: 15583 | F12: 1000
A13: Total | B13: =SUM(B5:B12) -> 39325575.35
A15: Checks | B15: =B13-J190 -> 0
A17: Tariff D Summary - Closing 2010-11 RAB | B17: Total | C17: Total Cost | D17: Total Inlet | E17: Total Meter and RDL | F17: Total Gate Station | G17: Total 2010-11 RAB | H17: Total 1 July 1999 RAB | I17: Tariff D % (based on 1999-00)
A18: Central | B18: =SUMIF($B$193:$B$351,A18,$J$193:$J$351) -> 17468737.97 | C18: =SUMIF($B$193:$B$351,A18,$F$193:$F$351) -> 13500881.36 | D18: =SUMIF($B$193:$B$351,$A18,$G$193:$G$351) -> 1170173.103 | E18: =SUMIF($B$193:$B$351,$A18,$H$193:$H$351) -> 1664716.473 | F18: =SUMIF($B$193:$B$351,$A18,$I$193:$I$351) -> 1132967.035 | G18: =SUM('PTRM Inputs'!B16:B26)*1000000 -> 1041545126 | H18: 652605058.7 | I18: =B13/H18 -> 0.06025937866
A19: Northern | B19: =SUMIF($B$193:$B$351,A19,$J$193:$J$351)+SUMIF($B$193:$B$351,"North Western",$J$193:$J$351) -> 30427017.6 | C19: =SUMIF($B$193:$B$351,A19,$F$193:$F$351)+SUMIF($B$193:$B$351,"NORTH WESTERN",$F$193:$F$351) -> 23634568.17 | D19: =SUMIF($B$193:$B$351,$A19,$G$193:$G$351)+SUMIF($B$193:$B$351,"NORTH WESTERN",$G$193:$G$351) -> 2070306.259 | E19: =SUMIF($B$193:$B$351,$A19,$H$193:$H$351)+SUMIF($B$193:$B$351,"NORTH WESTERN",$H$193:$H$351) -> 2767539.187 | F19: =SUMIF($B$193:$B$351,$A19,$I$193:$I$351)+SUMIF($B$193:$B$351,"NORTH WESTERN",$I$193:$I$351) -> 1954603.987
A20: Southern | B20: 9346836.195 | C20: 7527015.505 | D20: 562583.2224 | E20: 753594.9893 | F20: 503642.4782
A21: Peterborough | B21: 375443.305 | C21: 280190.3845 | D21: 22503.3289 | E21: 24870.16838 | F21: 47879.42319
A22: Port Pirie | B22: 1948189.79 | C22: 1650403.717 | D22: 67509.98669 | E22: 110577.5278 | F22: 119698.558
A23: Riverland | B23: 324882.6341 | C23: 277509.1368 | D23: 22503.3289 | E23: 24870.16838 | F23: 0
A24: South East | B24: 2426343.537 | C24: 1967054.279 | D24: 135019.9734 | E24: 149221.0103 | F24: 175048.2744
A25: Whyalla | B25: 445411.102 | C25: 396441.624 | D25: 22503.3289 | E25: 24870.16838 | F25: 1595.980773
A26: Total | B26: =SUM(B18:B25) -> 62762862.14
A28: Checks | B28: =B26-J352 -> 0
A30: Individual Customers as at 1 July 1999 | B30: District Name | C30: Consumption | D30: Flow (MDQ) | E30: Length | F30: Cost | G30: Inlet | H30: Meter and RDL | I30: Gate Station | J30: Total
A31: Adelaide Aquatic Centre | B31: Central | C31: 43127.63534 | D31: 258 | E31: 15749.8 | F31: 47695.37667 | G31: 14100 | H31: 15583 | I31: 4174.559031 | J31: =SUM(F31:I31) -> 81552.93571
A32: Adelaide Festival Centre Trust | B32: Central | C32: 9515.3439 | D32: 73 | E32: =$G$5 -> 14567.76852 | F32: =E32*$H$5 -> 193545.394 | G32: =P132 -> 14100 | H32: =P136 -> 15583 | I32: =P141 -> 4175 | J32: =SUM(F32:I32) -> 227403.394
A33: Arnotts Biscuits | B33: Central | C33: 67493.05675 | D33: 295 | E33: 20402 | F33: 96098.1344 | G33: 14100 | H33: 30583 | I33: 4174.559031 | J33: 144955.6934
A34: Ashford Community Hospital Inc | B34: Central | C34: 18409.79295 | D34: 131 | E34: 20901 | F34: 66028.46791 | G34: 14100 | H34: 15583 | I34: 4174.559031 | J34: 99886.02694
A35: Asphalt SA | B35: Central | C35: 21379.63016 | D35: 146 | E35: =$G$5 -> 14567.76852 | F35: =E35*$H$5 -> 193545.394 | G35: =P132 -> 14100 | H35: =P136 -> 15583 | I35: =P141 -> 4175 | J35: 227403.394
A36: Australia Post | B36: Central | C36: 7945.759397 | D36: 84 | E36: 22249.8 | F36: 114364.7344 | G36: 14100 | H36: 15583 | I36: 4174.559031 | J36: 148222.2934
A37: Brown Wood Panels Pty Ltd | B37: Central | C37: 20497.0961 | D37: 125 | E37: 23602 | F37: 64923.05145 | G37: 14100 | H37: 15583 | I37: 4174.559031 | J37: 98780.61048
A38: Buttercup Bakeries - Forestville | B38: Central | C38: 34915.56606 | D38: 143 | E38: 21401 | F38: 122293.1031 | G38: 14100 | H38: 15583 | I38: 4174.559031 | J38: 156150.6621
A39: Castalloy Manufacturing Pty Ltd (ION Automotive: Nth Plympton) | B39: Central | C39: 336502.683 | D39: 1300 | E39: 23202 | F39: 453743.1076 | G39: 28200 | H39: 53702 | I39: 78749.85194 | J39: 614394.9595
A40: Coca Cola Bottlers Adelaide | B40: Central | C40: 25398.21408 | D40: 134 | E40: 14601 | F40: 32214.39822 | G40: 14100 | H40: 15583 | I40: 4174.559031 | J40: 66071.95725
A41: CSR Building Materials | B41: Central | C41: 368560.9007 | D41: 1300 | E41: 22701 | F41: 864275.9851 | G41: 28200 | H41: 53702 | I41: 78749.85194 | J41: 1024927.837
A42: Dept For The Arts | B42: Central | C42: 11921.24859 | D42: 68 | E42: 19449.8 | F42: 39529.18667 | G42: 14100 | H42: 15583 | I42: 4174.559031 | J42: 73386.7457
A43: Hallet Brick (Austral Bricks) | B43: Central | C43: 214414.5215 | D43: 800 | E43: =$G$5 -> 14567.76852 | F43: =E43*$H$5 -> 193545.394 | G43: =P133 -> 28200 | H43: =P138 -> 53702 | I43: =P142 -> 78750 | J43: 354197.394
A44: Healthscope Ltd | B44: Central | C44: 27658.8352 | D44: 187 | E44: =$G$5 -> 14567.76852 | F44: =E44*$H$5 -> 193545.394 | G44: =P132 -> 14100 | H44: =P136 -> 15583 | I44: =P141 -> 4175 | J44: 227403.394
A45: Hilton International Adelaide | B45: Central | C45: 17136.52205 | D45: 78 | E45: 21049.8 | F45: 57544.94643 | G45: 14100 | H45: 15583 | I45: 4174.559031 | J45: 91402.50546
A46: Hyatt Regency Adelaide | B46: Central | C46: 12258.20491 | D46: 63 | E46: 20049.8 | F46: 56422.41805 | G46: 14100 | H46: 15583 | I46: 4174.559031 | J46: 90279.97708
A47: Inghams Enterprises Pty Ltd | B47: Central | C47: 21065.52116 | D47: 90 | E47: =$G$5 -> 14567.76852 | F47: =E47*$H$5 -> 193545.394 | G47: =P132 -> 14100 | H47: =P136 -> 15583 | I47: =P141 -> 4175 | J47: 227403.394
A48: International Linen Service Pty Ltd | B48: Central | C48: 68467.85877 | D48: 280 | E48: 17102 | F48: 166541.6606 | G48: 14100 | H48: 15583 | I48: 4174.559031 | J48: 200399.2196
A49: Julia Farr Services | B49: Central | C49: 16301.91063 | D49: 149 | E49: 26049.8 | F49: 310200.0178 | G49: 14100 | H49: 15583 | I49: 4174.559031 | J49: 344057.5768
A50: Myer Centre Adelaide Intro International Ltd | B50: Central | C50: 9186.930247 | D50: 76 | E50: =$G$5 -> 14567.76852 | F50: =E50*$H$5 -> 193545.394 | G50: =P132 -> 14100 | H50: =P136 -> 15583 | I50: =P141 -> 4175 | J50: 227403.394
A51: North Eastern Community Hospital Inc | B51: Central | C51: 8964.963519 | D51: 75 | E51: 13910 | F51: 385214.2052 | G51: 14100 | H51: 15583 | I51: 4174.559031 | J51: 419071.7642
A52: North Eastern Community Hospital Inc | B52: Central | C52: 10782.67283 | D52: 50 | E52: =$G$5 -> 14567.76852 | F52: =E52*$H$5 -> 193545.394 | G52: =P132 -> 14100 | H52: =P136 -> 15583 | I52: =P141 -> 4175 | J52: 227403.394
A53: Novotel Adelaide On Hindley | B53: Central | C53: 5761.749699 | E53: =$G$5 -> 14567.76852 | F53: =E53*$H$5 -> 193545.394 | G53: =P132 -> 14100 | H53: =P136 -> 15583 | I53: =P141 -> 4175 | J53: 227403.394
A54: Performance Wheel Co Pty Ltd | B54: Central | C54: 37767.35306 | D54: 175 | E54: =$G$5 -> 14567.76852 | F54: =E54*$H$5 -> 193545.394 | G54: =P132 -> 14100 | H54: =P136 -> 15583 | I54: =P141 -> 4175 | J54: 227403.394
A55: Pioneer Road Services Pty Ltd | B55: Central | C55: 68978.74199 | D55: 350 | E55: 18301 | F55: 10058.7757 | G55: 14100 | H55: 15583 | I55: 4174.559031 | J55: 43916.33473
A56: PMP | B56: Central | C56: 17916.33344 | D56: 62 | E56: =$G$5 -> 14567.76852 | F56: =E56*$H$5 -> 193545.394 | G56: =P132 -> 14100 | H56: =P136 -> 15583 | I56: =P141 -> 4175 | J56: 227403.394
A57: Riviera Bakery Pty Ltd | B57: Central | C57: 14114.0871 | D57: 66 | E57: 16602 | F57: 34677.01635 | G57: 14100 | H57: 15583 | I57: 4174.559031 | J57: 68534.57538
A58: Royal Adelaide Hospital | B58: Central | C58: 169112.2885 | D58: 810 | E58: 19049.8 | F58: 311385.9992 | G58: 28200 | H58: 53702 | I58: 78749.85194 | J58: 472037.8511
A59: S A Linen Services Pty Ltd | B59: Central | C59: 18992.90106 | D59: 67 | E59: 15602 | F59: 23522.17775 | G59: 14100 | H59: 15583 | I59: 4174.559031 | J59: 57379.73679
A60: San Remo Macaroni Co Pty Ltd | B60: Central | C60: 68832.90166 | D60: 440 | E60: 12310 | F60: 643545.9995 | G60: 14100 | H60: 30583 | I60: 4174.559031 | J60: 692403.5585
A61: San Remo Macaroni Co Pty Ltd | B61: Central | C61: 50631.11716 | D61: 164 | E61: =$G$5 -> 14567.76852 | F61: =E61*$H$5 -> 193545.394 | G61: =P132 -> 14100 | H61: =P137 -> 30583 | I61: =P141 -> 4175 | J61: 242403.394
A62: South Australian Brewing Co Pty Ltd | B62: Central | C62: 117926.714 | D62: 890 | E62: 14201 | F62: 115689.0087 | G62: 28200 | H62: 53702 | I62: 78749.85194 | J62: 276340.8606
A63: South Australian Water Corporation | B63: Central | C63: 37049.55311 | D63: 131 | E63: 26602 | F63: 257372.4731 | G63: 14100 | H63: 15583 | I63: 4174.559031 | J63: 291230.0321
A64: St Andrews Hospital Inc | B64: Central | C64: 43287.45347 | D64: 134 | E64: 22649.8 | F64: 191603.535 | G64: 14100 | H64: 15583 | I64: 4174.559031 | J64: 225461.094
A65: Stamford Plaza Adelaide | B65: Central | C65: 11773.4621 | D65: 59 | E65: 20049.8 | F65: 24382.63237 | G65: 14100 | H65: 15583 | I65: 4174.559031 | J65: 58240.1914
A66: Statewide Mental Health Service | B66: Central | C66: 12240.57947 | D66: 99 | E66: 23849.8 | F66: 192388.6939 | G66: 14100 | H66: 15583 | I66: 4174.559031 | J66: 226246.2529
A67: The Adelaide Casino | B67: Central | C67: 10906.26449 | D67: 51 | E67: 19949.8 | F67: 18280.35492 | G67: 14100 | H67: 15583 | I67: 4174.559031 | J67: 52137.91395
A68: The Radisson Playford Hotel | B68: Central | C68: 12983.22023 | D68: 53 | E68: =$G$5 -> 14567.76852 | F68: =E68*$H$5 -> 193545.394 | G68: =P132 -> 14100 | H68: =P136 -> 15583 | I68: =P141 -> 4175 | J68: 227403.394
A69: Thermal Ceramics Australia Pty Ltd | B69: Central | C69: 13440.06472 | D69: 150 | E69: 11800 | F69: 206061.844 | G69: 14100 | H69: 30583 | I69: 4174.559031 | J69: 254919.403
A70: Tip Top Dry Cleaners Pty Ltd | B70: Central | C70: 13186.3922 | D70: 109 | E70: 18701 | F70: 54815.826 | G70: 14100 | H70: 15583 | I70: 4174.559031 | J70: 88673.38503
A71: Torrens Transit | B71: Central | C71: 69909.57124 | D71: 516 | E71: 28701 | F71: 700488.3327 | G71: 28200 | H71: 53702 | I71: 78749.85194 | J71: 861140.1847
A72: Torrens Transit (2) (Non OER) | B72: Central | C72: 73103.27496 | D72: 246 | E72: =$G$5 -> 14567.76852 | F72: =E72*$H$5 -> 193545.394 | G72: =$P$132 -> 14100 | H72: =$P$137 -> 30583 | I72: =$P$141 -> 4175 | J72: 242403.394
A73: University Of Adelaide | B73: Central | C73: 12236.09466 | D73: 68 | E73: 19649.8 | F73: 15026.33232 | G73: 14100 | H73: 15583 | I73: 4174.559031 | J73: 48883.89135
A74: Western Community Hospital Inc | B74: Central | C74: 11400.64757 | D74: 52 | E74: 14561 | F74: 147619.5318 | G74: 14100 | H74: 15583 | I74: 4174.559031 | J74: 181477.0908
A75: Women's & Children's Hospital | B75: Central | C75: 195770.7469 | D75: 560 | E75: 17649.8 | F75: 119203.3099 | G75: 28200 | H75: 53702 | I75: 78749.85194 | J75: 279855.1619
A76: Adelaide Brighton Cement Ltd (Birkenhead) | B76: North Western | C76: 5152894.254 | D76: 17852 | E76: 3100 | F76: 463538.6976 | G76: 28200 | H76: 53702 | I76: 78749.85194 | J76: 624190.5495
A77: Boral Plasterboard | B77: North Western | C77: 15022.54236 | D77: 550 | E77: 3650 | F77: 206084.1206 | G77: 28200 | H77: 38702 | I77: 78749.85194 | J77: 351735.9726
A78: Pacific Terminals Largs Bay | B78: North Western | C78: 1979.973138 | E78: =$G$5 -> 14567.76852 | F78: =E78*$H$5 -> 193545.394 | G78: =$P$132 -> 14100 | H78: =$P$136 -> 15583 | I78: =$P$141 -> 4175 | J78: 227403.394
A79: A I Automotive | B79: Northern | C79: 13463.64495 | D79: 68 | E79: =$G$5 -> 14567.76852 | F79: =E79*$H$5 -> 193545.394 | G79: =$P$132 -> 14100 | H79: =$P$136 -> 15583 | I79: =$P$141 -> 4175 | J79: 227403.394
A80: ACI Glass Packaging | B80: Northern | C80: 428102.964 | D80: 4800 | E80: =$G$5 -> 14567.76852 | F80: =E80*$H$5 -> 193545.394 | G80: =P133 -> 28200 | H80: =$P$138 -> 53702 | I80: =$P$142 -> 78750 | J80: 354197.394
A81: ACI Glass Packaging | B81: Northern | C81: 1759835.129 | D81: 7300 | E81: 10700 | F81: 309603.7339 | G81: 28200 | H81: 53702 | I81: 78749.85194 | J81: 470255.5859
A82: Adelaide Galvanising Industries | B82: Northern | C82: 12228.27467 | D82: 39 | E82: =$G$5 -> 14567.76852 | F82: =E82*$H$5 -> 193545.394 | G82: =$P$132 -> 14100 | H82: =$P$136 -> 15583 | I82: =$P$141 -> 4175 | J82: 227403.394
A83: Adelaide Malting Co Pty Ltd | B83: Northern | C83: 74531.824 | D83: 287 | E83: 1000 | F83: 12391.73914 | G83: 28200 | H83: 53702 | I83: 78749.85194 | J83: 173043.5911
A84: Adelaide Malting Co Pty Ltd | B84: Northern | C84: 198075.0776 | D84: 633 | E84: 2050 | F84: 48528.02114 | G84: 14100 | H84: 15583 | I84: 4174.559031 | J84: 82385.58017
A85: ALLOY TECHNOLOGIES INTERNATIONAL | B85: Northern | C85: 0 | D85: 50 | E85: =$G$5 -> 14567.76852 | F85: =E85*$H$5 -> 193545.394 | G85: =$P$132 -> 14100 | H85: =$P$136 -> 15583 | I85: =$P$141 -> 4175 | J85: 227403.394
A86: Alsco Linen Service Pty Ltd | B86: Northern | C86: 29821.58784 | D86: 130 | E86: 13001 | F86: 31283.08607 | G86: 14100 | H86: 15583 | I86: 4174.559031 | J86: 65140.6451
A87: Amcor Fibre Packaging Australia | B87: Northern | C87: 45000.25701 | D87: 229 | E87: 5200 | F87: 9970.298619 | G87: 14100 | H87: 15583 | I87: 4174.559031 | J87: 43827.85765
A88: Ani Bradken | B88: Northern | C88: 121086.6073 | D88: 500 | E88: 4960 | F88: 67066.97868 | G88: 14100 | H88: 15583 | I88: 4174.559031 | J88: 100924.5377
A89: Arrowcrest Group Pty Ltd | B89: Northern | C89: 166434.2303 | D89: 780 | E89: 6200 | F89: 33492.44752 | G89: 28200 | H89: 53702 | I89: 78749.85194 | J89: 194144.2995
A90: Avery Dennison Materials Pty Ltd | B90: Northern | C90: 44172.68417 | D90: 237 | E90: 14301 | F90: 202960.4149 | G90: 14100 | H90: 15583 | I90: 4174.559031 | J90: 236817.9739
A91: Balfours (Dudley Park) | B91: Northern | C91: 10896.23 | D91: 154 | E91: 21249.8 | F91: 137119.5768 | G91: 14100 | H91: 15583 | I91: 4174.559031 | J91: 170977.1359
A92: Balfours (Seaton) | B92: Northern | C92: 10197.172 | D92: 72 | E92: =$G$5 -> 14567.76852 | F92: =E92*$H$5 -> 193545.394 | G92: =$P$132 -> 14100 | H92: =$P$136 -> 15583 | I92: =$P$141 -> 4175 | J92: 227403.394
A93: Boral Asphalt | B93: Northern | C93: 15242.64022 | D93: 134 | E93: 18801 | F93: 80476.73388 | G93: 14100 | H93: 15583 | I93: 4174.559031 | J93: 114334.2929
A94: Boral Hollostone Masonary SA Pty Ltd | B94: Northern | C94: 12905.60543 | D94: 86 | E94: 5500 | F94: 192939.162 | G94: 14100 | H94: 15583 | I94: 4174.559031 | J94: 226796.721
A95: Bridgestone Australia Ltd | B95: Northern | C95: 179286.4355 | D95: 900 | E95: 10801 | F95: 331888.8187 | G95: 28200 | H95: 53702 | I95: 78749.85194 | J95: 492540.6707
A96: Carter Holt Harvey - Demand | B96: Northern | C96: =7601.155 -> 7601.155 | D96: 357 | E96: =$G$5 -> 14567.76852 | F96: =E96*$H$5 -> 193545.394 | G96: =$P$132 -> 14100 | H96: =$P$136 -> 15583 | I96: =$P$141 -> 4175 | J96: =SUM(F96:I96) -> 227403.394
A97: Carter Holt Harvey - Term Sheet | B97: Northern | C97: 31515.7128 | E97: =$G$5 -> 14567.76852 | F97: =E97*$H$5 -> 193545.394 | G97: =$P$132 -> 14100 | H97: =$P$136 -> 15583 | I97: =$P$141 -> 4175 | J97: 227403.394
A98: Castalloy Wingfield (ION Automotive) | B98: Northern | C98: 93638.04641 | D98: 519 | E98: 10710 | F98: 185312.3112 | G98: 14100 | H98: 15583 | I98: 4174.559031 | J98: 219169.8703
A99: Central Linen Service | B99: Northern | C99: 100790.4956 | D99: 445 | E99: 10710 | F99: 468557.574 | G99: 14100 | H99: 30583 | I99: 4174.559031 | J99: 517415.133
A100: Chief Kitchenware Pty Ltd | B100: Northern | C100: 13611.43473 | D100: 90 | E100: 2310 | F100: 5846.783207 | G100: 14100 | H100: 15583 | I100: 4174.559031 | J100: 39704.34224
A101: Collex Waste Management Pty Ltd | B101: Northern | C101: 12500.81373 | D101: 52 | E101: 3510 | F101: 34767.72309 | G101: 14100 | H101: 15583 | I101: 4174.559031 | J101: 68625.28212
A102: Conroy'S Smallgoods Pty Ltd | B102: Northern | C102: 12379.59491 | D102: 72 | E102: 14049.8 | F102: 19462.16894 | G102: 14100 | H102: 15583 | I102: 4174.559031 | J102: 53319.72797
A103: Crane Aluminium Extrusions | B103: Northern | C103: 38667.91826 | D103: 169 | E103: =$G$5 -> 14567.76852 | F103: =E103*$H$5 -> 193545.394 | G103: =$P$132 -> 14100 | H103: =$P$136 -> 15583 | I103: =$P$141 -> 4175 | J103: 227403.394
A104: CSR Emoleum | B104: Northern | C104: 41548.47146 | D104: 249 | E104: 3920 | F104: 43063.14021 | G104: 14100 | H104: 15583 | I104: 4174.559031 | J104: 76920.69924
A105: CSR Humes Ltd | B105: Northern | C105: 15046.62808 | D105: 135 | E105: 35502 | F105: 660698.703 | G105: 14100 | H105: 15583 | I105: 4174.559031 | J105: 694556.2621
A106: Dept Of Correctional Services Sa | B106: Northern | C106: 15327.1388 | D106: 96 | E106: 7510 | F106: 88677.52171 | G106: 14100 | H106: 15583 | I106: 4174.559031 | J106: 122535.0807
A107: DSTO | B107: Northern | C107: 8158.12159 | D107: 78 | E107: =$G$5 -> 14567.76852 | F107: =E107*$H$5 -> 193545.394 | G107: =$P$132 -> 14100 | H107: =$P$136 -> 15583 | I107: =$P$141 -> 4175 | J107: 227403.394
A108: Electrolux Appliance | B108: Northern | C108: 5362.327819 | E108: =$G$5 -> 14567.76852 | F108: =E108*$H$5 -> 193545.394 | G108: =$P$132 -> 14100 | H108: =$P$136 -> 15583 | I108: =$P$141 -> 4175 | J108: 227403.394
A109: Electrolux Cooking Products Division | B109: Northern | C109: 114006.0718 | D109: 600 | E109: 10810 | F109: 331937.5033 | G109: 14100 | H109: 15583 | I109: 4174.559031 | J109: 365795.0624
A110: Electrolux Home Products Pty Ltd | B110: Northern | C110: 31101.92115 | D110: 170 | E110: 6400 | F110: 33979.48692 | G110: 14100 | H110: 15583 | I110: 4174.559031 | J110: 67837.04595
A111: Elizabeth Swimming Centre | B111: Northern | C111: 7704.772047 | D111: 61 | E111: 11101 | F111: 52912.78351 | G111: 14100 | H111: 15583 | I111: 4174.559031 | J111: 86770.34254
A112: F H Faulding & Co Pty Ltd | B112: Northern | C112: 24835.78307 | D112: 132 | E112: 12201 | F112: 55018.81452 | G112: 14100 | H112: 15583 | I112: 4174.559031 | J112: 88876.37355
A113: Foamex South Australia P/L | B113: Northern | C113: 17587.55236 | D113: 91 | E113: =$G$5 -> 14567.76852 | F113: =E113*$H$5 -> 193545.394 | G113: =$P$132 -> 14100 | H113: =$P$136 -> 15583 | I113: =$P$141 -> 4175 | J113: 227403.394
A114: G H Michell & Sons Pty Ltd | B114: Northern | C114: 194622.3637 | D114: 1150 | E114: 12301 | F114: 468357.6082 | G114: 28200 | H114: 53702 | I114: 78749.85194 | J114: 629009.4601
A115: G N B Battery Technologies Ltd | B115: Northern | C115: 69900.23606 | D115: 278 | E115: 13901 | F115: 360418.82 | G115: 14100 | H115: 15583 | I115: 4174.559031 | J115: 394276.379
A116: Gawler Health Service | B116: Northern | C116: 20676.00252 | D116: 72 | E116: 27101 | F116: 1249184.332 | G116: 14100 | H116: 15583 | I116: 4174.559031 | J116: 1283041.891
A117: Hampstead Rehabilitation Centre | B117: Northern | C117: 9548.867657 | D117: 56 | E117: 7910 | F117: 74830.80197 | G117: 14100 | H117: 15583 | I117: 4174.559031 | J117: 108688.361
A118: Holden Ltd | B118: Northern | C118: 746123.112 | D118: 3700 | E118: 7000 | F118: 480436.0767 | G118: 28200 | H118: 53702 | I118: 78749.85194 | J118: 641087.9287
A119: Industrial Engineers & Springmakers | B119: Northern | C119: 39767.086 | D119: 190 | E119: 12801 | F119: 44697.78992 | G119: 14100 | H119: 15583 | I119: 4174.559031 | J119: 78555.34895
A120: Inghams Enterprises Pty Ltd | B120: Northern | C120: 60988.91127 | D120: 260 | E120: 2300 | F120: 5164.041265 | G120: 14100 | H120: 15583 | I120: 4174.559031 | J120: 39021.6003
A121: Inghams Enterprises Pty Ltd | B121: Northern | C121: 24760.11988 | D121: 100 | E121: 17501 | F121: 15272.12851 | G121: 14100 | H121: 15583 | I121: 4174.559031 | J121: 49129.68754
A122: Intercast & Forge | B122: Northern | C122: 15291.31812 | D122: 65 | E122: =$G$5 -> 14567.76852 | F122: =E122*$H$5 -> 193545.394 | G122: =$P$132 -> 14100 | H122: =$P$136 -> 15583 | I122: =$P$141 -> 4175 | J122: 227403.394
A123: International Hydroponics Pty Ltd | B123: Northern | C123: 1552.566215 | D123: 259 | E123: =$G$5 -> 14567.76852 | F123: =E123*$H$5 -> 193545.394 | G123: =$P$132 -> 14100 | H123: =$P$136 -> 15583 | I123: =$P$141 -> 4175 | J123: 227403.394
A124: Jarrett Industries | B124: Northern | C124: 12813.02193 | D124: 65 | E124: =$G$5 -> 14567.76852 | F124: =E124*$H$5 -> 193545.394 | G124: =$P$132 -> 14100 | H124: =$P$136 -> 15583 | I124: =$P$141 -> 4175 | J124: 227403.394
A125: Joe White Maltings Ltd | B125: Northern | C125: 296942.4461 | D125: 1093 | E125: 1950 | F125: =E125*$H$5 -> 25907.43516 | G125: 28200 | H125: 53702 | I125: 78749.85194 | J125: 186559.2871
A126: John Shearer Ltd | B126: Northern | C126: 12311.39701 | D126: 120 | E126: =$G$5 -> 14567.76852 | F126: =E126*$H$5 -> 193545.394 | G126: =$P$132 -> 14100 | H126: =$P$136 -> 15583 | I126: =$P$141 -> 4175 | J126: 227403.394
A127: Korvest Galvanisers | B127: Northern | C127: 31094.02026 | D127: 190 | E127: 4610 | F127: 47706.70614 | G127: 14100 | H127: 15583 | I127: 4174.559031 | J127: 81564.26517
A128: Lyell Mc Ewin Hospital Inc | B128: Northern | C128: 28988.75285 | D128: 157 | E128: 7901 | F128: 53744.29132 | G128: 14100 | H128: 15583 | I128: 4174.559031 | J128: 87601.85035
A129: Master Butchers Ltd | B129: Northern | C129: 100544.3289 | D129: 468 | E129: 5110 | F129: 109449.2724 | G129: 14100 | H129: 15583 | I129: 4174.559031 | J129: 143306.8315
A130: Mobil Oil Australia | B130: Northern | C130: 12917.14127 | D130: 161 | E130: 2000 | F130: 3954.758558 | G130: 14100 | H130: 15583 | I130: 4174.559031 | J130: 37812.31759
A131: Mullins Wheels Pty Ltd | B131: Northern | C131: 37386.13865 | D131: 180 | E131: 11501 | F131: 46362.31567 | G131: 14100 | H131: 15583 | I131: 4174.559031 | J131: 80219.8747 | O131: Assumed Inlet Sizes
A132: National Foods Milk Limited | B132: Northern | C132: 29202.32357 | D132: 110 | E132: 17701 | F132: 24928.81517 | G132: 14100 | H132: 15583 | I132: 4174.559031 | J132: 58786.3742 | O132: 0 - 100TJ | P132: 14100
A133: Polyrib | B133: Northern | C133: 9956.542329 | D133: 58 | E133: =$G$5 -> 14567.76852 | F133: =E133*$H$5 -> 193545.394 | G133: =$P$132 -> 14100 | H133: =$P$136 -> 15583 | I133: =$P$141 -> 4175 | J133: 227403.394 | O133: Over 100TJ | P133: 28200
A134: P'Petual Holdings Pty Ltd Hydroponics Shed | B134: Northern | C134: 46555.0743 | D134: 218 | E134: =$G$5 -> 14567.76852 | F134: =E134*$H$5 -> 193545.394 | G134: =$P$132 -> 14100 | H134: =$P$136 -> 15583 | I134: =$P$141 -> 4175 | J134: 227403.394
A135: Preventative Maintenance Programs | B135: Northern | C135: 11204.04 | D135: 236 | E135: =$G$5 -> 14567.76852 | F135: =E135*$H$5 -> 193545.394 | G135: =$P$132 -> 14100 | H135: =$P$136 -> 15583 | I135: =$P$141 -> 4175 | J135: 227403.394 | O135: Assumed Meter Sizes
A136: Quality Dry Cleaners | B136: Northern | C136: 11452.86366 | D136: 53 | E136: 3700 | F136: =E136*$H$5 -> 49157.69748 | G136: =$P$132 -> 14100 | H136: =$P$136 -> 15583 | I136: =$P$141 -> 4175 | J136: 83015.69748 | O136: Under 50TJ | P136: 15583
A137: Quality Foods | B137: Northern | C137: 0 | D137: 40 | E137: =$G$5 -> 14567.76852 | F137: =E137*$H$5 -> 193545.394 | G137: =$P$132 -> 14100 | H137: =$P$136 -> 15583 | I137: =$P$141 -> 4175 | J137: 227403.394 | O137: 50-100TJ | P137: 30583
A138: Queen Elizabeth Hospital | B138: Northern | C138: 62264.37446 | D138: 320 | E138: 9311 | F138: 81571.71852 | G138: 14100 | H138: 30583 | I138: 4174.559031 | J138: 130429.2775 | O138: 100-200TJ | P138: 53702
A139: Regency Institute of TAFE | B139: Northern | C139: 9345.317347 | D139: 177 | E139: 9310 | F139: 123315.9731 | G139: 14100 | H139: 15583 | I139: 4174.559031 | J139: 157173.5321
A140: R-Max | B140: Northern | C140: 32101.18135 | D140: 200 | E140: 13801 | F140: 145134.3441 | G140: 14100 | H140: 15583 | I140: 4174.559031 | J140: 178991.9032 | O140: Assumed Gate Station Sizes
A141: Rocla Pipe & Precast Products | B141: Northern | C141: 10104.88065 | D141: 94 | E141: =$G$5 -> 14567.76852 | F141: =E141*$H$5 -> 193545.394 | G141: =$P$132 -> 14100 | H141: =$P$136 -> 15583 | I141: =$P$141 -> 4175 | J141: 227403.394 | O141: 0 - 100TJ | P141: 4175
A142: S Smith & Sons Pty Ltd | B142: Northern | C142: 9942.583063 | D142: 84 | F142: 465187.156 | G142: 14100 | H142: 15583 | J142: 494870.156 | O142: Over 100TJ | P142: 78750
A143: SAFCOL Canning Pty Ltd | B143: Northern | C143: 7634.500628 | D143: 60 | E143: 7501 | F143: 44411.48687 | G143: 14100 | H143: 15583 | I143: 4174.559031 | J143: 78269.0459
A144: Salisbury Brick Pty Ltd | B144: Northern | C144: =54349.031876793+3968.414 -> 58317.44588 | D144: 311 | E144: 22501 | F144: 1276454.549 | G144: 28200 | H144: 53702 | I144: 78749.85194 | J144: 1437106.401
A145: Sheridan Australia | B145: Northern | C145: 39854.93346 | E145: 7500 | F145: 82323.44057 | G145: 28200 | H145: 53702 | I145: 78749.85194 | J145: 242975.2925
A146: South Australian Saw Milling Pty Ltd | B146: Northern | C146: 66701.69587 | D146: 250 | E146: 3400 | F146: 7370.836026 | G146: 14100 | H146: 15583 | I146: 4174.559031 | J146: 41228.39506
A147: South Australian Water Corporation | B147: Northern | C147: 6021.081787 | E147: 5800 | F147: 379621.5153 | G147: 14100 | H147: 15583 | I147: 4174.559031 | J147: 413479.0743
A148: Southcorp Wines Pty Ltd | B148: Northern | C148: 14102.46044 | D148: 62 | E148: 11901 | F148: 21958.31551 | G148: 14100 | H148: 15583 | I148: 4174.559031 | J148: 55815.87454
A149: Strathmont Centre | B149: Northern | C149: 14842.88381 | D149: 94 | E149: 9210 | F149: 61976.17708 | G149: 14100 | H149: 15583 | I149: 4174.559031 | J149: 95833.73612
A150: Tarac Technologies Pty Ltd | B150: Northern | C150: 36826.73333 | D150: 864 | E150: =$G$5 -> 14567.76852 | F150: =E150*$H$5 -> 193545.394 | G150: 0 | H150: 0 | I150: 0 | J150: 193545.394
A151: The Smith'S Snackfood Company Ltd | B151: Northern | C151: 203898.3038 | D151: 845 | E151: 6810 | F151: 206061.844 | G151: 14100 | H151: 30583 | I151: 4174.559031 | J151: 254919.403
A152: Tip Top Bakeries | B152: Northern | C152: 58339.91332 | D152: 254 | E152: 3210 | F152: 53988.19415 | G152: 14100 | H152: 15583 | I152: 4174.559031 | J152: 87845.75318
A153: Top Coat Asphalt Contractors | B153: Northern | C153: 33751.10854 | D153: 223 | E153: 800 | F153: 704.8535471 | G153: 14100 | H153: 15583 | I153: 4174.559031 | J153: 34562.41258
A154: University Of SA - Levels Campus | B154: Northern | C154: 5571.008541 | E154: =$G$5 -> 14567.76852 | F154: =E154*$H$5 -> 193545.394 | G154: =$P$132 -> 14100 | H154: =$P$136 -> 15583 | I154: =$P$141 -> 4175 | J154: 227403.394
A155: Visy Board Pty Ltd | B155: Northern | C155: 57435.41043 | D155: 261 | E155: 3510 | F155: 46483.9836 | G155: 14100 | H155: 15583 | I155: 4174.559031 | J155: 80341.54263
A156: Woodbridge Henderson | B156: Northern | C156: 13241.06146 | D156: 112 | E156: =$G$5 -> 14567.76852 | F156: =E156*$H$5 -> 193545.394 | G156: =$P$132 -> 14100 | H156: =$P$136 -> 15583 | I156: =$P$141 -> 4175 | J156: 227403.394
A157: Metro Velda Pty Ltd | B157: Peterborough | C157: 10594.31584 | D157: 62 | E157: 0 | F157: 175560 | G157: 14100 | H157: 15583 | I157: 30000 | J157: 235243
A158: Conroys Port Pirie Abattoirs | B158: Port Pirie | C158: 55685.33347 | D158: 316 | E158: 0 | F158: 615896.7426 | G158: 14100 | H158: 15583 | I158: 4670.346216 | J158: 650250.0888
A159: Pasminco Port Pirie Smelter Pty Ltd | B159: Port Pirie | C159: 948572.9642 | D159: 3281 | E159: 0 | F159: 418203.2574 | G159: 28200 | H159: 53702 | I159: 70329.65378 | J159: 570434.9112
A160: Murray Bridge Bacon | B160: Riverland | C160: 32329.88578 | D160: 650 | E160: 0 | F160: =E160*$H$5 -> 0 | G160: 0 | H160: 0 | I160: 0 | J160: =SUM(F160:I160) -> 0
A161: Ridley Agriproducts Pty Ltd | B161: Riverland | C161: 24374.44258 | D161: 100 | E161: 0 | F161: 173880 | G161: 14100 | H161: 15583 | J161: 203563
A162: Carter Holt Harvey Panels | B162: South East | C162: 23013.58928 | D162: 109 | E162: =$G$5 -> 14567.76852 | F162: =E162*$H$5 -> 193545.394 | G162: =$P$132 -> 14100 | H162: =$P$136 -> 15583 | I162: =$P$141 -> 4175 | J162: 227403.394
A163: Dairy Vale Foods Limited | B163: South East | C163: 13460.87619 | D163: 71 | F163: 122936.1816 | G163: 14100 | H163: 15583 | I163: 11500.62432 | J163: 164119.806
A164: Green Triangle Forest Products Ltd | B164: South East | C164: 99322.18318 | D164: 536 | F164: 268681.9962 | G164: 14100 | H164: 15583 | I164: 38599.21443 | J164: 336964.2106
A165: Kraft Foods Ltd | B165: South East | C165: 13524.98173 | D165: 69 | F165: 453796.0321 | G165: 28200 | H165: 31166 | I165: 51230.85253 | J165: 564392.8847
A166: McDonnell Industries | B166: South East | C166: 13330.74 | D166: 75 | E166: =$G$5 -> 14567.76852 | F166: =E166*$H$5 -> 193545.394 | G166: =$P$132 -> 14100 | H166: =$P$136 -> 15583 | I166: =$P$141 -> 4175 | J166: 227403.394
A167: Adelaide Mushroom Nominees | B167: Southern | C167: 9743.242215 | D167: 42 | E167: =$G$5 -> 14567.76852 | F167: =E167*$H$5 -> 193545.394 | G167: =$P$132 -> 14100 | H167: =$P$136 -> 15583 | I167: =$P$141 -> 4175 | J167: 227403.394
A168: Bridgestone TG Australia Pty Ltd | B168: Southern | C168: 33002.66303 | D168: 185 | E168: 10801 | F168: 227059.9689 | G168: 14100 | H168: 15583 | I168: 4174.559031 | J168: 260917.5279
A169: BRL Hardy Ltd Winery | B169: Southern | C169: 17968.71348 | D169: 72 | E169: =$G$5 -> 14567.76852 | F169: =E169*$H$5 -> 193545.394 | G169: =$P$132 -> 14100 | H169: =$P$136 -> 15583 | I169: =$P$141 -> 4175 | J169: 227403.394
A170: Dairy Vale Foods Limited | B170: Southern | C170: 8849.013456 | D170: 70 | E170: =$G$5 -> 14567.76852 | F170: =E170*$H$5 -> 193545.394 | G170: =$P$132 -> 14100 | H170: =$P$136 -> 15583 | I170: =$P$141 -> 4175 | J170: 227403.394
A171: Flinders Medical Centre | B171: Southern | C171: 105710.4837 | D171: 630 | E171: 28701 | F171: 114106.6121 | G171: 14100 | H171: 30583 | I171: 4174.559031 | J171: 162964.1711
A172: Flinders University Of SA | B172: Southern | C172: 10444.60702 | D172: 89 | E172: 29201 | F172: 72529.57731 | G172: 14100 | H172: 15583 | I172: 4174.559031 | J172: 106387.1363
A173: Hills Industries Limited | B173: Southern | C173: 42229.86506 | D173: 250 | E173: 24001 | F173: 107660.3064 | G173: 14100 | H173: 15583 | I173: 4174.559031 | J173: 141517.8655
A174: Kimberley Clark (Lonsdale) | B174: Southern | C174: 6205.102131 | D174: 54 | E174: =$G$5 -> 14567.76852 | F174: =E174*$H$5 -> 193545.394 | G174: =$P$132 -> 14100 | H174: =$P$136 -> 15583 | I174: =$P$141 -> 4175 | J174: 227403.394
A175: Marshall Furniture Pty Ltd | B175: Southern | C175: 16541.2778 | D175: 95 | E175: 25802 | F175: 57777.0365 | G175: 14100 | H175: 15583 | I175: 4174.559031 | J175: 91634.59554
A176: Minda Inc | B176: Southern | C176: 10474.9229 | D176: 58 | E176: 31502 | F176: 121747.5748 | G176: 14100 | H176: 15583 | I176: 4174.559031 | J176: 155605.1338
A177: Mitsubishi Motors Australia Ltd | B177: Southern | C177: 169459.2204 | D177: 1900 | E177: 26901 | F177: 623467.736 | G177: 28200 | H177: 53702 | I177: 78749.85194 | J177: 784119.588
A178: Mitsubishi Motors Australia Ltd | B178: Southern | C178: 38185.60641 | D178: 270 | E178: 42601 | F178: 432599.782 | G178: 28200 | H178: 53702 | I178: 78749.85194 | J178: 593251.634
A179: Monroe Australia Pty Ltd | B179: Southern | C179: 33037.93809 | D179: 171 | E179: 27301 | F179: 58127.56486 | G179: 14100 | H179: 15583 | I179: 4174.559031 | J179: 91985.12389
A180: NCCRA Inc | B180: Southern | C180: 17843.55892 | D180: 104 | E180: =$G$5 -> 14567.76852 | F180: =E180*$H$5 -> 193545.394 | G180: =$P$132 -> 14100 | H180: =$P$136 -> 15583 | I180: =$P$141 -> 4175 | J180: 227403.394
A181: Olympic Aluminium Diecasting Pty Ltd | B181: Southern | C181: 44007.15428 | D181: 151 | E181: 42502 | F181: 200123.5758 | G181: 14100 | H181: 15583 | I181: 4174.559031 | J181: 233981.1349
A182: Repatriation General Hospital | B182: Southern | C182: 24602.68568 | D182: 165 | E182: =$G$5 -> 14567.76852 | F182: =E182*$H$5 -> 193545.394 | G182: =$P$132 -> 14100 | H182: =$P$136 -> 15583 | I182: =$P$141 -> 4175 | J182: 227403.394
A183: Schefenacker Vision Systems | B183: Southern | C183: 16725.28291 | D183: 92 | E183: 42101 | F183: 69982.47034 | G183: 14100 | H183: 15583 | I183: 4174.559031 | J183: 103840.0294
A184: Serco Australia Pty Ltd | B184: Southern | C184: 159221.8628 | D184: 611 | E184: =$G$5 -> 14567.76852 | F184: =E184*$H$5 -> 193545.394 | G184: 28200 | H184: 53702 | I184: 78749.85194 | J184: 354197.2459
A185: South Australian Research & | B185: Southern | C185: 23486.09265 | D185: 137 | E185: 28950 | F185: 724006.5205 | G185: 14100 | H185: 15583 | I185: 4174.559031 | J185: 757864.0795
A186: Stamford Grand Adelaide | B186: Southern | C186: 11781.2468 | D186: 46 | E186: 28502 | F186: 204056.826 | G186: 14100 | H186: 15583 | I186: 4174.559031 | J186: 237914.385
A187: Team Poly Pty Ltd | B187: Southern | C187: 41679.51975 | D187: 198 | E187: 42702 | F187: 154623.2418 | G187: 14100 | H187: 15583 | I187: 4174.559031 | J187: 188480.8008
A188: Walker Australia Pty Ltd | B188: Southern | C188: 13770.64222 | D188: 90 | E188: =$G$5 -> 14567.76852 | F188: =E188*$H$5 -> 193545.394 | G188: =$P$132 -> 14100 | H188: =$P$136 -> 15583 | I188: =$P$141 -> 4175 | J188: 227403.394
A189: Whyalla Hospital | B189: Whyalla | C189: 9906.905935 | D189: 57 | E189: 0 | F189: 248400 | G189: 14100 | H189: 15583 | I189: 1000 | J189: 279083
A190: Totals | C190: =SUM(C31:C189) -> 16005769.95 | D190: 73570 | E190: 2258004.12 | F190: 30848782.78 | G190: 2552100 | H190: 3458851 | I190: 2465841.571 | J190: 39325575.35
A192: Individual Customers - Closing 2010-11 | B192: District Name | C192: Consumption | D192: Flow (MDQ) | E192: Length | F192: Cost | G192: Inlet | H192: Meter and RDL | I192: Gate Station | J192: Total
A193: =A31 -> Adelaide Aquatic Centre | B193: Central | F193: =F31/$J$190*$I$18*$G$18 -> 76120.90413 | G193: 22503.3289 | H193: 24870.16838 | I193: 6662.515949 | J193: =SUM(F193:I193) -> 130156.9174
A194: =A32 -> Adelaide Festival Centre Trust | B194: Central | F194: 308894.7275 | G194: 22503.3289 | H194: 24870.16838 | I194: 6663.219727 | J194: =SUM(F194:I194) -> 362931.4445
A195: Arnotts Biscuits | B195: Central | F195: 153370.7748 | G195: 22503.3289 | H195: 48809.87998 | I195: 6662.515949 | J195: 231346.4996
A196: Ashford Community Hospital Inc | B196: Central | F196: 105380.1652 | G196: 22503.3289 | H196: 24870.16838 | I196: 6662.515949 | J196: 159416.1785
A197: Asphalt SA | B197: Central | F197: 308894.7275 | G197: 22503.3289 | H197: 24870.16838 | I197: 6663.219727 | J197: 362931.4445
A198: Australia Post | B198: Central | F198: 182523.9172 | G198: 22503.3289 | H198: 24870.16838 | I198: 6662.515949 | J198: 236559.9304
A199: Brown Wood Panels Pty Ltd | B199: Central | F199: 103615.9418 | G199: 22503.3289 | H199: 24870.16838 | I199: 6662.515949 | J199: 157651.9551
A200: Buttercup Bakeries - Forestville | B200: Central | F200: 195177.4412 | G200: 22503.3289 | H200: 24870.16838 | I200: 6662.515949 | J200: 249213.4544
A201: Castalloy Manufacturing Pty Ltd (ION Automotive: Nth Plympton) | B201: Central | F201: 724165.2755 | G201: 45006.65779 | H201: 85707.35946 | I201: 125683.2496 | J201: 980562.5423
A202: Coca Cola Bottlers Adelaide | B202: Central | F202: 51413.56016 | G202: 22503.3289 | H202: 24870.16838 | I202: 6662.515949 | J202: 105449.5734
A203: CSR Building Materials | B203: Central | F203: 1379367.855 | G203: 45006.65779 | H203: 85707.35946 | I203: 125683.2496 | J203: 1635765.122
A204: Dept For The Arts | B204: Central | F204: 63087.82189 | G204: 22503.3289 | H204: 24870.16838 | I204: 6662.515949 | J204: 117123.8351
A205: Hallet Brick (Austral Bricks) | B205: Central | F205: 308894.7275 | G205: 45006.65779 | H205: 85707.35946 | I205: 125683.4859 | J205: 565292.2306
A206: Healthscope Ltd | B206: Central | F206: 308894.7275 | G206: 22503.3289 | H206: 24870.16838 | I206: 6663.219727 | J206: 362931.4445
... 157 more rows

Sheet FDC Calculations
A1: Fully Distributed Cost Calculations
A3: Building block components - Total ($M NOMINAL) | B3: 2011-12 | C3: 2012-13 | D3: 2013-14 | E3: 2014-15 | F3: 2015-16 | G3: TOTAL
A4: Return on capital | B4: ='PTRM Inputs'!B5 -> 109.7 | C4: ='PTRM Inputs'!C5 -> 121.1 | D4: ='PTRM Inputs'!D5 -> 133.3 | E4: ='PTRM Inputs'!E5 -> 144.8 | F4: ='PTRM Inputs'!F5 -> 157.4 | G4: =SUM(B4:F4) -> 666.3
A5: Return of capital | B5: ='PTRM Inputs'!B6 -> 2.5 | C5: ='PTRM Inputs'!C6 -> 3.4 | D5: ='PTRM Inputs'!D6 -> 4.4 | E5: ='PTRM Inputs'!E6 -> 4.5 | F5: ='PTRM Inputs'!F6 -> 5.1 | G5: 19.9
A6: O&M | B6: ='PTRM Inputs'!B7 -> 71 | C6: ='PTRM Inputs'!C7 -> 73.7 | D6: ='PTRM Inputs'!D7 -> 75.2 | E6: ='PTRM Inputs'!E7 -> 76.7 | F6: ='PTRM Inputs'!F7 -> 76.9 | G6: 373.5
A7: Carry-over amounts | B7: ='PTRM Inputs'!B8 -> 11.7 | C7: ='PTRM Inputs'!C8 -> 3.4 | D7: ='PTRM Inputs'!D8 -> 3.4 | E7: ='PTRM Inputs'!E8 -> 1.9 | F7: ='PTRM Inputs'!F8 -> 0 | G7: 20.4
A8: Benchmark Tax liability | B8: ='PTRM Inputs'!B9 -> 18.8 | C8: ='PTRM Inputs'!C9 -> 16.5 | D8: ='PTRM Inputs'!D9 -> 17 | E8: ='PTRM Inputs'!E9 -> 16.5 | F8: ='PTRM Inputs'!F9 -> 16.2 | G8: 85
A9: Total Revenue | B9: =SUM(B4:B8) -> 213.7 | C9: =SUM(C4:C8) -> 218.1 | D9: =SUM(D4:D8) -> 233.3 | E9: =SUM(E4:E8) -> 244.4 | F9: =SUM(F4:F8) -> 255.6 | G9: 1165.1
A11: Building block components R+C ($M NOMINAL) | B11: 2011-12 | C11: 2012-13 | D11: 2013-14 | E11: 2014-15 | F11: 2015-16 | G11: TOTAL
A12: =A4 -> Return on capital | B12: =B4-B36 -> 103.0895462 | C12: 113.8025892 | D12: 125.2674248 | E12: 136.074442 | F12: 147.9151738 | G12: =SUM(B12:F12) -> 626.149176
A13: =A5 -> Return of capital | B13: 2.349351553 | C13: 3.195118113 | D13: 4.134858734 | E13: 4.228832796 | F13: 4.792677169 | G13: 18.70083836
A14: =A6 -> O&M
A15: =A7 -> Carry-over amounts
A16: =A8 -> Benchmark Tax liability | B16: 17.66712368 | C16: 15.50572025 | D16: 15.97559056 | E16: 15.50572025 | F16: 15.22379807 | G16: 79.87795281
A17: Total Revenue | B17: =SUM(B12:B16) ->  | C17: =SUM(C12:C16) ->  | D17: =SUM(D12:D16) ->  | E17: =SUM(E12:E16) ->  | F17: =SUM(F12:F16) -> 
A19: Building block components R ($M NOMINAL) | B19: 2011-12 | C19: 2012-13 | D19: 2013-14 | E19: 2014-15 | F19: 2015-16 | G19: TOTAL
A20: =A12 -> Return on capital | B20: ='Cost allocators'!$C12*B12 ->  | C20: ='Cost allocators'!$C12*C12 ->  | D20: ='Cost allocators'!$C12*D12 ->  | E20: ='Cost allocators'!$C12*E12 ->  | F20: ='Cost allocators'!$C12*F12 ->  | G20: =SUM(B20:F20) -> 
A21: =A13 -> Return of capital | B21: ='Cost allocators'!$C13*B13 ->  | C21: ='Cost allocators'!$C13*C13 ->  | D21: ='Cost allocators'!$C13*D13 ->  | E21: ='Cost allocators'!$C13*E13 ->  | F21: ='Cost allocators'!$C13*F13 -> 
A22: =A14 -> O&M | B22: ='Cost allocators'!$C14*B14 ->  | C22: ='Cost allocators'!$C14*C14 ->  | D22: ='Cost allocators'!$C14*D14 ->  | E22: ='Cost allocators'!$C14*E14 ->  | F22: ='Cost allocators'!$C14*F14 -> 
A23: =A15 -> Carry-over amounts | B23: ='Cost allocators'!$C15*B15 ->  | C23: ='Cost allocators'!$C15*C15 ->  | D23: ='Cost allocators'!$C15*D15 ->  | E23: ='Cost allocators'!$C15*E15 ->  | F23: ='Cost allocators'!$C15*F15 -> 
A24: =A16 -> Benchmark Tax liability | B24: ='Cost allocators'!$C16*B16 ->  | C24: ='Cost allocators'!$C16*C16 ->  | D24: ='Cost allocators'!$C16*D16 ->  | E24: ='Cost allocators'!$C16*E16 ->  | F24: ='Cost allocators'!$C16*F16 -> 
A25: Total Revenue | B25: =SUM(B20:B24) ->  | C25: =SUM(C20:C24) ->  | D25: =SUM(D20:D24) ->  | E25: =SUM(E20:E24) ->  | F25: =SUM(F20:F24) -> 
A27: Building block components C ($M NOMINAL) | B27: 2011-12 | C27: 2012-13 | D27: 2013-14 | E27: 2014-15 | F27: 2015-16 | G27: TOTAL
A28: =A20 -> Return on capital | B28: ='Cost allocators'!$D12*B12 ->  | C28: ='Cost allocators'!$D12*C12 ->  | D28: ='Cost allocators'!$D12*D12 ->  | E28: ='Cost allocators'!$D12*E12 ->  | F28: ='Cost allocators'!$D12*F12 ->  | G28: =SUM(B28:F28) -> 
A29: =A21 -> Return of capital | B29: ='Cost allocators'!$D13*B13 ->  | C29: ='Cost allocators'!$D13*C13 ->  | D29: ='Cost allocators'!$D13*D13 ->  | E29: ='Cost allocators'!$D13*E13 ->  | F29: ='Cost allocators'!$D13*F13 -> 
A30: =A22 -> O&M | B30: ='Cost allocators'!$D14*B14 ->  | C30: ='Cost allocators'!$D14*C14 ->  | D30: ='Cost allocators'!$D14*D14 ->  | E30: ='Cost allocators'!$D14*E14 ->  | F30: ='Cost allocators'!$D14*F14 -> 
A31: =A23 -> Carry-over amounts | B31: ='Cost allocators'!$D15*B15 ->  | C31: ='Cost allocators'!$D15*C15 ->  | D31: ='Cost allocators'!$D15*D15 ->  | E31: ='Cost allocators'!$D15*E15 ->  | F31: ='Cost allocators'!$D15*F15 -> 
A32: =A24 -> Benchmark Tax liability | B32: ='Cost allocators'!$D16*B16 ->  | C32: ='Cost allocators'!$D16*C16 ->  | D32: ='Cost allocators'!$D16*D16 ->  | E32: ='Cost allocators'!$D16*E16 ->  | F32: ='Cost allocators'!$D16*F16 -> 
A33: Total Revenue | B33: =SUM(B28:B32) ->  | C33: =SUM(C28:C32) ->  | D33: =SUM(D28:D32) ->  | E33: =SUM(E28:E32) ->  | F33: =SUM(F28:F32) -> 
A35: Building block components D ($M NOMINAL) | B35: 2011-12 | C35: 2012-13 | D35: 2013-14 | E35: 2014-15 | F35: 2015-16 | G35: TOTAL
A36: =A12 -> Return on capital | B36: =B47 -> 6.610453839 | C36: =B57 -> 7.297410756 | D36: =B67 -> 8.032575176 | E36: =B77 -> 8.725558031 | F36: =B87 -> 9.484826202 | G36: =SUM(B36:F36) -> 40.150824
A37: =A13 -> Return of capital | B37: =B48 -> 0.1506484467 | C37: =B58 -> 0.2048818875 | D37: =B68 -> 0.2651412661 | E37: =B78 -> 0.271167204 | F37: =B88 -> 0.3073228312 | G37: 1.199161635
A38: =A14 -> O&M | B38: =B49 ->  | C38: =B59 ->  | D38: =B69 ->  | E38: =B79 ->  | F38: =B89 -> 
A39: =A15 -> Carry-over amounts | B39: =B50 ->  | C39: =B60 ->  | D39: =B70 ->  | E39: =B80 ->  | F39: =B90 -> 
A40: =A16 -> Benchmark Tax liability | B40: =B51 -> 1.132876319 | C40: =B61 -> 0.994279748 | D40: =B71 -> 1.024409437 | E40: =B81 -> 0.994279748 | F40: =B91 -> 0.9762019344 | G40: 5.122047186
A41: Total Revenue | B41: =SUM(B36:B40) ->  | C41: =SUM(C36:C40) ->  | D41: =SUM(D36:D40) ->  | E41: =SUM(E36:E40) ->  | F41: =SUM(F36:F40) -> 
A43: Checks | B43: =B9-SUM(B25,B33,B41) -> 
A45: Building Blocks by Zone for Tariff D
A46: 2011-12 | B46: Total | C46: Demand-AdNr | D46: Demand-AdC | E46: Demand-AdS | F46: Demand-PP | G46: Demand-Peter | H46: Demand-River | I46: Demand-SE | J46: Demand-Whyal | K46: Demand-Town
A47: =A12 -> Return on capital | B47: =SUM(C47:K47) -> 6.610453839 | C47: =$B4*HLOOKUP(C$46,'Cost allocators'!$H$18:$P$22,(MATCH('Cost allocators'!$B$5,'Cost allocators'!$A$19:$A$22)+1)) -> 3.204704 | D47: =$B4*HLOOKUP(D$46,'Cost allocators'!$H$18:$P$22,(MATCH('Cost allocators'!$B$5,'Cost allocators'!$A$19:$A$22)+1)) -> 1.839882409 | E47: =$B4*HLOOKUP(E$46,'Cost allocators'!$H$18:$P$22,(MATCH('Cost allocators'!$B$5,'Cost allocators'!$A$19:$A$22)+1)) -> 0.984448878 | F47: =$B4*HLOOKUP(F$46,'Cost allocators'!$H$18:$P$22,(MATCH('Cost allocators'!$B$5,'Cost allocators'!$A$19:$A$22)+1)) -> 0.2051917047 | G47: =$B4*HLOOKUP(G$46,'Cost allocators'!$H$18:$P$22,(MATCH('Cost allocators'!$B$5,'Cost allocators'!$A$19:$A$22)+1)) -> 0.03954329921 | H47: =$B4*HLOOKUP(H$46,'Cost allocators'!$H$18:$P$22,(MATCH('Cost allocators'!$B$5,'Cost allocators'!$A$19:$A$22)+1)) -> 0.03421803249 | I47: =$B4*HLOOKUP(I$46,'Cost allocators'!$H$18:$P$22,(MATCH('Cost allocators'!$B$5,'Cost allocators'!$A$19:$A$22)+1)) -> 0.2555529083 | J47: =$B4*HLOOKUP(J$46,'Cost allocators'!$H$18:$P$22,(MATCH('Cost allocators'!$B$5,'Cost allocators'!$A$19:$A$22)+1)) -> 0.0469126077 | K47: =$B4*HLOOKUP(K$46,'Cost allocators'!$H$18:$P$22,(MATCH('Cost allocators'!$B$5,'Cost allocators'!$A$19:$A$22)+1)) -> 0
A48: =A13 -> Return of capital | B48: =SUM(C48:K48) -> 0.1506484467 | C48: =$B5*HLOOKUP(C$46,'Cost allocators'!$H$18:$P$22,(MATCH('Cost allocators'!$B$6,'Cost allocators'!$A$19:$A$22)+1)) -> 0.07303336372 | D48: =$B5*HLOOKUP(D$46,'Cost allocators'!$H$18:$P$22,(MATCH('Cost allocators'!$B$6,'Cost allocators'!$A$19:$A$22)+1)) -> 0.04192986347 | E48: =$B5*HLOOKUP(E$46,'Cost allocators'!$H$18:$P$22,(MATCH('Cost allocators'!$B$6,'Cost allocators'!$A$19:$A$22)+1)) -> 0.02243502457 | F48: =$B5*HLOOKUP(F$46,'Cost allocators'!$H$18:$P$22,(MATCH('Cost allocators'!$B$6,'Cost allocators'!$A$19:$A$22)+1)) -> 0.00467620111 | G48: =$B5*HLOOKUP(G$46,'Cost allocators'!$H$18:$P$22,(MATCH('Cost allocators'!$B$6,'Cost allocators'!$A$19:$A$22)+1)) -> 0.0009011690795 | H48: =$B5*HLOOKUP(H$46,'Cost allocators'!$H$18:$P$22,(MATCH('Cost allocators'!$B$6,'Cost allocators'!$A$19:$A$22)+1)) -> 0.0007798093092 | I48: =$B5*HLOOKUP(I$46,'Cost allocators'!$H$18:$P$22,(MATCH('Cost allocators'!$B$6,'Cost allocators'!$A$19:$A$22)+1)) -> 0.005823904017 | J48: =$B5*HLOOKUP(J$46,'Cost allocators'!$H$18:$P$22,(MATCH('Cost allocators'!$B$6,'Cost allocators'!$A$19:$A$22)+1)) -> 0.001069111388 | K48: =$B5*HLOOKUP(K$46,'Cost allocators'!$H$18:$P$22,(MATCH('Cost allocators'!$B$6,'Cost allocators'!$A$19:$A$22)+1)) -> 0
A49: =A14 -> O&M | B49: =SUM(C49:K49) ->  | C49: =$B6*HLOOKUP(C$46,'Cost allocators'!$H$18:$P$22,(MATCH('Cost allocators'!$B$7,'Cost allocators'!$A$19:$A$22)+1)) ->  | D49: =$B6*HLOOKUP(D$46,'Cost allocators'!$H$18:$P$22,(MATCH('Cost allocators'!$B$7,'Cost allocators'!$A$19:$A$22)+1)) ->  | E49: =$B6*HLOOKUP(E$46,'Cost allocators'!$H$18:$P$22,(MATCH('Cost allocators'!$B$7,'Cost allocators'!$A$19:$A$22)+1)) ->  | F49: =$B6*HLOOKUP(F$46,'Cost allocators'!$H$18:$P$22,(MATCH('Cost allocators'!$B$7,'Cost allocators'!$A$19:$A$22)+1)) ->  | G49: =$B6*HLOOKUP(G$46,'Cost allocators'!$H$18:$P$22,(MATCH('Cost allocators'!$B$7,'Cost allocators'!$A$19:$A$22)+1)) ->  | H49: =$B6*HLOOKUP(H$46,'Cost allocators'!$H$18:$P$22,(MATCH('Cost allocators'!$B$7,'Cost allocators'!$A$19:$A$22)+1)) ->  | I49: =$B6*HLOOKUP(I$46,'Cost allocators'!$H$18:$P$22,(MATCH('Cost allocators'!$B$7,'Cost allocators'!$A$19:$A$22)+1)) ->  | J49: =$B6*HLOOKUP(J$46,'Cost allocators'!$H$18:$P$22,(MATCH('Cost allocators'!$B$7,'Cost allocators'!$A$19:$A$22)+1)) ->  | K49: =$B6*HLOOKUP(K$46,'Cost allocators'!$H$18:$P$22,(MATCH('Cost allocators'!$B$7,'Cost allocators'!$A$19:$A$22)+1)) -> 0
A50: =A15 -> Carry-over amounts | B50: =SUM(C50:K50) ->  | C50: =$B7*HLOOKUP(C$46,'Cost allocators'!$H$18:$P$22,(MATCH('Cost allocators'!$B$8,'Cost allocators'!$A$19:$A$22)+1)) ->  | D50: =$B7*HLOOKUP(D$46,'Cost allocators'!$H$18:$P$22,(MATCH('Cost allocators'!$B$8,'Cost allocators'!$A$19:$A$22)+1)) ->  | E50: =$B7*HLOOKUP(E$46,'Cost allocators'!$H$18:$P$22,(MATCH('Cost allocators'!$B$8,'Cost allocators'!$A$19:$A$22)+1)) ->  | F50: =$B7*HLOOKUP(F$46,'Cost allocators'!$H$18:$P$22,(MATCH('Cost allocators'!$B$8,'Cost allocators'!$A$19:$A$22)+1)) ->  | G50: =$B7*HLOOKUP(G$46,'Cost allocators'!$H$18:$P$22,(MATCH('Cost allocators'!$B$8,'Cost allocators'!$A$19:$A$22)+1)) ->  | H50: =$B7*HLOOKUP(H$46,'Cost allocators'!$H$18:$P$22,(MATCH('Cost allocators'!$B$8,'Cost allocators'!$A$19:$A$22)+1)) ->  | I50: =$B7*HLOOKUP(I$46,'Cost allocators'!$H$18:$P$22,(MATCH('Cost allocators'!$B$8,'Cost allocators'!$A$19:$A$22)+1)) ->  | J50: =$B7*HLOOKUP(J$46,'Cost allocators'!$H$18:$P$22,(MATCH('Cost allocators'!$B$8,'Cost allocators'!$A$19:$A$22)+1)) ->  | K50: =$B7*HLOOKUP(K$46,'Cost allocators'!$H$18:$P$22,(MATCH('Cost allocators'!$B$8,'Cost allocators'!$A$19:$A$22)+1)) -> 0
A51: =A16 -> Benchmark Tax liability | B51: =SUM(C51:K51) -> 1.132876319 | C51: =$B8*HLOOKUP(C$46,'Cost allocators'!$H$18:$P$22,(MATCH('Cost allocators'!$B$9,'Cost allocators'!$A$19:$A$22)+1)) -> 0.5492108951 | D51: =$B8*HLOOKUP(D$46,'Cost allocators'!$H$18:$P$22,(MATCH('Cost allocators'!$B$9,'Cost allocators'!$A$19:$A$22)+1)) -> 0.3153125733 | E51: =$B8*HLOOKUP(E$46,'Cost allocators'!$H$18:$P$22,(MATCH('Cost allocators'!$B$9,'Cost allocators'!$A$19:$A$22)+1)) -> 0.1687113847 | F51: =$B8*HLOOKUP(F$46,'Cost allocators'!$H$18:$P$22,(MATCH('Cost allocators'!$B$9,'Cost allocators'!$A$19:$A$22)+1)) -> 0.03516503235 | G51: =$B8*HLOOKUP(G$46,'Cost allocators'!$H$18:$P$22,(MATCH('Cost allocators'!$B$9,'Cost allocators'!$A$19:$A$22)+1)) -> 0.006776791478 | H51: =$B8*HLOOKUP(H$46,'Cost allocators'!$H$18:$P$22,(MATCH('Cost allocators'!$B$9,'Cost allocators'!$A$19:$A$22)+1)) -> 0.005864166005 | I51: =$B8*HLOOKUP(I$46,'Cost allocators'!$H$18:$P$22,(MATCH('Cost allocators'!$B$9,'Cost allocators'!$A$19:$A$22)+1)) -> 0.04379575821 | J51: =$B8*HLOOKUP(J$46,'Cost allocators'!$H$18:$P$22,(MATCH('Cost allocators'!$B$9,'Cost allocators'!$A$19:$A$22)+1)) -> 0.008039717636 | K51: =$B8*HLOOKUP(K$46,'Cost allocators'!$H$18:$P$22,(MATCH('Cost allocators'!$B$9,'Cost allocators'!$A$19:$A$22)+1)) -> 0
A52: Total Revenue | B52: =SUM(B47:B51) ->  | K52: 0
A54: Checks | B54: =B52-B$41 -> 
A56: 2012-13 | B56: Total | C56: =C46 -> Demand-AdNr | D56: =D46 -> Demand-AdC | E56: Demand-AdS | F56: Demand-PP | G56: Demand-Peter | H56: Demand-River | I56: Demand-SE | J56: Demand-Whyal | K56: Demand-Town
A57: =A47 -> Return on capital | B57: =SUM(C57:K57) -> 7.297410756 | C57: =$C4*HLOOKUP(C$46,'Cost allocators'!$H$18:$P$22,(MATCH('Cost allocators'!$B$5,'Cost allocators'!$A$19:$A$22)+1)) -> 3.537736138 | D57: =$C4*HLOOKUP(D$46,'Cost allocators'!$H$18:$P$22,(MATCH('Cost allocators'!$B$5,'Cost allocators'!$A$19:$A$22)+1)) -> 2.031082587 | E57: =$C4*HLOOKUP(E$46,'Cost allocators'!$H$18:$P$22,(MATCH('Cost allocators'!$B$5,'Cost allocators'!$A$19:$A$22)+1)) -> 1.08675259 | F57: =$C4*HLOOKUP(F$46,'Cost allocators'!$H$18:$P$22,(MATCH('Cost allocators'!$B$5,'Cost allocators'!$A$19:$A$22)+1)) -> 0.2265151818 | G57: =$C4*HLOOKUP(G$46,'Cost allocators'!$H$18:$P$22,(MATCH('Cost allocators'!$B$5,'Cost allocators'!$A$19:$A$22)+1)) -> 0.04365263021 | H57: =$C4*HLOOKUP(H$46,'Cost allocators'!$H$18:$P$22,(MATCH('Cost allocators'!$B$5,'Cost allocators'!$A$19:$A$22)+1)) -> 0.03777396294 | I57: =$C4*HLOOKUP(I$46,'Cost allocators'!$H$18:$P$22,(MATCH('Cost allocators'!$B$5,'Cost allocators'!$A$19:$A$22)+1)) -> 0.2821099106 | J57: =$C4*HLOOKUP(J$46,'Cost allocators'!$H$18:$P$22,(MATCH('Cost allocators'!$B$5,'Cost allocators'!$A$19:$A$22)+1)) -> 0.05178775563 | K57: =$C4*HLOOKUP(K$46,'Cost allocators'!$H$18:$P$22,(MATCH('Cost allocators'!$B$5,'Cost allocators'!$A$19:$A$22)+1)) -> 0
A58: =A48 -> Return of capital | B58: =SUM(C58:K58) -> 0.2048818875 | C58: =$C5*HLOOKUP(C$46,'Cost allocators'!$H$18:$P$22,(MATCH('Cost allocators'!$B$6,'Cost allocators'!$A$19:$A$22)+1)) -> 0.09932537465 | D58: =$C5*HLOOKUP(D$46,'Cost allocators'!$H$18:$P$22,(MATCH('Cost allocators'!$B$6,'Cost allocators'!$A$19:$A$22)+1)) -> 0.05702461432 | E58: =$C5*HLOOKUP(E$46,'Cost allocators'!$H$18:$P$22,(MATCH('Cost allocators'!$B$6,'Cost allocators'!$A$19:$A$22)+1)) -> 0.03051163341 | F58: =$C5*HLOOKUP(F$46,'Cost allocators'!$H$18:$P$22,(MATCH('Cost allocators'!$B$6,'Cost allocators'!$A$19:$A$22)+1)) -> 0.00635963351 | G58: =$C5*HLOOKUP(G$46,'Cost allocators'!$H$18:$P$22,(MATCH('Cost allocators'!$B$6,'Cost allocators'!$A$19:$A$22)+1)) -> 0.001225589948 | H58: =$C5*HLOOKUP(H$46,'Cost allocators'!$H$18:$P$22,(MATCH('Cost allocators'!$B$6,'Cost allocators'!$A$19:$A$22)+1)) -> 0.001060540661 | I58: =$C5*HLOOKUP(I$46,'Cost allocators'!$H$18:$P$22,(MATCH('Cost allocators'!$B$6,'Cost allocators'!$A$19:$A$22)+1)) -> 0.007920509464 | J58: =$C5*HLOOKUP(J$46,'Cost allocators'!$H$18:$P$22,(MATCH('Cost allocators'!$B$6,'Cost allocators'!$A$19:$A$22)+1)) -> 0.001453991487 | K58: =$C5*HLOOKUP(K$46,'Cost allocators'!$H$18:$P$22,(MATCH('Cost allocators'!$B$6,'Cost allocators'!$A$19:$A$22)+1)) -> 0
A59: =A49 -> O&M | B59: =SUM(C59:K59) ->  | C59: =$C6*HLOOKUP(C$46,'Cost allocators'!$H$18:$P$22,(MATCH('Cost allocators'!$B$7,'Cost allocators'!$A$19:$A$22)+1)) ->  | D59: =$C6*HLOOKUP(D$46,'Cost allocators'!$H$18:$P$22,(MATCH('Cost allocators'!$B$7,'Cost allocators'!$A$19:$A$22)+1)) ->  | E59: =$C6*HLOOKUP(E$46,'Cost allocators'!$H$18:$P$22,(MATCH('Cost allocators'!$B$7,'Cost allocators'!$A$19:$A$22)+1)) ->  | F59: =$C6*HLOOKUP(F$46,'Cost allocators'!$H$18:$P$22,(MATCH('Cost allocators'!$B$7,'Cost allocators'!$A$19:$A$22)+1)) ->  | G59: =$C6*HLOOKUP(G$46,'Cost allocators'!$H$18:$P$22,(MATCH('Cost allocators'!$B$7,'Cost allocators'!$A$19:$A$22)+1)) ->  | H59: =$C6*HLOOKUP(H$46,'Cost allocators'!$H$18:$P$22,(MATCH('Cost allocators'!$B$7,'Cost allocators'!$A$19:$A$22)+1)) ->  | I59: =$C6*HLOOKUP(I$46,'Cost allocators'!$H$18:$P$22,(MATCH('Cost allocators'!$B$7,'Cost allocators'!$A$19:$A$22)+1)) ->  | J59: =$C6*HLOOKUP(J$46,'Cost allocators'!$H$18:$P$22,(MATCH('Cost allocators'!$B$7,'Cost allocators'!$A$19:$A$22)+1)) ->  | K59: =$C6*HLOOKUP(K$46,'Cost allocators'!$H$18:$P$22,(MATCH('Cost allocators'!$B$7,'Cost allocators'!$A$19:$A$22)+1)) -> 0
A60: =A50 -> Carry-over amounts | B60: =SUM(C60:K60) ->  | C60: =$C7*HLOOKUP(C$46,'Cost allocators'!$H$18:$P$22,(MATCH('Cost allocators'!$B$8,'Cost allocators'!$A$19:$A$22)+1)) ->  | D60: =$C7*HLOOKUP(D$46,'Cost allocators'!$H$18:$P$22,(MATCH('Cost allocators'!$B$8,'Cost allocators'!$A$19:$A$22)+1)) ->  | E60: =$C7*HLOOKUP(E$46,'Cost allocators'!$H$18:$P$22,(MATCH('Cost allocators'!$B$8,'Cost allocators'!$A$19:$A$22)+1)) ->  | F60: =$C7*HLOOKUP(F$46,'Cost allocators'!$H$18:$P$22,(MATCH('Cost allocators'!$B$8,'Cost allocators'!$A$19:$A$22)+1)) ->  | G60: =$C7*HLOOKUP(G$46,'Cost allocators'!$H$18:$P$22,(MATCH('Cost allocators'!$B$8,'Cost allocators'!$A$19:$A$22)+1)) ->  | H60: =$C7*HLOOKUP(H$46,'Cost allocators'!$H$18:$P$22,(MATCH('Cost allocators'!$B$8,'Cost allocators'!$A$19:$A$22)+1)) ->  | I60: =$C7*HLOOKUP(I$46,'Cost allocators'!$H$18:$P$22,(MATCH('Cost allocators'!$B$8,'Cost allocators'!$A$19:$A$22)+1)) ->  | J60: =$C7*HLOOKUP(J$46,'Cost allocators'!$H$18:$P$22,(MATCH('Cost allocators'!$B$8,'Cost allocators'!$A$19:$A$22)+1)) ->  | K60: =$C7*HLOOKUP(K$46,'Cost allocators'!$H$18:$P$22,(MATCH('Cost allocators'!$B$8,'Cost allocators'!$A$19:$A$22)+1)) -> 0
A61: =A51 -> Benchmark Tax liability | B61: =SUM(C61:K61) -> 0.994279748 | C61: =$C8*HLOOKUP(C$46,'Cost allocators'!$H$18:$P$22,(MATCH('Cost allocators'!$B$9,'Cost allocators'!$A$19:$A$22)+1)) -> 0.4820202005 | D61: =$C8*HLOOKUP(D$46,'Cost allocators'!$H$18:$P$22,(MATCH('Cost allocators'!$B$9,'Cost allocators'!$A$19:$A$22)+1)) -> 0.2767370989 | E61: =$C8*HLOOKUP(E$46,'Cost allocators'!$H$18:$P$22,(MATCH('Cost allocators'!$B$9,'Cost allocators'!$A$19:$A$22)+1)) -> 0.1480711621 | F61: =$C8*HLOOKUP(F$46,'Cost allocators'!$H$18:$P$22,(MATCH('Cost allocators'!$B$9,'Cost allocators'!$A$19:$A$22)+1)) -> 0.03086292733 | G61: =$C8*HLOOKUP(G$46,'Cost allocators'!$H$18:$P$22,(MATCH('Cost allocators'!$B$9,'Cost allocators'!$A$19:$A$22)+1)) -> 0.005947715924 | H61: =$C8*HLOOKUP(H$46,'Cost allocators'!$H$18:$P$22,(MATCH('Cost allocators'!$B$9,'Cost allocators'!$A$19:$A$22)+1)) -> 0.005146741441 | I61: =$C8*HLOOKUP(I$46,'Cost allocators'!$H$18:$P$22,(MATCH('Cost allocators'!$B$9,'Cost allocators'!$A$19:$A$22)+1)) -> 0.03843776652 | J61: =$C8*HLOOKUP(J$46,'Cost allocators'!$H$18:$P$22,(MATCH('Cost allocators'!$B$9,'Cost allocators'!$A$19:$A$22)+1)) -> 0.00705613516 | K61: =$C8*HLOOKUP(K$46,'Cost allocators'!$H$18:$P$22,(MATCH('Cost allocators'!$B$9,'Cost allocators'!$A$19:$A$22)+1)) -> 0
A62: Total Revenue | B62: =SUM(B57:B61) ->  | K62: 0
A64: Checks | B64: =B62-C$41 -> 
A66: 2013-14 | B66: Total | C66: =C56 -> Demand-AdNr | D66: =D56 -> Demand-AdC | E66: Demand-AdS | F66: Demand-PP | G66: Demand-Peter | H66: Demand-River | I66: Demand-SE | J66: Demand-Whyal | K66: Demand-Town
A67: =A57 -> Return on capital | B67: =SUM(C67:K67) -> 8.032575176 | C67: =$D4*HLOOKUP(C$46,'Cost allocators'!$H$18:$P$22,(MATCH('Cost allocators'!$B$5,'Cost allocators'!$A$19:$A$22)+1)) -> 3.894138953 | D67: =$D4*HLOOKUP(D$46,'Cost allocators'!$H$18:$P$22,(MATCH('Cost allocators'!$B$5,'Cost allocators'!$A$19:$A$22)+1)) -> 2.23570032 | E67: =$D4*HLOOKUP(E$46,'Cost allocators'!$H$18:$P$22,(MATCH('Cost allocators'!$B$5,'Cost allocators'!$A$19:$A$22)+1)) -> 1.19623551 | F67: =$D4*HLOOKUP(F$46,'Cost allocators'!$H$18:$P$22,(MATCH('Cost allocators'!$B$5,'Cost allocators'!$A$19:$A$22)+1)) -> 0.2493350432 | G67: =$D4*HLOOKUP(G$46,'Cost allocators'!$H$18:$P$22,(MATCH('Cost allocators'!$B$5,'Cost allocators'!$A$19:$A$22)+1)) -> 0.04805033532 | H67: =$D4*HLOOKUP(H$46,'Cost allocators'!$H$18:$P$22,(MATCH('Cost allocators'!$B$5,'Cost allocators'!$A$19:$A$22)+1)) -> 0.04157943237 | I67: =$D4*HLOOKUP(I$46,'Cost allocators'!$H$18:$P$22,(MATCH('Cost allocators'!$B$5,'Cost allocators'!$A$19:$A$22)+1)) -> 0.3105305622 | J67: =$D4*HLOOKUP(J$46,'Cost allocators'!$H$18:$P$22,(MATCH('Cost allocators'!$B$5,'Cost allocators'!$A$19:$A$22)+1)) -> 0.0570050192 | K67: =$D4*HLOOKUP(K$46,'Cost allocators'!$H$18:$P$22,(MATCH('Cost allocators'!$B$5,'Cost allocators'!$A$19:$A$22)+1)) -> 0
A68: =A58 -> Return of capital | B68: =SUM(C68:K68) -> 0.2651412661 | C68: =$D5*HLOOKUP(C$46,'Cost allocators'!$H$18:$P$22,(MATCH('Cost allocators'!$B$6,'Cost allocators'!$A$19:$A$22)+1)) -> 0.1285387201 | D68: =$D5*HLOOKUP(D$46,'Cost allocators'!$H$18:$P$22,(MATCH('Cost allocators'!$B$6,'Cost allocators'!$A$19:$A$22)+1)) -> 0.07379655971 | E68: =$D5*HLOOKUP(E$46,'Cost allocators'!$H$18:$P$22,(MATCH('Cost allocators'!$B$6,'Cost allocators'!$A$19:$A$22)+1)) -> 0.03948564324 | F68: =$D5*HLOOKUP(F$46,'Cost allocators'!$H$18:$P$22,(MATCH('Cost allocators'!$B$6,'Cost allocators'!$A$19:$A$22)+1)) -> 0.008230113954 | G68: =$D5*HLOOKUP(G$46,'Cost allocators'!$H$18:$P$22,(MATCH('Cost allocators'!$B$6,'Cost allocators'!$A$19:$A$22)+1)) -> 0.00158605758 | H68: =$D5*HLOOKUP(H$46,'Cost allocators'!$H$18:$P$22,(MATCH('Cost allocators'!$B$6,'Cost allocators'!$A$19:$A$22)+1)) -> 0.001372464384 | I68: =$D5*HLOOKUP(I$46,'Cost allocators'!$H$18:$P$22,(MATCH('Cost allocators'!$B$6,'Cost allocators'!$A$19:$A$22)+1)) -> 0.01025007107 | J68: =$D5*HLOOKUP(J$46,'Cost allocators'!$H$18:$P$22,(MATCH('Cost allocators'!$B$6,'Cost allocators'!$A$19:$A$22)+1)) -> 0.001881636043 | K68: =$D5*HLOOKUP(K$46,'Cost allocators'!$H$18:$P$22,(MATCH('Cost allocators'!$B$6,'Cost allocators'!$A$19:$A$22)+1)) -> 0
A69: =A59 -> O&M | B69: =SUM(C69:K69) ->  | C69: =$D6*HLOOKUP(C$46,'Cost allocators'!$H$18:$P$22,(MATCH('Cost allocators'!$B$7,'Cost allocators'!$A$19:$A$22)+1)) ->  | D69: =$D6*HLOOKUP(D$46,'Cost allocators'!$H$18:$P$22,(MATCH('Cost allocators'!$B$7,'Cost allocators'!$A$19:$A$22)+1)) ->  | E69: =$D6*HLOOKUP(E$46,'Cost allocators'!$H$18:$P$22,(MATCH('Cost allocators'!$B$7,'Cost allocators'!$A$19:$A$22)+1)) ->  | F69: =$D6*HLOOKUP(F$46,'Cost allocators'!$H$18:$P$22,(MATCH('Cost allocators'!$B$7,'Cost allocators'!$A$19:$A$22)+1)) ->  | G69: =$D6*HLOOKUP(G$46,'Cost allocators'!$H$18:$P$22,(MATCH('Cost allocators'!$B$7,'Cost allocators'!$A$19:$A$22)+1)) ->  | H69: =$D6*HLOOKUP(H$46,'Cost allocators'!$H$18:$P$22,(MATCH('Cost allocators'!$B$7,'Cost allocators'!$A$19:$A$22)+1)) ->  | I69: =$D6*HLOOKUP(I$46,'Cost allocators'!$H$18:$P$22,(MATCH('Cost allocators'!$B$7,'Cost allocators'!$A$19:$A$22)+1)) ->  | J69: =$D6*HLOOKUP(J$46,'Cost allocators'!$H$18:$P$22,(MATCH('Cost allocators'!$B$7,'Cost allocators'!$A$19:$A$22)+1)) ->  | K69: =$D6*HLOOKUP(K$46,'Cost allocators'!$H$18:$P$22,(MATCH('Cost allocators'!$B$7,'Cost allocators'!$A$19:$A$22)+1)) -> 0
A70: =A60 -> Carry-over amounts | B70: =SUM(C70:K70) ->  | C70: =$D7*HLOOKUP(C$46,'Cost allocators'!$H$18:$P$22,(MATCH('Cost allocators'!$B$8,'Cost allocators'!$A$19:$A$22)+1)) ->  | D70: =$D7*HLOOKUP(D$46,'Cost allocators'!$H$18:$P$22,(MATCH('Cost allocators'!$B$8,'Cost allocators'!$A$19:$A$22)+1)) ->  | E70: =$D7*HLOOKUP(E$46,'Cost allocators'!$H$18:$P$22,(MATCH('Cost allocators'!$B$8,'Cost allocators'!$A$19:$A$22)+1)) ->  | F70: =$D7*HLOOKUP(F$46,'Cost allocators'!$H$18:$P$22,(MATCH('Cost allocators'!$B$8,'Cost allocators'!$A$19:$A$22)+1)) ->  | G70: =$D7*HLOOKUP(G$46,'Cost allocators'!$H$18:$P$22,(MATCH('Cost allocators'!$B$8,'Cost allocators'!$A$19:$A$22)+1)) ->  | H70: =$D7*HLOOKUP(H$46,'Cost allocators'!$H$18:$P$22,(MATCH('Cost allocators'!$B$8,'Cost allocators'!$A$19:$A$22)+1)) ->  | I70: =$D7*HLOOKUP(I$46,'Cost allocators'!$H$18:$P$22,(MATCH('Cost allocators'!$B$8,'Cost allocators'!$A$19:$A$22)+1)) ->  | J70: =$D7*HLOOKUP(J$46,'Cost allocators'!$H$18:$P$22,(MATCH('Cost allocators'!$B$8,'Cost allocators'!$A$19:$A$22)+1)) ->  | K70: =$D7*HLOOKUP(K$46,'Cost allocators'!$H$18:$P$22,(MATCH('Cost allocators'!$B$8,'Cost allocators'!$A$19:$A$22)+1)) -> 0
A71: =A61 -> Benchmark Tax liability | B71: =SUM(C71:K71) -> 1.024409437 | C71: =$D8*HLOOKUP(C$46,'Cost allocators'!$H$18:$P$22,(MATCH('Cost allocators'!$B$9,'Cost allocators'!$A$19:$A$22)+1)) -> 0.4966268733 | D71: =$D8*HLOOKUP(D$46,'Cost allocators'!$H$18:$P$22,(MATCH('Cost allocators'!$B$9,'Cost allocators'!$A$19:$A$22)+1)) -> 0.2851230716 | E71: =$D8*HLOOKUP(E$46,'Cost allocators'!$H$18:$P$22,(MATCH('Cost allocators'!$B$9,'Cost allocators'!$A$19:$A$22)+1)) -> 0.1525581671 | F71: =$D8*HLOOKUP(F$46,'Cost allocators'!$H$18:$P$22,(MATCH('Cost allocators'!$B$9,'Cost allocators'!$A$19:$A$22)+1)) -> 0.03179816755 | G71: =$D8*HLOOKUP(G$46,'Cost allocators'!$H$18:$P$22,(MATCH('Cost allocators'!$B$9,'Cost allocators'!$A$19:$A$22)+1)) -> 0.00612794974 | H71: =$D8*HLOOKUP(H$46,'Cost allocators'!$H$18:$P$22,(MATCH('Cost allocators'!$B$9,'Cost allocators'!$A$19:$A$22)+1)) -> 0.005302703303 | I71: =$D8*HLOOKUP(I$46,'Cost allocators'!$H$18:$P$22,(MATCH('Cost allocators'!$B$9,'Cost allocators'!$A$19:$A$22)+1)) -> 0.03960254732 | J71: =$D8*HLOOKUP(J$46,'Cost allocators'!$H$18:$P$22,(MATCH('Cost allocators'!$B$9,'Cost allocators'!$A$19:$A$22)+1)) -> 0.007269957437 | K71: =$D8*HLOOKUP(K$46,'Cost allocators'!$H$18:$P$22,(MATCH('Cost allocators'!$B$9,'Cost allocators'!$A$19:$A$22)+1)) -> 0
A72: Total Revenue | B72: =SUM(B67:B71) ->  | K72: 0
A74: Checks | B74: =B72-D$41 -> 
A76: 2014-15 | B76: Total | C76: =C66 -> Demand-AdNr | D76: =D66 -> Demand-AdC | E76: Demand-AdS | F76: Demand-PP | G76: Demand-Peter | H76: Demand-River | I76: Demand-SE | J76: Demand-Whyal | K76: Demand-Town
A77: =A67 -> Return on capital | B77: =SUM(C77:K77) -> 8.725558031 | C77: =$E4*HLOOKUP(C$46,'Cost allocators'!$H$18:$P$22,(MATCH('Cost allocators'!$B$5,'Cost allocators'!$A$19:$A$22)+1)) -> 4.230092426 | D77: =$E4*HLOOKUP(D$46,'Cost allocators'!$H$18:$P$22,(MATCH('Cost allocators'!$B$5,'Cost allocators'!$A$19:$A$22)+1)) -> 2.428577692 | E77: =$E4*HLOOKUP(E$46,'Cost allocators'!$H$18:$P$22,(MATCH('Cost allocators'!$B$5,'Cost allocators'!$A$19:$A$22)+1)) -> 1.299436623 | F77: =$E4*HLOOKUP(F$46,'Cost allocators'!$H$18:$P$22,(MATCH('Cost allocators'!$B$5,'Cost allocators'!$A$19:$A$22)+1)) -> 0.2708455683 | G77: =$E4*HLOOKUP(G$46,'Cost allocators'!$H$18:$P$22,(MATCH('Cost allocators'!$B$5,'Cost allocators'!$A$19:$A$22)+1)) -> 0.05219571308 | H77: =$E4*HLOOKUP(H$46,'Cost allocators'!$H$18:$P$22,(MATCH('Cost allocators'!$B$5,'Cost allocators'!$A$19:$A$22)+1)) -> 0.04516655519 | I77: =$E4*HLOOKUP(I$46,'Cost allocators'!$H$18:$P$22,(MATCH('Cost allocators'!$B$5,'Cost allocators'!$A$19:$A$22)+1)) -> 0.3373205207 | J77: =$E4*HLOOKUP(J$46,'Cost allocators'!$H$18:$P$22,(MATCH('Cost allocators'!$B$5,'Cost allocators'!$A$19:$A$22)+1)) -> 0.06192293158 | K77: =$E4*HLOOKUP(K$46,'Cost allocators'!$H$18:$P$22,(MATCH('Cost allocators'!$B$5,'Cost allocators'!$A$19:$A$22)+1)) -> 0
A78: =A68 -> Return of capital | B78: =SUM(C78:K78) -> 0.271167204 | C78: =$E5*HLOOKUP(C$46,'Cost allocators'!$H$18:$P$22,(MATCH('Cost allocators'!$B$6,'Cost allocators'!$A$19:$A$22)+1)) -> 0.1314600547 | D78: =$E5*HLOOKUP(D$46,'Cost allocators'!$H$18:$P$22,(MATCH('Cost allocators'!$B$6,'Cost allocators'!$A$19:$A$22)+1)) -> 0.07547375425 | E78: =$E5*HLOOKUP(E$46,'Cost allocators'!$H$18:$P$22,(MATCH('Cost allocators'!$B$6,'Cost allocators'!$A$19:$A$22)+1)) -> 0.04038304422 | F78: =$E5*HLOOKUP(F$46,'Cost allocators'!$H$18:$P$22,(MATCH('Cost allocators'!$B$6,'Cost allocators'!$A$19:$A$22)+1)) -> 0.008417161998 | G78: =$E5*HLOOKUP(G$46,'Cost allocators'!$H$18:$P$22,(MATCH('Cost allocators'!$B$6,'Cost allocators'!$A$19:$A$22)+1)) -> 0.001622104343 | H78: =$E5*HLOOKUP(H$46,'Cost allocators'!$H$18:$P$22,(MATCH('Cost allocators'!$B$6,'Cost allocators'!$A$19:$A$22)+1)) -> 0.001403656757 | I78: =$E5*HLOOKUP(I$46,'Cost allocators'!$H$18:$P$22,(MATCH('Cost allocators'!$B$6,'Cost allocators'!$A$19:$A$22)+1)) -> 0.01048302723 | J78: =$E5*HLOOKUP(J$46,'Cost allocators'!$H$18:$P$22,(MATCH('Cost allocators'!$B$6,'Cost allocators'!$A$19:$A$22)+1)) -> 0.001924400498 | K78: =$E5*HLOOKUP(K$46,'Cost allocators'!$H$18:$P$22,(MATCH('Cost allocators'!$B$6,'Cost allocators'!$A$19:$A$22)+1)) -> 0
A79: =A69 -> O&M | B79: =SUM(C79:K79) ->  | C79: =$E6*HLOOKUP(C$46,'Cost allocators'!$H$18:$P$22,(MATCH('Cost allocators'!$B$7,'Cost allocators'!$A$19:$A$22)+1)) ->  | D79: =$E6*HLOOKUP(D$46,'Cost allocators'!$H$18:$P$22,(MATCH('Cost allocators'!$B$7,'Cost allocators'!$A$19:$A$22)+1)) ->  | E79: =$E6*HLOOKUP(E$46,'Cost allocators'!$H$18:$P$22,(MATCH('Cost allocators'!$B$7,'Cost allocators'!$A$19:$A$22)+1)) ->  | F79: =$E6*HLOOKUP(F$46,'Cost allocators'!$H$18:$P$22,(MATCH('Cost allocators'!$B$7,'Cost allocators'!$A$19:$A$22)+1)) ->  | G79: =$E6*HLOOKUP(G$46,'Cost allocators'!$H$18:$P$22,(MATCH('Cost allocators'!$B$7,'Cost allocators'!$A$19:$A$22)+1)) ->  | H79: =$E6*HLOOKUP(H$46,'Cost allocators'!$H$18:$P$22,(MATCH('Cost allocators'!$B$7,'Cost allocators'!$A$19:$A$22)+1)) ->  | I79: =$E6*HLOOKUP(I$46,'Cost allocators'!$H$18:$P$22,(MATCH('Cost allocators'!$B$7,'Cost allocators'!$A$19:$A$22)+1)) ->  | J79: =$E6*HLOOKUP(J$46,'Cost allocators'!$H$18:$P$22,(MATCH('Cost allocators'!$B$7,'Cost allocators'!$A$19:$A$22)+1)) ->  | K79: =$E6*HLOOKUP(K$46,'Cost allocators'!$H$18:$P$22,(MATCH('Cost allocators'!$B$7,'Cost allocators'!$A$19:$A$22)+1)) -> 0
A80: =A70 -> Carry-over amounts | B80: =SUM(C80:K80) ->  | C80: =$E7*HLOOKUP(C$46,'Cost allocators'!$H$18:$P$22,(MATCH('Cost allocators'!$B$8,'Cost allocators'!$A$19:$A$22)+1)) ->  | D80: =$E7*HLOOKUP(D$46,'Cost allocators'!$H$18:$P$22,(MATCH('Cost allocators'!$B$8,'Cost allocators'!$A$19:$A$22)+1)) ->  | E80: =$E7*HLOOKUP(E$46,'Cost allocators'!$H$18:$P$22,(MATCH('Cost allocators'!$B$8,'Cost allocators'!$A$19:$A$22)+1)) ->  | F80: =$E7*HLOOKUP(F$46,'Cost allocators'!$H$18:$P$22,(MATCH('Cost allocators'!$B$8,'Cost allocators'!$A$19:$A$22)+1)) ->  | G80: =$E7*HLOOKUP(G$46,'Cost allocators'!$H$18:$P$22,(MATCH('Cost allocators'!$B$8,'Cost allocators'!$A$19:$A$22)+1)) ->  | H80: =$E7*HLOOKUP(H$46,'Cost allocators'!$H$18:$P$22,(MATCH('Cost allocators'!$B$8,'Cost allocators'!$A$19:$A$22)+1)) ->  | I80: =$E7*HLOOKUP(I$46,'Cost allocators'!$H$18:$P$22,(MATCH('Cost allocators'!$B$8,'Cost allocators'!$A$19:$A$22)+1)) ->  | J80: =$E7*HLOOKUP(J$46,'Cost allocators'!$H$18:$P$22,(MATCH('Cost allocators'!$B$8,'Cost allocators'!$A$19:$A$22)+1)) ->  | K80: =$E7*HLOOKUP(K$46,'Cost allocators'!$H$18:$P$22,(MATCH('Cost allocators'!$B$8,'Cost allocators'!$A$19:$A$22)+1)) -> 0
A81: =A71 -> Benchmark Tax liability | B81: =SUM(C81:K81) -> 0.994279748 | C81: =$E8*HLOOKUP(C$46,'Cost allocators'!$H$18:$P$22,(MATCH('Cost allocators'!$B$9,'Cost allocators'!$A$19:$A$22)+1)) -> 0.4820202005 | D81: =$E8*HLOOKUP(D$46,'Cost allocators'!$H$18:$P$22,(MATCH('Cost allocators'!$B$9,'Cost allocators'!$A$19:$A$22)+1)) -> 0.2767370989 | E81: =$E8*HLOOKUP(E$46,'Cost allocators'!$H$18:$P$22,(MATCH('Cost allocators'!$B$9,'Cost allocators'!$A$19:$A$22)+1)) -> 0.1480711621 | F81: =$E8*HLOOKUP(F$46,'Cost allocators'!$H$18:$P$22,(MATCH('Cost allocators'!$B$9,'Cost allocators'!$A$19:$A$22)+1)) -> 0.03086292733 | G81: =$E8*HLOOKUP(G$46,'Cost allocators'!$H$18:$P$22,(MATCH('Cost allocators'!$B$9,'Cost allocators'!$A$19:$A$22)+1)) -> 0.005947715924 | H81: =$E8*HLOOKUP(H$46,'Cost allocators'!$H$18:$P$22,(MATCH('Cost allocators'!$B$9,'Cost allocators'!$A$19:$A$22)+1)) -> 0.005146741441 | I81: =$E8*HLOOKUP(I$46,'Cost allocators'!$H$18:$P$22,(MATCH('Cost allocators'!$B$9,'Cost allocators'!$A$19:$A$22)+1)) -> 0.03843776652 | J81: =$E8*HLOOKUP(J$46,'Cost allocators'!$H$18:$P$22,(MATCH('Cost allocators'!$B$9,'Cost allocators'!$A$19:$A$22)+1)) -> 0.00705613516 | K81: =$E8*HLOOKUP(K$46,'Cost allocators'!$H$18:$P$22,(MATCH('Cost allocators'!$B$9,'Cost allocators'!$A$19:$A$22)+1)) -> 0
A82: Total Revenue | B82: =SUM(B77:B81) ->  | K82: 0
A84: Checks | B84: =B82-E$41 -> 
A86: 2015-16 | B86: Total | C86: =C76 -> Demand-AdNr | D86: =D76 -> Demand-AdC | E86: Demand-AdS | F86: Demand-PP | G86: Demand-Peter | H86: Demand-River | I86: Demand-SE | J86: Demand-Whyal | K86: Demand-Town
A87: =A77 -> Return on capital | B87: =SUM(C87:K87) -> 9.484826202 | C87: =$F4*HLOOKUP(C$46,'Cost allocators'!$H$18:$P$22,(MATCH('Cost allocators'!$B$5,'Cost allocators'!$A$19:$A$22)+1)) -> 4.59818058 | D87: =$F4*HLOOKUP(D$46,'Cost allocators'!$H$18:$P$22,(MATCH('Cost allocators'!$B$5,'Cost allocators'!$A$19:$A$22)+1)) -> 2.639904204 | E87: =$F4*HLOOKUP(E$46,'Cost allocators'!$H$18:$P$22,(MATCH('Cost allocators'!$B$5,'Cost allocators'!$A$19:$A$22)+1)) -> 1.412509147 | F87: =$F4*HLOOKUP(F$46,'Cost allocators'!$H$18:$P$22,(MATCH('Cost allocators'!$B$5,'Cost allocators'!$A$19:$A$22)+1)) -> 0.2944136219 | G87: =$F4*HLOOKUP(G$46,'Cost allocators'!$H$18:$P$22,(MATCH('Cost allocators'!$B$5,'Cost allocators'!$A$19:$A$22)+1)) -> 0.05673760524 | H87: =$F4*HLOOKUP(H$46,'Cost allocators'!$H$18:$P$22,(MATCH('Cost allocators'!$B$5,'Cost allocators'!$A$19:$A$22)+1)) -> 0.04909679411 | I87: =$F4*HLOOKUP(I$46,'Cost allocators'!$H$18:$P$22,(MATCH('Cost allocators'!$B$5,'Cost allocators'!$A$19:$A$22)+1)) -> 0.3666729969 | J87: =$F4*HLOOKUP(J$46,'Cost allocators'!$H$18:$P$22,(MATCH('Cost allocators'!$B$5,'Cost allocators'!$A$19:$A$22)+1)) -> 0.06731125298 | K87: =$F4*HLOOKUP(K$46,'Cost allocators'!$H$18:$P$22,(MATCH('Cost allocators'!$B$5,'Cost allocators'!$A$19:$A$22)+1)) -> 0
A88: =A78 -> Return of capital | B88: =SUM(C88:K88) -> 0.3073228312 | C88: =$F5*HLOOKUP(C$46,'Cost allocators'!$H$18:$P$22,(MATCH('Cost allocators'!$B$6,'Cost allocators'!$A$19:$A$22)+1)) -> 0.148988062 | D88: =$F5*HLOOKUP(D$46,'Cost allocators'!$H$18:$P$22,(MATCH('Cost allocators'!$B$6,'Cost allocators'!$A$19:$A$22)+1)) -> 0.08553692148 | E88: =$F5*HLOOKUP(E$46,'Cost allocators'!$H$18:$P$22,(MATCH('Cost allocators'!$B$6,'Cost allocators'!$A$19:$A$22)+1)) -> 0.04576745012 | F88: =$F5*HLOOKUP(F$46,'Cost allocators'!$H$18:$P$22,(MATCH('Cost allocators'!$B$6,'Cost allocators'!$A$19:$A$22)+1)) -> 0.009539450265 | G88: =$F5*HLOOKUP(G$46,'Cost allocators'!$H$18:$P$22,(MATCH('Cost allocators'!$B$6,'Cost allocators'!$A$19:$A$22)+1)) -> 0.001838384922 | H88: =$F5*HLOOKUP(H$46,'Cost allocators'!$H$18:$P$22,(MATCH('Cost allocators'!$B$6,'Cost allocators'!$A$19:$A$22)+1)) -> 0.001590810991 | I88: =$F5*HLOOKUP(I$46,'Cost allocators'!$H$18:$P$22,(MATCH('Cost allocators'!$B$6,'Cost allocators'!$A$19:$A$22)+1)) -> 0.0118807642 | J88: =$F5*HLOOKUP(J$46,'Cost allocators'!$H$18:$P$22,(MATCH('Cost allocators'!$B$6,'Cost allocators'!$A$19:$A$22)+1)) -> 0.002180987231 | K88: =$F5*HLOOKUP(K$46,'Cost allocators'!$H$18:$P$22,(MATCH('Cost allocators'!$B$6,'Cost allocators'!$A$19:$A$22)+1)) -> 0
A89: =A79 -> O&M | B89: =SUM(C89:K89) ->  | C89: =$F6*HLOOKUP(C$46,'Cost allocators'!$H$18:$P$22,(MATCH('Cost allocators'!$B$7,'Cost allocators'!$A$19:$A$22)+1)) ->  | D89: =$F6*HLOOKUP(D$46,'Cost allocators'!$H$18:$P$22,(MATCH('Cost allocators'!$B$7,'Cost allocators'!$A$19:$A$22)+1)) ->  | E89: =$F6*HLOOKUP(E$46,'Cost allocators'!$H$18:$P$22,(MATCH('Cost allocators'!$B$7,'Cost allocators'!$A$19:$A$22)+1)) ->  | F89: =$F6*HLOOKUP(F$46,'Cost allocators'!$H$18:$P$22,(MATCH('Cost allocators'!$B$7,'Cost allocators'!$A$19:$A$22)+1)) ->  | G89: =$F6*HLOOKUP(G$46,'Cost allocators'!$H$18:$P$22,(MATCH('Cost allocators'!$B$7,'Cost allocators'!$A$19:$A$22)+1)) ->  | H89: =$F6*HLOOKUP(H$46,'Cost allocators'!$H$18:$P$22,(MATCH('Cost allocators'!$B$7,'Cost allocators'!$A$19:$A$22)+1)) ->  | I89: =$F6*HLOOKUP(I$46,'Cost allocators'!$H$18:$P$22,(MATCH('Cost allocators'!$B$7,'Cost allocators'!$A$19:$A$22)+1)) ->  | J89: =$F6*HLOOKUP(J$46,'Cost allocators'!$H$18:$P$22,(MATCH('Cost allocators'!$B$7,'Cost allocators'!$A$19:$A$22)+1)) ->  | K89: =$F6*HLOOKUP(K$46,'Cost allocators'!$H$18:$P$22,(MATCH('Cost allocators'!$B$7,'Cost allocators'!$A$19:$A$22)+1)) -> 0
A90: =A80 -> Carry-over amounts | B90: =SUM(C90:K90) ->  | C90: =$F7*HLOOKUP(C$46,'Cost allocators'!$H$18:$P$22,(MATCH('Cost allocators'!$B$8,'Cost allocators'!$A$19:$A$22)+1)) ->  | D90: =$F7*HLOOKUP(D$46,'Cost allocators'!$H$18:$P$22,(MATCH('Cost allocators'!$B$8,'Cost allocators'!$A$19:$A$22)+1)) ->  | E90: =$F7*HLOOKUP(E$46,'Cost allocators'!$H$18:$P$22,(MATCH('Cost allocators'!$B$8,'Cost allocators'!$A$19:$A$22)+1)) ->  | F90: =$F7*HLOOKUP(F$46,'Cost allocators'!$H$18:$P$22,(MATCH('Cost allocators'!$B$8,'Cost allocators'!$A$19:$A$22)+1)) ->  | G90: =$F7*HLOOKUP(G$46,'Cost allocators'!$H$18:$P$22,(MATCH('Cost allocators'!$B$8,'Cost allocators'!$A$19:$A$22)+1)) ->  | H90: =$F7*HLOOKUP(H$46,'Cost allocators'!$H$18:$P$22,(MATCH('Cost allocators'!$B$8,'Cost allocators'!$A$19:$A$22)+1)) ->  | I90: =$F7*HLOOKUP(I$46,'Cost allocators'!$H$18:$P$22,(MATCH('Cost allocators'!$B$8,'Cost allocators'!$A$19:$A$22)+1)) ->  | J90: =$F7*HLOOKUP(J$46,'Cost allocators'!$H$18:$P$22,(MATCH('Cost allocators'!$B$8,'Cost allocators'!$A$19:$A$22)+1)) ->  | K90: =$F7*HLOOKUP(K$46,'Cost allocators'!$H$18:$P$22,(MATCH('Cost allocators'!$B$8,'Cost allocators'!$A$19:$A$22)+1)) -> 0
A91: =A81 -> Benchmark Tax liability | B91: =SUM(C91:K91) -> 0.9762019344 | C91: =$F8*HLOOKUP(C$46,'Cost allocators'!$H$18:$P$22,(MATCH('Cost allocators'!$B$9,'Cost allocators'!$A$19:$A$22)+1)) -> 0.4732561969 | D91: =$F8*HLOOKUP(D$46,'Cost allocators'!$H$18:$P$22,(MATCH('Cost allocators'!$B$9,'Cost allocators'!$A$19:$A$22)+1)) -> 0.2717055153 | E91: =$F8*HLOOKUP(E$46,'Cost allocators'!$H$18:$P$22,(MATCH('Cost allocators'!$B$9,'Cost allocators'!$A$19:$A$22)+1)) -> 0.1453789592 | F91: =$F8*HLOOKUP(F$46,'Cost allocators'!$H$18:$P$22,(MATCH('Cost allocators'!$B$9,'Cost allocators'!$A$19:$A$22)+1)) -> 0.03030178319 | G91: =$F8*HLOOKUP(G$46,'Cost allocators'!$H$18:$P$22,(MATCH('Cost allocators'!$B$9,'Cost allocators'!$A$19:$A$22)+1)) -> 0.005839575635 | H91: =$F8*HLOOKUP(H$46,'Cost allocators'!$H$18:$P$22,(MATCH('Cost allocators'!$B$9,'Cost allocators'!$A$19:$A$22)+1)) -> 0.005053164324 | I91: =$F8*HLOOKUP(I$46,'Cost allocators'!$H$18:$P$22,(MATCH('Cost allocators'!$B$9,'Cost allocators'!$A$19:$A$22)+1)) -> 0.03773889803 | J91: =$F8*HLOOKUP(J$46,'Cost allocators'!$H$18:$P$22,(MATCH('Cost allocators'!$B$9,'Cost allocators'!$A$19:$A$22)+1)) -> 0.006927841793 | K91: =$F8*HLOOKUP(K$46,'Cost allocators'!$H$18:$P$22,(MATCH('Cost allocators'!$B$9,'Cost allocators'!$A$19:$A$22)+1)) -> 0
A92: Total Revenue | B92: =SUM(B87:B91) ->  | C92: =SUM(C87:C91) ->  | D92: =SUM(D87:D91) ->  | K92: 0
A94: Checks | B94: =B92-F$41 -> 

Sheet StandAlone & Avoidable Tests
A1: Standalone and Avoidable Cost Tests
A3: Standalone and Avoidable Cost Tests
A4: Tariff | B4: FDC Cost | C4: Avoidable Cost | D4: Expected Revenue 2011-12 ($M) | E4: Standalone Cost | F4: All Tests Met? | G4: Avoidable Test Met? | H4: Standalone Test Met?
A5: Tariff R | B5: ='FDC Calculations'!B25 ->  | C5: ='DORC Calculations'!D358 ->  | D5: ='[8]Tariff Impacts'!$D$36/1000000 -> 100.1793202 | E5: ='FDC Calculations'!$B$25+'FDC Calculations'!B41 ->  | F5: =IF(AND(D5>=C5,D5<=E5),"Test Met","Test Failed") ->  | G5: =IF(D5>=C5,"Test Met","Test Failed") ->  | H5: =IF(D5<=E5,"Test Met","Test Failed") -> 
A6: Tariff C | B6: ='FDC Calculations'!B33 ->  | C6: ='DORC Calculations'!E358 ->  | D6: ='[8]Tariff Impacts'!$D$43/1000000 -> 18.99922223 | E6: ='FDC Calculations'!B33+'FDC Calculations'!B41 ->  | G6: =IF(D6>=C6,"Test Met","Test Failed") ->  | H6: =IF(D6<=E6,"Test Met","Test Failed") -> 
A7: Tariff D - Adelaide Northern | B7: ='FDC Calculations'!C52 ->  | C7: ='DORC Calculations'!C359 ->  | D7: ='[8]Tariff Impacts'!$D$53/1000000 -> 11.4652176 | E7: ='FDC Calculations'!B41 -> 
A8: Tariff D - Adelaide Central | B8: ='FDC Calculations'!D52 ->  | C8: ='DORC Calculations'!C358 ->  | D8: ='[8]Tariff Impacts'!$D$52/1000000 -> 4.631457018 | E8: ='FDC Calculations'!B41 -> 
A9: Tariff D - Adelaide Southern | B9: ='FDC Calculations'!E52 ->  | C9: ='DORC Calculations'!C360 ->  | D9: ='[8]Tariff Impacts'!$D$54/1000000 -> 1.600379284 | E9: ='FDC Calculations'!B41 -> 
A10: Tariff D - Port Pirie | B10: ='FDC Calculations'!F52 ->  | C10: ='DORC Calculations'!C362 ->  | D10: ='[8]Tariff Impacts'!$D$56/1000000 -> 0.376731456 | E10: ='FDC Calculations'!B41 -> 
A11: Tariff D - Petersborough | B11: ='FDC Calculations'!G52 ->  | C11: ='DORC Calculations'!C361 ->  | D11: ='[8]Tariff Impacts'!$D$55/1000000 -> 0.5373699975 | E11: ='FDC Calculations'!B41 -> 
A12: Tariff D - Riverlands | B12: ='FDC Calculations'!H52 ->  | C12: ='DORC Calculations'!C363 ->  | D12: ='[8]Tariff Impacts'!$D$57/1000000 -> 0.1876404522 | E12: ='FDC Calculations'!B41 -> 
A13: Tariff D - South East | B13: ='FDC Calculations'!I52 ->  | C13: ='DORC Calculations'!C364 ->  | D13: ='[8]Tariff Impacts'!$D$58/1000000 -> 0.409916088 | E13: ='FDC Calculations'!B41 -> 
A14: Tariff D - Whyalla | B14: ='FDC Calculations'!J52 ->  | C14: ='DORC Calculations'!C365 ->  | D14: ='[8]Tariff Impacts'!$D$60/1000000 -> 0.16830288 | E14: ='FDC Calculations'!B41 -> 

Sheet Tariff & Rebalancing Tests
A1: Tariff Control and Rebalancing Tests - Does not apply for 2011-12
F3: Input Selection
F4: CPI t | G4: ='General Inputs'!L16 -> 0.02888086643
F5: X t | G5: -0.191
F6: Y t | G6: 0.01
F7: t | G7: 2010
F8: t – 1 | G8: 2009
F9: t – 2 | G9: 2008
A11: Tariff Control | G11: Rebalancing Control
B12: CPIt(Mar)(1 – Xt) | C12: -1 | E12: Constraint met? | G12: Tariff class | H12: CPIt (1 – Xt)(1 + Yt) | K12: -1 | L12: Constraint met?
B17: =G4*(1-G5) -> 0.03439711191 | C17: =(SUM(I17:I30)/SUM(J17:J30))-1 -> 0.0406543852 | E17: =IF(B17>=C17,"Yes","No") -> No | G17: =C96 -> Residential 1 | H17: =G4*(1-G5)*(1+G6) -> 0.03474108303 | I17: =SUM(C97:C102) -> 114193843.8 | J17: =SUM(C89:C94) -> 109555821.8 | K17: =IFERROR((I17/J17)-1,"") ->  | L17: =IF(K17="","",IF(H17>=K17,"Yes","No")) -> 
G18: =D96 -> Residential 2 | H18: =H17 -> 0.03474108303 | I18: =SUM(D97:D102) -> 0 | J18: =SUM(D89:D94) -> 0 | L18: =IF(K18="","",IF(H18>=K18,"Yes","No")) -> 
G19: =E96 -> Residential 3 | H19: =H18 -> 0.03474108303 | I19: =SUM(E97:E102) -> 0 | J19: =SUM(E89:E94) -> 0
G20: =F96 -> Commercial 1 | H20: 0.03474108303 | I20: =SUM(F97:F102) -> 19605606.39 | J20: =SUM(F89:F94) -> 19152267.91
G21: =G96 -> Commercial 2 | H21: 0.03474108303 | I21: =SUM(G97:G102) -> 0 | J21: =SUM(G89:G94) -> 0
G22: =H96 -> Demand-AdC | H22: 0.03474108303 | I22: =SUM(H97:H102) -> 1557094.066 | J22: =SUM(H89:H94) -> 1458588.203
G23: =I96 -> Demand-AdNr | H23: 0.03474108303 | I23: =SUM(I97:I102) -> 2664403.186 | J23: =SUM(I89:I94) -> 2495486.549
G24: =J96 -> Demand-AdS | H24: =H23 -> 0.03474108303 | I24: =SUM(J97:J102) -> 808725.1809 | J24: =SUM(J89:J94) -> 757998.7706
G25: =K96 -> Demand-Peter | H25: =H24 -> 0.03474108303 | I25: =SUM(K97:K102) -> 48403.92 | J25: =SUM(K89:K94) -> 44425.72
G26: =L96 -> Demand-PP | H26: 0.03474108303 | I26: =SUM(L97:L102) -> 77024.44 | J26: =SUM(L89:L94) -> 72109.76
G27: =M96 -> Demand-River | H27: 0.03474108303 | I27: =SUM(M97:M102) -> 116407 | J27: =SUM(M89:M94) -> 107273
G28: =N96 -> Demand-SE | H28: 0.03474108303 | I28: =SUM(N97:N102) -> 181923.7543 | J28: =SUM(N89:N94) -> 170229.2498
G29: =O96 -> Demand-Town | H29: 0.03474108303 | I29: =SUM(O97:O102) -> 0 | J29: =SUM(O89:O94) -> 0
G30: =P96 -> Demand-Whyal | H30: 0.03474108303 | I30: =SUM(P97:P102) -> 34014.8 | J30: =SUM(P89:P94) -> 31817.92
A55: Calculations
A56: 2008/09 | B56: Existing Quantities | C56: Residential 1 | D56: Residential 2 | E56: Residential 3 | F56: Commercial 1 | G56: Commercial 2 | H56: Demand-AdC | I56: Demand-AdNr | J56: Demand-AdS | K56: Demand-Peter | L56: Demand-PP | M56: Demand-River | N56: Demand-SE | O56: Demand-Town | P56: Demand-Whyal
B57: Volumes Band 1 | C57: =VLOOKUP($A$56,'Volume Inputs'!$A$5:$O$9,2) -> 5090813.141 | D57: =VLOOKUP($A$56,'Volume Inputs'!$A$5:$O$9,3) -> 0 | E57: =VLOOKUP($A$56,'Volume Inputs'!$A$5:$O$9,4) -> 0 | F57: =VLOOKUP($A$56,'Volume Inputs'!$A$5:$O$9,5) -> 1234779.394 | G57: =VLOOKUP($A$56,'Volume Inputs'!$A$5:$O$9,6) -> 0 | H57: =VLOOKUP($A$56,'Volume Inputs'!$A$5:$O$9,7) -> 2112.887928 | I57: =VLOOKUP($A$56,'Volume Inputs'!$A$5:$O$9,8) -> 3699.157121 | J57: =VLOOKUP($A$56,'Volume Inputs'!$A$5:$O$9,9) -> 1177.173184 | K57: =VLOOKUP($A$56,'Volume Inputs'!$A$5:$O$9,10) -> 50 | L57: =VLOOKUP($A$56,'Volume Inputs'!$A$5:$O$9,11) -> 100 | M57: =VLOOKUP($A$56,'Volume Inputs'!$A$5:$O$9,12) -> 100 | N57: =VLOOKUP($A$56,'Volume Inputs'!$A$5:$O$9,13) -> 221.2527565 | O57: =VLOOKUP($A$56,'Volume Inputs'!$A$5:$O$9,14) -> 145.5428571 | P57: =VLOOKUP($A$56,'Volume Inputs'!$A$5:$O$9,15) -> 50
B58: Volumes Band 2 | C58: =VLOOKUP($A$56,'Volume Inputs'!$A$17:$O$21,2) -> 2810587.445 | D58: =VLOOKUP($A$56,'Volume Inputs'!$A$17:$O$21,3) -> 0 | E58: =VLOOKUP($A$56,'Volume Inputs'!$A$17:$O$21,4) -> 0 | F58: =VLOOKUP($A$56,'Volume Inputs'!$A$17:$O$21,5) -> 1182708.16 | G58: =VLOOKUP($A$56,'Volume Inputs'!$A$17:$O$21,6) -> 0 | H58: =VLOOKUP($A$56,'Volume Inputs'!$A$17:$O$21,7) -> 1569.299488 | I58: =VLOOKUP($A$56,'Volume Inputs'!$A$17:$O$21,8) -> 2989.9754 | J58: =VLOOKUP($A$56,'Volume Inputs'!$A$17:$O$21,9) -> 873.2402235 | K58: =VLOOKUP($A$56,'Volume Inputs'!$A$17:$O$21,10) -> 12 | L58: =VLOOKUP($A$56,'Volume Inputs'!$A$17:$O$21,11) -> 100 | M58: =VLOOKUP($A$56,'Volume Inputs'!$A$17:$O$21,12) -> 100 | N58: =VLOOKUP($A$56,'Volume Inputs'!$A$17:$O$21,13) -> 146.0268193 | O58: =VLOOKUP($A$56,'Volume Inputs'!$A$17:$O$21,14) -> 137.4571429 | P58: =VLOOKUP($A$56,'Volume Inputs'!$A$17:$O$21,15) -> 7
B59: Volumes Band 3 | C59: =VLOOKUP($A$56,'Volume Inputs'!$A$29:$O$33,2) -> 0 | D59: =VLOOKUP($A$56,'Volume Inputs'!$A$29:$O$33,3) -> 0 | E59: =VLOOKUP($A$56,'Volume Inputs'!$A$29:$O$33,4) -> 0 | F59: =VLOOKUP($A$56,'Volume Inputs'!$A$29:$O$33,5) -> 572374.2724 | G59: =VLOOKUP($A$56,'Volume Inputs'!$A$29:$O$33,6) -> 0 | H59: =VLOOKUP($A$56,'Volume Inputs'!$A$29:$O$33,7) -> 6342.164609 | I59: =VLOOKUP($A$56,'Volume Inputs'!$A$29:$O$33,8) -> 14534.01859 | J59: =VLOOKUP($A$56,'Volume Inputs'!$A$29:$O$33,9) -> 2009.586592 | K59: =VLOOKUP($A$56,'Volume Inputs'!$A$29:$O$33,10) -> 0 | L59: =VLOOKUP($A$56,'Volume Inputs'!$A$29:$O$33,11) -> 616 | M59: =VLOOKUP($A$56,'Volume Inputs'!$A$29:$O$33,12) -> 550 | N59: =VLOOKUP($A$56,'Volume Inputs'!$A$29:$O$33,13) -> 613.3126411 | O59: =VLOOKUP($A$56,'Volume Inputs'!$A$29:$O$33,14) -> 0 | P59: =VLOOKUP($A$56,'Volume Inputs'!$A$29:$O$33,15) -> 0
B60: Volumes Band 4 | C60: =VLOOKUP($A$56,'Volume Inputs'!$A$41:$O$45,2) -> 0 | D60: =VLOOKUP($A$56,'Volume Inputs'!$A$41:$O$45,3) -> 0 | E60: =VLOOKUP($A$56,'Volume Inputs'!$A$41:$O$45,4) -> 0 | F60: =VLOOKUP($A$56,'Volume Inputs'!$A$41:$O$45,5) -> 284531.2953 | G60: =VLOOKUP($A$56,'Volume Inputs'!$A$41:$O$45,6) -> 0 | H60: =VLOOKUP($A$56,'Volume Inputs'!$A$41:$O$45,7) -> 288.121081 | I60: =VLOOKUP($A$56,'Volume Inputs'!$A$41:$O$45,8) -> 30924.18831 | J60: =VLOOKUP($A$56,'Volume Inputs'!$A$41:$O$45,9) -> 0 | K60: =VLOOKUP($A$56,'Volume Inputs'!$A$41:$O$45,10) -> 0 | L60: =VLOOKUP($A$56,'Volume Inputs'!$A$41:$O$45,11) -> 500 | M60: =VLOOKUP($A$56,'Volume Inputs'!$A$41:$O$45,12) -> 0 | N60: =VLOOKUP($A$56,'Volume Inputs'!$A$41:$O$45,13) -> 0 | O60: =VLOOKUP($A$56,'Volume Inputs'!$A$41:$O$45,14) -> 0 | P60: =VLOOKUP($A$56,'Volume Inputs'!$A$41:$O$45,15) -> 0
B61: Volumes Band 5 | C61: =VLOOKUP($A$56,'Volume Inputs'!$A$53:$O$57,2) -> 0 | D61: =VLOOKUP($A$56,'Volume Inputs'!$A$53:$O$57,3) -> 0 | E61: =VLOOKUP($A$56,'Volume Inputs'!$A$53:$O$57,4) -> 0 | F61: =VLOOKUP($A$56,'Volume Inputs'!$A$53:$O$57,5) -> 0 | G61: =VLOOKUP($A$56,'Volume Inputs'!$A$53:$O$57,6) -> 0 | H61: =VLOOKUP($A$56,'Volume Inputs'!$A$53:$O$57,7) -> 0 | I61: =VLOOKUP($A$56,'Volume Inputs'!$A$53:$O$57,8) -> 0 | J61: =VLOOKUP($A$56,'Volume Inputs'!$A$53:$O$57,9) -> 0 | K61: =VLOOKUP($A$56,'Volume Inputs'!$A$53:$O$57,10) -> 0 | L61: =VLOOKUP($A$56,'Volume Inputs'!$A$53:$O$57,11) -> 0 | M61: =VLOOKUP($A$56,'Volume Inputs'!$A$53:$O$57,12) -> 0 | N61: =VLOOKUP($A$56,'Volume Inputs'!$A$53:$O$57,13) -> 0 | O61: =VLOOKUP($A$56,'Volume Inputs'!$A$53:$O$57,14) -> 0 | P61: =VLOOKUP($A$56,'Volume Inputs'!$A$53:$O$57,15) -> 0
B62: Customer Numbers | C62: =VLOOKUP($A$56,'Connection Numbers Inputs'!$A$77:$O$81,2) -> 381428 | D62: =VLOOKUP($A$56,'Connection Numbers Inputs'!$A$77:$O$81,3) -> 0 | E62: =VLOOKUP($A$56,'Connection Numbers Inputs'!$A$77:$O$81,4) -> 0 | F62: =VLOOKUP($A$56,'Connection Numbers Inputs'!$A$77:$O$81,5) -> 9506 | G62: =VLOOKUP($A$56,'Connection Numbers Inputs'!$A$77:$O$81,6) -> 0 | H62: =VLOOKUP($A$56,'Connection Numbers Inputs'!$A$77:$O$81,7) -> 43 | I62: =VLOOKUP($A$56,'Connection Numbers Inputs'!$A$77:$O$81,8) -> 74 | J62: =VLOOKUP($A$56,'Connection Numbers Inputs'!$A$77:$O$81,9) -> 22 | K62: =VLOOKUP($A$56,'Connection Numbers Inputs'!$A$77:$O$81,10) -> 1 | L62: =VLOOKUP($A$56,'Connection Numbers Inputs'!$A$77:$O$81,11) -> 2 | M62: =VLOOKUP($A$56,'Connection Numbers Inputs'!$A$77:$O$81,12) -> 2 | N62: =VLOOKUP($A$56,'Connection Numbers Inputs'!$A$77:$O$81,13) -> 5 | O62: =VLOOKUP($A$56,'Connection Numbers Inputs'!$A$77:$O$81,14) -> 3 | P62: =VLOOKUP($A$56,'Connection Numbers Inputs'!$A$77:$O$81,15) -> 1
A64: 2008/09 | B64: Alternative Quantities | C64: Residential 1 | D64: Residential 2 | E64: Residential 3 | F64: Commercial 1 | G64: Commercial 2 | H64: Demand-AdC | I64: Demand-AdNr | J64: Demand-AdS | K64: Demand-Peter | L64: Demand-PP | M64: Demand-River | N64: Demand-SE | O64: Demand-Town | P64: Demand-Whyal
B65: Volumes Band 1 | C65: ='[9]2008-09 Consumption Bands'!$G$67 -> 3307282.658 | D65: 0 | E65: 0 | F65: =SUM('[10]2008-09 Consumption Bands'!$I$67+'[11]2008-09 Consumption Bands'!$I$67) -> 1141530.281 | G65: 0 | H65: =VLOOKUP($A$56,'Volume Inputs'!$A$5:$O$9,7) -> 2112.887928 | I65: =VLOOKUP($A$56,'Volume Inputs'!$A$5:$O$9,8) -> 3699.157121 | J65: =VLOOKUP($A$56,'Volume Inputs'!$A$5:$O$9,9) -> 1177.173184 | K65: =VLOOKUP($A$56,'Volume Inputs'!$A$5:$O$9,10) -> 50 | L65: =VLOOKUP($A$56,'Volume Inputs'!$A$5:$O$9,11) -> 100 | M65: =VLOOKUP($A$56,'Volume Inputs'!$A$5:$O$9,12) -> 100 | N65: =VLOOKUP($A$56,'Volume Inputs'!$A$5:$O$9,13) -> 221.2527565 | O65: =VLOOKUP($A$56,'Volume Inputs'!$A$5:$O$9,14) -> 145.5428571 | P65: =VLOOKUP($A$56,'Volume Inputs'!$A$5:$O$9,15) -> 50
B66: Volumes Band 2 | C66: ='[9]2008-09 Consumption Bands'!$H$67 -> 1782508.371 | D66: 0 | E66: 0 | F66: =SUM('[10]2008-09 Consumption Bands'!$J$67+'[11]2008-09 Consumption Bands'!$J$67) -> 1262476.88 | G66: 0 | H66: =VLOOKUP($A$56,'Volume Inputs'!$A$17:$O$21,7) -> 1569.299488 | I66: =VLOOKUP($A$56,'Volume Inputs'!$A$17:$O$21,8) -> 2989.9754 | J66: =VLOOKUP($A$56,'Volume Inputs'!$A$17:$O$21,9) -> 873.2402235 | K66: =VLOOKUP($A$56,'Volume Inputs'!$A$17:$O$21,10) -> 12 | L66: =VLOOKUP($A$56,'Volume Inputs'!$A$17:$O$21,11) -> 100 | M66: =VLOOKUP($A$56,'Volume Inputs'!$A$17:$O$21,12) -> 100 | N66: =VLOOKUP($A$56,'Volume Inputs'!$A$17:$O$21,13) -> 146.0268193 | O66: =VLOOKUP($A$56,'Volume Inputs'!$A$17:$O$21,14) -> 137.4571429 | P66: =VLOOKUP($A$56,'Volume Inputs'!$A$17:$O$21,15) -> 7
B67: Volumes Band 3 | C67: ='[9]2008-09 Consumption Bands'!$I$67 -> 2811609.557 | D67: 0 | E67: 0 | F67: =SUM('[10]2008-09 Consumption Bands'!$K$67+'[11]2008-09 Consumption Bands'!$K$67) -> 583363.2398 | G67: 0 | H67: =VLOOKUP($A$56,'Volume Inputs'!$A$29:$O$33,7) -> 6342.164609 | I67: =VLOOKUP($A$56,'Volume Inputs'!$A$29:$O$33,8) -> 14534.01859 | J67: =VLOOKUP($A$56,'Volume Inputs'!$A$29:$O$33,9) -> 2009.586592 | K67: =VLOOKUP($A$56,'Volume Inputs'!$A$29:$O$33,10) -> 0 | L67: =VLOOKUP($A$56,'Volume Inputs'!$A$29:$O$33,11) -> 616 | M67: =VLOOKUP($A$56,'Volume Inputs'!$A$29:$O$33,12) -> 550 | N67: =VLOOKUP($A$56,'Volume Inputs'!$A$29:$O$33,13) -> 613.3126411 | O67: =VLOOKUP($A$56,'Volume Inputs'!$A$29:$O$33,14) -> 0 | P67: =VLOOKUP($A$56,'Volume Inputs'!$A$29:$O$33,15) -> 0
B68: Volumes Band 4 | C68: 0 | D68: 0 | E68: 0 | F68: =SUM('[10]2008-09 Consumption Bands'!$L$67+'[11]2008-09 Consumption Bands'!$L$67) -> 287022.7211 | G68: 0 | H68: =VLOOKUP($A$56,'Volume Inputs'!$A$41:$O$45,7) -> 288.121081 | I68: =VLOOKUP($A$56,'Volume Inputs'!$A$41:$O$45,8) -> 30924.18831 | J68: =VLOOKUP($A$56,'Volume Inputs'!$A$41:$O$45,9) -> 0 | K68: =VLOOKUP($A$56,'Volume Inputs'!$A$41:$O$45,10) -> 0 | L68: =VLOOKUP($A$56,'Volume Inputs'!$A$41:$O$45,11) -> 500 | M68: =VLOOKUP($A$56,'Volume Inputs'!$A$41:$O$45,12) -> 0 | N68: =VLOOKUP($A$56,'Volume Inputs'!$A$41:$O$45,13) -> 0 | O68: =VLOOKUP($A$56,'Volume Inputs'!$A$41:$O$45,14) -> 0 | P68: =VLOOKUP($A$56,'Volume Inputs'!$A$41:$O$45,15) -> 0
B69: Volumes Band 5 | C69: 0 | D69: 0 | E69: 0 | F69: 0 | G69: 0 | H69: =VLOOKUP($A$56,'Volume Inputs'!$A$53:$O$57,7) -> 0 | I69: =VLOOKUP($A$56,'Volume Inputs'!$A$53:$O$57,8) -> 0 | J69: =VLOOKUP($A$56,'Volume Inputs'!$A$53:$O$57,9) -> 0 | K69: =VLOOKUP($A$56,'Volume Inputs'!$A$53:$O$57,10) -> 0 | L69: =VLOOKUP($A$56,'Volume Inputs'!$A$53:$O$57,11) -> 0 | M69: =VLOOKUP($A$56,'Volume Inputs'!$A$53:$O$57,12) -> 0 | N69: =VLOOKUP($A$56,'Volume Inputs'!$A$53:$O$57,13) -> 0 | O69: =VLOOKUP($A$56,'Volume Inputs'!$A$53:$O$57,14) -> 0 | P69: =VLOOKUP($A$56,'Volume Inputs'!$A$53:$O$57,15) -> 0
B70: Customer Numbers | C70: =VLOOKUP($A$56,'Connection Numbers Inputs'!$A$77:$O$81,2) -> 381428 | D70: =VLOOKUP($A$56,'Connection Numbers Inputs'!$A$77:$O$81,3) -> 0 | E70: =VLOOKUP($A$56,'Connection Numbers Inputs'!$A$77:$O$81,4) -> 0 | F70: =VLOOKUP($A$56,'Connection Numbers Inputs'!$A$77:$O$81,5) -> 9506 | G70: =VLOOKUP($A$56,'Connection Numbers Inputs'!$A$77:$O$81,6) -> 0 | H70: =VLOOKUP($A$56,'Connection Numbers Inputs'!$A$77:$O$81,7) -> 43 | I70: =VLOOKUP($A$56,'Connection Numbers Inputs'!$A$77:$O$81,8) -> 74 | J70: =VLOOKUP($A$56,'Connection Numbers Inputs'!$A$77:$O$81,9) -> 22 | K70: =VLOOKUP($A$56,'Connection Numbers Inputs'!$A$77:$O$81,10) -> 1 | L70: =VLOOKUP($A$56,'Connection Numbers Inputs'!$A$77:$O$81,11) -> 2 | M70: =VLOOKUP($A$56,'Connection Numbers Inputs'!$A$77:$O$81,12) -> 2 | N70: =VLOOKUP($A$56,'Connection Numbers Inputs'!$A$77:$O$81,13) -> 5 | O70: =VLOOKUP($A$56,'Connection Numbers Inputs'!$A$77:$O$81,14) -> 3 | P70: =VLOOKUP($A$56,'Connection Numbers Inputs'!$A$77:$O$81,15) -> 1
A72: 2009/10 | B72: Prices | C72: Residential 1 | D72: Residential 2 | E72: Residential 3 | F72: Commercial 1 | G72: Commercial 2 | H72: Demand-AdC | I72: Demand-AdNr | J72: Demand-AdS | K72: Demand-Peter | L72: Demand-PP | M72: Demand-River | N72: Demand-SE | O72: Demand-Town | P72: Demand-Whyal
B73: Volumes Band 1 ($/GJ) | C73: =HLOOKUP($A$72,'Tariff Inputs'!$B$4:$H$11,4) -> 11.02 | D73: =HLOOKUP($A$72,'Tariff Inputs'!$B$13:$H$20,4) -> 0 | E73: =HLOOKUP($A$72,'Tariff Inputs'!$B$22:$H$29,4) -> 0 | F73: =HLOOKUP($A$72,'Tariff Inputs'!$B$31:$H$38,4) -> 8.3 | G73: =HLOOKUP($A$72,'Tariff Inputs'!$B$40:$H$47,4) -> 0 | H73: =HLOOKUP($A$72,'Tariff Inputs'!$B$58:$H$65,4) -> 38.62 | I73: =HLOOKUP($A$72,'Tariff Inputs'!$B$49:$H$56,4) -> 32.4 | J73: =HLOOKUP($A$72,'Tariff Inputs'!$B$67:$H$74,4) -> 45.54 | K73: =HLOOKUP($A$72,'Tariff Inputs'!$B$85:$H$92,4) -> 47.54 | L73: =HLOOKUP($A$72,'Tariff Inputs'!$B$76:$H$83,4) -> 32.39 | M73: =HLOOKUP($A$72,'Tariff Inputs'!$B$94:$H$101,4) -> 47.43 | N73: =HLOOKUP($A$72,'Tariff Inputs'!$B$103:$H$110,4) -> 32.39 | O73: 0 | P73: =HLOOKUP($A$72,'Tariff Inputs'!$B$112:$H$119,4) -> 32.53
B74: Volumes Band 2 ($/GJ) | C74: =HLOOKUP($A$72,'Tariff Inputs'!$B$4:$H$11,5) -> 5.14 | D74: =HLOOKUP($A$72,'Tariff Inputs'!$B$13:$H$20,5) -> 0 | E74: =HLOOKUP($A$72,'Tariff Inputs'!$B$22:$H$29,5) -> 0 | F74: =HLOOKUP($A$72,'Tariff Inputs'!$B$31:$H$38,5) -> 4.69 | G74: =HLOOKUP($A$72,'Tariff Inputs'!$B$40:$H$47,5) -> 0 | H74: =HLOOKUP($A$72,'Tariff Inputs'!$B$58:$H$65,5) -> 25.29 | I74: =HLOOKUP($A$72,'Tariff Inputs'!$B$49:$H$56,5) -> 20.91 | J74: =HLOOKUP($A$72,'Tariff Inputs'!$B$67:$H$74,5) -> 29.39 | K74: =HLOOKUP($A$72,'Tariff Inputs'!$B$85:$H$92,5) -> 30.06 | L74: =HLOOKUP($A$72,'Tariff Inputs'!$B$76:$H$83,5) -> 17.06 | M74: =HLOOKUP($A$72,'Tariff Inputs'!$B$94:$H$101,5) -> 30.06 | N74: =HLOOKUP($A$72,'Tariff Inputs'!$B$103:$H$110,5) -> 17.06 | O74: 0 | P74: =HLOOKUP($A$72,'Tariff Inputs'!$B$112:$H$119,5) -> 17.06
B75: Volumes Band 3 ($/GJ) | C75: =HLOOKUP($A$72,'Tariff Inputs'!$B$4:$H$11,6) -> 0 | D75: =HLOOKUP($A$72,'Tariff Inputs'!$B$13:$H$20,6) -> 0 | E75: =HLOOKUP($A$72,'Tariff Inputs'!$B$22:$H$29,6) -> 0 | F75: =HLOOKUP($A$72,'Tariff Inputs'!$B$31:$H$38,6) -> 2.04 | G75: =HLOOKUP($A$72,'Tariff Inputs'!$B$40:$H$47,6) -> 0 | H75: =HLOOKUP($A$72,'Tariff Inputs'!$B$58:$H$65,6) -> 6.97 | I75: =HLOOKUP($A$72,'Tariff Inputs'!$B$49:$H$56,6) -> 6.04 | J75: =HLOOKUP($A$72,'Tariff Inputs'!$B$67:$H$74,6) -> 8.53 | K75: =HLOOKUP($A$72,'Tariff Inputs'!$B$85:$H$92,6) -> 29.36 | L75: =HLOOKUP($A$72,'Tariff Inputs'!$B$76:$H$83,6) -> 6.86 | M75: =HLOOKUP($A$72,'Tariff Inputs'!$B$94:$H$101,6) -> 29.36 | N75: =HLOOKUP($A$72,'Tariff Inputs'!$B$103:$H$110,6) -> 16.65 | O75: 0 | P75: =HLOOKUP($A$72,'Tariff Inputs'!$B$112:$H$119,6) -> 16.65
B76: Volumes Band 4 ($/GJ) | C76: =HLOOKUP($A$72,'Tariff Inputs'!$B$4:$H$11,7) -> 0 | D76: =HLOOKUP($A$72,'Tariff Inputs'!$B$13:$H$20,7) -> 0 | E76: =HLOOKUP($A$72,'Tariff Inputs'!$B$22:$H$29,7) -> 0 | F76: =HLOOKUP($A$72,'Tariff Inputs'!$B$31:$H$38,7) -> 0.86 | G76: =HLOOKUP($A$72,'Tariff Inputs'!$B$40:$H$47,7) -> 0 | H76: =HLOOKUP($A$72,'Tariff Inputs'!$B$58:$H$65,7) -> 0 | I76: =HLOOKUP($A$72,'Tariff Inputs'!$B$49:$H$56,7) -> 0 | J76: =HLOOKUP($A$72,'Tariff Inputs'!$B$67:$H$74,7) -> 0 | K76: =HLOOKUP($A$72,'Tariff Inputs'!$B$85:$H$92,7) -> 6.05 | L76: =HLOOKUP($A$72,'Tariff Inputs'!$B$76:$H$83,7) -> 5.59 | M76: =HLOOKUP($A$72,'Tariff Inputs'!$B$94:$H$101,7) -> 6.05 | N76: =HLOOKUP($A$72,'Tariff Inputs'!$B$103:$H$110,7) -> 6.05 | O76: 0 | P76: =HLOOKUP($A$72,'Tariff Inputs'!$B$112:$H$119,7) -> 6.05
B77: Volumes Band 5 ($/GJ) | C77: =HLOOKUP($A$72,'Tariff Inputs'!$B$4:$H$11,8) -> 0 | D77: =HLOOKUP($A$72,'Tariff Inputs'!$B$13:$H$20,8) -> 0 | E77: =HLOOKUP($A$72,'Tariff Inputs'!$B$22:$H$29,8) -> 0 | F77: =HLOOKUP($A$72,'Tariff Inputs'!$B$31:$H$38,8) -> 0 | G77: =HLOOKUP($A$72,'Tariff Inputs'!$B$40:$H$47,8) -> 0 | H77: =HLOOKUP($A$72,'Tariff Inputs'!$B$58:$H$65,8) -> 0 | I77: =HLOOKUP($A$72,'Tariff Inputs'!$B$49:$H$56,8) -> 0 | J77: =HLOOKUP($A$72,'Tariff Inputs'!$B$67:$H$74,8) -> 0 | K77: =HLOOKUP($A$72,'Tariff Inputs'!$B$85:$H$92,8) -> 0 | L77: =HLOOKUP($A$72,'Tariff Inputs'!$B$76:$H$83,8) -> 0 | M77: =HLOOKUP($A$72,'Tariff Inputs'!$B$94:$H$101,8) -> 0 | N77: =HLOOKUP($A$72,'Tariff Inputs'!$B$103:$H$110,8) -> 0 | O77: 0 | P77: =HLOOKUP($A$72,'Tariff Inputs'!$B$112:$H$119,8) -> 0
B78: Daily or Monthly Charge | C78: =HLOOKUP($A$72,'Tariff Inputs'!$B$4:$H$11,3) -> 0.28 | D78: =HLOOKUP($A$72,'Tariff Inputs'!$B$13:$H$20,3) -> 0 | E78: =HLOOKUP($A$72,'Tariff Inputs'!$B$22:$H$29,3) -> 0 | F78: =HLOOKUP($A$72,'Tariff Inputs'!$B$31:$H$38,3) -> 0.56 | G78: =HLOOKUP($A$72,'Tariff Inputs'!$B$40:$H$47,3) -> 0 | H78: =HLOOKUP($A$72,'Tariff Inputs'!$B$58:$H$65,3) -> 2506 | I78: =HLOOKUP($A$72,'Tariff Inputs'!$B$49:$H$56,3) -> 2506 | J78: =HLOOKUP($A$72,'Tariff Inputs'!$B$67:$H$74,3) -> 2506 | K78: =HLOOKUP($A$72,'Tariff Inputs'!$B$85:$H$92,3) -> 3474 | L78: =HLOOKUP($A$72,'Tariff Inputs'!$B$76:$H$83,3) -> 2506 | M78: =HLOOKUP($A$72,'Tariff Inputs'!$B$94:$H$101,3) -> 3474 | N78: =HLOOKUP($A$72,'Tariff Inputs'!$B$103:$H$110,3) -> 2506 | O78: 0 | P78: =HLOOKUP($A$72,'Tariff Inputs'!$B$112:$H$119,3) -> 2506
A80: 2010/11 | B80: Prices | C80: Residential 1 | D80: Residential 2 | E80: Residential 3 | F80: Commercial 1 | G80: Commercial 2 | H80: Demand-AdC | I80: Demand-AdNr | J80: Demand-AdS | K80: Demand-Peter | L80: Demand-PP | M80: Demand-River | N80: Demand-SE | O80: Demand-Town | P80: Demand-Whyal
B81: Volumes Band 1 ($/GJ) | C81: =HLOOKUP($A$80,'Tariff Inputs'!$B$4:$H$11,4) -> 14 | D81: =HLOOKUP($A$80,'Tariff Inputs'!$B$13:$H$20,4) -> 0 | E81: =HLOOKUP($A$80,'Tariff Inputs'!$B$22:$H$29,4) -> 0 | F81: =HLOOKUP($A$80,'Tariff Inputs'!$B$31:$H$38,4) -> 8.8 | G81: =HLOOKUP($A$80,'Tariff Inputs'!$B$40:$H$47,4) -> 0 | H81: =HLOOKUP($A$80,'Tariff Inputs'!$B$58:$H$65,4) -> 40.59 | I81: =HLOOKUP($A$80,'Tariff Inputs'!$B$49:$H$56,4) -> 34.06 | J81: =HLOOKUP($A$80,'Tariff Inputs'!$B$67:$H$74,4) -> 47.86 | K81: =HLOOKUP($A$80,'Tariff Inputs'!$B$85:$H$92,4) -> 49.92 | L81: =HLOOKUP($A$80,'Tariff Inputs'!$B$76:$H$83,4) -> 34.05 | M81: =HLOOKUP($A$80,'Tariff Inputs'!$B$94:$H$101,4) -> 49.8 | N81: =HLOOKUP($A$80,'Tariff Inputs'!$B$103:$H$110,4) -> 34.05 | O81: 0 | P81: =HLOOKUP($A$80,'Tariff Inputs'!$B$112:$H$119,4) -> 34.18
B82: Volumes Band 2 ($/GJ) | C82: =HLOOKUP($A$80,'Tariff Inputs'!$B$4:$H$11,5) -> 8.34465 | D82: =HLOOKUP($A$80,'Tariff Inputs'!$B$13:$H$20,5) -> 0 | E82: =HLOOKUP($A$80,'Tariff Inputs'!$B$22:$H$29,5) -> 0 | F82: =HLOOKUP($A$80,'Tariff Inputs'!$B$31:$H$38,5) -> 4.72 | G82: =HLOOKUP($A$80,'Tariff Inputs'!$B$40:$H$47,5) -> 0 | H82: =HLOOKUP($A$80,'Tariff Inputs'!$B$58:$H$65,5) -> 25.8 | I82: =HLOOKUP($A$80,'Tariff Inputs'!$B$49:$H$56,5) -> 21.33 | J82: =HLOOKUP($A$80,'Tariff Inputs'!$B$67:$H$74,5) -> 29.97 | K82: =HLOOKUP($A$80,'Tariff Inputs'!$B$85:$H$92,5) -> 30.66 | L82: =HLOOKUP($A$80,'Tariff Inputs'!$B$76:$H$83,5) -> 17.4 | M82: =HLOOKUP($A$80,'Tariff Inputs'!$B$94:$H$101,5) -> 30.66 | N82: =HLOOKUP($A$80,'Tariff Inputs'!$B$103:$H$110,5) -> 17.4 | O82: 0 | P82: =HLOOKUP($A$80,'Tariff Inputs'!$B$112:$H$119,5) -> 17.4
B83: Volumes Band 3 ($/GJ) | C83: =HLOOKUP($A$80,'Tariff Inputs'!$B$4:$H$11,6) -> 3.49598301 | D83: =HLOOKUP($A$80,'Tariff Inputs'!$B$13:$H$20,6) -> 0 | E83: =HLOOKUP($A$80,'Tariff Inputs'!$B$22:$H$29,6) -> 0 | F83: =HLOOKUP($A$80,'Tariff Inputs'!$B$31:$H$38,6) -> 2.06 | G83: =HLOOKUP($A$80,'Tariff Inputs'!$B$40:$H$47,6) -> 0 | H83: =HLOOKUP($A$80,'Tariff Inputs'!$B$58:$H$65,6) -> 7.4 | I83: =HLOOKUP($A$80,'Tariff Inputs'!$B$49:$H$56,6) -> 6.4 | J83: =HLOOKUP($A$80,'Tariff Inputs'!$B$67:$H$74,6) -> 9.04 | K83: =HLOOKUP($A$80,'Tariff Inputs'!$B$85:$H$92,6) -> 31.42 | L83: =HLOOKUP($A$80,'Tariff Inputs'!$B$76:$H$83,6) -> 7.34 | M83: =HLOOKUP($A$80,'Tariff Inputs'!$B$94:$H$101,6) -> 31.42 | N83: =HLOOKUP($A$80,'Tariff Inputs'!$B$103:$H$110,6) -> 17.82 | O83: 0 | P83: =HLOOKUP($A$80,'Tariff Inputs'!$B$112:$H$119,6) -> 17.82
B84: Volumes Band 4 ($/GJ) | C84: =HLOOKUP($A$80,'Tariff Inputs'!$B$4:$H$11,7) -> 0 | D84: =HLOOKUP($A$80,'Tariff Inputs'!$B$13:$H$20,7) -> 0 | E84: =HLOOKUP($A$80,'Tariff Inputs'!$B$22:$H$29,7) -> 0 | F84: =HLOOKUP($A$80,'Tariff Inputs'!$B$31:$H$38,7) -> 0.86 | G84: =HLOOKUP($A$80,'Tariff Inputs'!$B$40:$H$47,7) -> 0 | H84: =HLOOKUP($A$80,'Tariff Inputs'!$B$58:$H$65,7) -> 0 | I84: =HLOOKUP($A$80,'Tariff Inputs'!$B$49:$H$56,7) -> 0 | J84: =HLOOKUP($A$80,'Tariff Inputs'!$B$67:$H$74,7) -> 0 | K84: =HLOOKUP($A$80,'Tariff Inputs'!$B$85:$H$92,7) -> 6.47 | L84: =HLOOKUP($A$80,'Tariff Inputs'!$B$76:$H$83,7) -> 5.98 | M84: =HLOOKUP($A$80,'Tariff Inputs'!$B$94:$H$101,7) -> 6.47 | N84: =HLOOKUP($A$80,'Tariff Inputs'!$B$103:$H$110,7) -> 6.47 | O84: 0 | P84: =HLOOKUP($A$80,'Tariff Inputs'!$B$112:$H$119,7) -> 6.47
B85: Volumes Band 5 ($/GJ) | C85: =HLOOKUP($A$80,'Tariff Inputs'!$B$4:$H$11,8) -> 0 | D85: =HLOOKUP($A$80,'Tariff Inputs'!$B$13:$H$20,8) -> 0 | E85: =HLOOKUP($A$80,'Tariff Inputs'!$B$22:$H$29,8) -> 0 | F85: =HLOOKUP($A$80,'Tariff Inputs'!$B$31:$H$38,8) -> 0 | G85: =HLOOKUP($A$80,'Tariff Inputs'!$B$40:$H$47,8) -> 0 | H85: =HLOOKUP($A$80,'Tariff Inputs'!$B$58:$H$65,8) -> 0 | I85: =HLOOKUP($A$80,'Tariff Inputs'!$B$49:$H$56,8) -> 0 | J85: =HLOOKUP($A$80,'Tariff Inputs'!$B$67:$H$74,8) -> 0 | K85: =HLOOKUP($A$80,'Tariff Inputs'!$B$85:$H$92,8) -> 0 | L85: =HLOOKUP($A$80,'Tariff Inputs'!$B$76:$H$83,8) -> 0 | M85: =HLOOKUP($A$80,'Tariff Inputs'!$B$94:$H$101,8) -> 0 | N85: =HLOOKUP($A$80,'Tariff Inputs'!$B$103:$H$110,8) -> 0 | O85: 0 | P85: =HLOOKUP($A$80,'Tariff Inputs'!$B$112:$H$119,8) -> 0
B86: Daily or Monthly Charge | C86: =HLOOKUP($A$80,'Tariff Inputs'!$B$4:$H$11,3) -> 0.31 | D86: =HLOOKUP($A$80,'Tariff Inputs'!$B$13:$H$20,3) -> 0 | E86: =HLOOKUP($A$80,'Tariff Inputs'!$B$22:$H$29,3) -> 0 | F86: =HLOOKUP($A$80,'Tariff Inputs'!$B$31:$H$38,3) -> 0.62 | G86: =HLOOKUP($A$80,'Tariff Inputs'!$B$40:$H$47,3) -> 0 | H86: =HLOOKUP($A$80,'Tariff Inputs'!$B$58:$H$65,3) -> 2682 | I86: =HLOOKUP($A$80,'Tariff Inputs'!$B$49:$H$56,3) -> 2682 | J86: =HLOOKUP($A$80,'Tariff Inputs'!$B$67:$H$74,3) -> 2682 | K86: =HLOOKUP($A$80,'Tariff Inputs'!$B$85:$H$92,3) -> 3795 | L86: =HLOOKUP($A$80,'Tariff Inputs'!$B$76:$H$83,3) -> 2682 | M86: =HLOOKUP($A$80,'Tariff Inputs'!$B$94:$H$101,3) -> 3795 | N86: =HLOOKUP($A$80,'Tariff Inputs'!$B$103:$H$110,3) -> 2682 | O86: 0 | P86: =HLOOKUP($A$80,'Tariff Inputs'!$B$112:$H$119,3) -> 2682
A88: 2009/10 p*q | C88: Residential 1 | D88: Residential 2 | E88: Residential 3 | F88: Commercial 1 | G88: Commercial 2 | H88: Demand-AdC | I88: Demand-AdNr | J88: Demand-AdS | K88: Demand-Peter | L88: Demand-PP | M88: Demand-River | N88: Demand-SE | O88: Demand-Town | P88: Demand-Whyal
B89: Volumes Band 1 | C89: =C73*C57 -> 56100760.82 | D89: 0 | E89: 0 | F89: 10248668.97 | G89: 0 | H89: 81599.73176 | I89: =I73*I57 -> 119852.6907 | J89: 53608.46682 | K89: 2377 | L89: 3239 | M89: 4743 | N89: 7166.376784 | O89: 0 | P89: 1626.5
B90: Volumes Band 2 | C90: 14446419.47 | D90: 0 | E90: 0 | F90: 5546901.273 | G90: 0 | H90: 39687.58405 | I90: =I74*I58 -> 62520.38561 | J90: 25664.53017 | K90: 360.72 | L90: 1706 | M90: 3006 | N90: 2491.217538 | O90: 0 | P90: 119.42
B91: Volumes Band 3 | C91: 0 | D91: 0 | E91: 0 | F91: 1167643.516 | G91: 0 | H91: 44204.88732 | I91: =I75*I59 -> 87785.47227 | J91: 17141.77363 | K91: 0 | L91: 4225.76 | M91: 16148 | N91: 10211.65548 | O91: 0 | P91: 0
B92: Volumes Band 4 | C92: 0 | D92: 0 | E92: 0 | F92: 244696.9139 | G92: 0 | H92: 0 | I92: =I76*I60 -> 0 | J92: 0 | K92: 0 | L92: 2795 | M92: 0 | N92: 0 | O92: 0 | P92: 0
B93: Volumes Band 5 | C93: 0 | D93: 0 | E93: 0 | F93: 0 | G93: 0 | H93: 0 | I93: =I77*I61 -> 0 | J93: 0 | K93: 0 | L93: 0 | M93: 0 | N93: 0 | O93: 0 | P93: 0
B94: Daily Charge | C94: =C78*365.25*C62 -> 39008641.56 | D94: =D78*365.25*D62 -> 0 | E94: =E78*365.25*E62 -> 0 | F94: =F78*365.25*F62 -> 1944357.24 | G94: =G78*365.25*G62 -> 0 | H94: =H78*H62*12 -> 1293096 | I94: =I78*I62*12 -> 2225328 | J94: 661584 | K94: 41688 | L94: 60144 | M94: 83376 | N94: 150360 | O94: 0 | P94: 30072
A96: 2010/11 p*q | C96: Residential 1 | D96: Residential 2 | E96: Residential 3 | F96: Commercial 1 | G96: Commercial 2 | H96: Demand-AdC | I96: Demand-AdNr | J96: Demand-AdS | K96: Demand-Peter | L96: Demand-PP | M96: Demand-River | N96: Demand-SE | O96: Demand-Town | P96: Demand-Whyal
B97: Volumes Band 1 | C97: =C81*C65 -> 46301957.21 | D97: 0 | E97: 0 | F97: 10045466.47 | G97: 0 | H97: 85762.12098 | I97: =I81*I65 -> 125993.2915 | J97: 56339.5086 | K97: 2496 | L97: 3405 | M97: 4980 | N97: 7533.65636 | O97: 0 | P97: 1709
B98: Volumes Band 2 | C98: 14874408.48 | D98: 0 | E98: 0 | F98: 5958890.876 | G98: 0 | H98: 40487.92679 | I98: =I82*I66 -> 63776.17528 | J98: 26171.0095 | K98: 367.92 | L98: 1740 | M98: 3066 | N98: 2540.866656 | O98: 0 | P98: 121.8
B99: Volumes Band 3 | C99: 9829339.242 | D99: 0 | E99: 0 | F99: 1201728.274 | G99: 0 | H99: 46932.01811 | I99: =I83*I67 -> 93017.71896 | J99: 18166.66279 | K99: 0 | L99: 4521.44 | M99: 17281 | N99: 10929.23127 | O99: 0 | P99: 0
B100: Volumes Band 4 | C100: 0 | D100: 0 | E100: 0 | F100: 246839.5401 | G100: 0 | H100: 0 | I100: =I84*I68 -> 0 | J100: 0 | K100: 0 | L100: 2990 | M100: 0 | N100: 0 | O100: 0 | P100: 0
B101: Volumes Band 5 | C101: 0 | D101: 0 | E101: 0 | F101: 0 | G101: 0 | H101: 0 | I101: =I85*I69 -> 0 | J101: 0 | K101: 0 | L101: 0 | M101: 0 | N101: 0 | O101: 0 | P101: 0
B102: Daily Charge | C102: =C86*365.25*C70 -> 43188138.87 | D102: =D86*D70 -> 0 | E102: =E86*E70 -> 0 | F102: =F86*365.25*F70 -> 2152681.23 | G102: =G86*365.25*G70 -> 0 | H102: =H86*H70*12 -> 1383912 | I102: =I86*I70*12 -> 2381616 | J102: 708048 | K102: 45540 | L102: 64368 | M102: 91080 | N102: 160920 | O102: 0 | P102: 32184
